{"text_format":"1","workbook":"xlsx","n_sheets":23,"sheets":["Table1A List of required stocks","Table1B Planning of sampling ","Table1C Sampling intensity ","Table1D Recreational Fisheries","Table1E Anadromous catadromous","Table1F Incidental by catch","Table1G List of research survey","Table1H Research survey data","Table2A Fishing activity variab","Table3A  Pop segment fisheries","Table3B Pop segments aquacultur","Table3C Pop segments processin","Table4A Sampling plan descripti","Table4B Sampling frame descrip","Table4C Data on the fisheries","Table4D Landing locations","Table5A Quality assurance frame","Table5B Quality assurance frame","Table6A_Data_availability","Table7A_Planned Regional_coord","Table7B_Follow up of Recommenda","Table7C_Bi- and multilateral ","Sheet1"],"not_rendered":{"charts":0,"images":0,"macros":0,"external_links":1,"defined_names":340,"comments":0,"pivot_tables":0},"unopened":[],"bounds":{"document_bytes":16777216,"sheet_cells":100000,"rows_first":2000,"rows_last":500,"rows_between":2000,"halvings":0,"cell_chars":16384,"cell_head_chars":4096},"cells_cut":0,"cells_raw":0,"read":"whole","date_system":"1900"}

{"sheet":"Table1A List of required stocks","index":0,"n_rows":51,"n_cols":13,"rows_kept":51,"cut":false,"hidden":false,"merged":[[4,11,20,11],[36,11,49,11]]}
["Table1A: List of required stocks"]
[null,null,null,null,null,null,null,null,null,null,null,"WP  years","2020-2021"]
[null,null,null,null,null,null,null,null,null,null,null,"AR year",2020]
["MS","Reference years","Species","Region","RFMO/RFO/IO","Area / Stock","Selected for sampling  (Y/N)","Average landings in the reference years (tons)","\nEU TAC (if any)\n(%)","Share (%) in EU landings","Threshold  (Y/N)","Comments","Changes in species landings"]
["POL","2016-2018","Anguilla anguilla","Baltic Sea (ICES areas III b-d) ","ICES","22-32","Y","<200",null,16.18486,"N","Shares in EU landings (column J) are based on the EU landings uploaded by MS to the FIDES database. The only exception is Coregonus lavaretus, for which data from the RDB database was used as more reliable data source. "]
["POL","2016-2018","Clupea harengus","Baltic Sea (ICES areas III b-d) ","ICES","22-24","Y",2680,13.011180747071835,null,"N",null,-0.77747593283582095]
["POL","2016-2018","Clupea harengus","Baltic Sea (ICES areas III b-d) ","ICES","25-29","Y",43330,24.914168999433837,null,"N",null,-0.17179436995153463]
["POL","2016-2018","Coregonus lavaretus","Baltic Sea (ICES areas III b-d) ","ICES","IIId","N","<200",null,2.8104091800000002,"Y"]
["POL","2016-2018","Coregonus albula","Baltic Sea (ICES areas III b-d) ","ICES","22-32","N","None",null,"None","Y"]
["POL","2016-2018","Gadus morhua","Baltic Sea (ICES areas III b-d) ","ICES","22-24","Y",835,11.684017418735433,null,"N",null,-0.90840898203592813]
["POL","2016-2018","Gadus morhua","Baltic Sea (ICES areas III b-d) ","ICES","25-32","Y",7360,26.452240838083203,null,"N",null,-0.9459705135869565]
["POL","2016-2018","Limanda limanda","Baltic Sea (ICES areas III b-d) ","ICES","22-32","N","None",null,"None","Y"]
["POL","2016-2018","Perca fluviatilis","Baltic Sea (ICES areas III b-d) ","ICES","IIId","Y",850,null,27.975729999999999,"N",null,-0.53226352941176469]
["POL","2016-2018","Platichthys flesus","Baltic Sea (ICES areas III b-d) ","ICES","22-32","Y",13910,null,74.964439999999996,"N",null,-0.2096228756290438]
["POL","2016-2018","Pleuronectes platessa","Baltic Sea (ICES areas III b-d) ","ICES","22-32","Y",380,14.996017445567366,null,"N",null,-0.16386052631578951]
["POL","2016-2018","Psetta maxima","Baltic Sea (ICES areas III b-d) ","ICES","22-32","Y","<200",null,22.636690000000002,"N"]
["POL","2013-2015","Salmo salar","Baltic Sea (ICES areas III b-d) ","ICES","22-31","Y","<200",6.2861381613907268,null,"N"]
["POL","2016-2018","Salmo trutta","Baltic Sea (ICES areas III b-d) ","ICES","22-32","Y",260,null,78.798509999999993,"N",null,-0.68372807692307691]
["POL","2016-2018","Sander lucioperca","Baltic Sea (ICES areas III b-d) ","ICES","IIId","Y",230,null,35.722059999999999,"N",null,0.2203821739130436]
["POL","2016-2018","Scophthalmus rhombus","Baltic Sea (ICES areas III b-d) ","ICES","22-32","N","None",null,"None","Y"]
["POL","2016-2018","Sprattus sprattus","Baltic Sea (ICES areas III b-d) ","ICES","22-32","Y",70725,29.359294265097031,null,"N",null,2.5655440084835668E-2]
["POL","2016-2018","Brosme brosme","North Sea (ICES areas IIIa and IV), Eastern Arctic (ICES areas I and II) ","ICES","I, II","N","<200","None",6.1363599999999998,"Y"]
["POL","2016-2018","Clupea harengus","North Sea (ICES areas IIIa and IV), Eastern Arctic (ICES areas I and II) ","ICES","I, II","N",330,1.1000000000000001,1.2135193,"Y"]
["POL","2016-2018","Gadus morhua","North Sea (ICES areas IIIa and IV), Eastern Arctic (ICES areas I and II) ","ICES","I, II","Y",4110,8.1999999999999993,8.6441999999999997,"N",null,-0.71086618004866176]
["POL","2016-2018","Melanogrammus aeglefinus","North Sea (ICES areas IIIa and IV), Eastern Arctic (ICES areas I and II) ","ICES","I, II","Y","<200","None",13.772880000000001,"N"]
["POL","2016-2018","Micromesistius poutassou","North Sea (ICES areas IIIa and IV), Eastern Arctic (ICES areas I and II) ","ICES","I, II","N","<200","None",0.46551068000000001,"Y"]
["POL","2016-2018","Pollachius virens","North Sea (ICES areas IIIa and IV), Eastern Arctic (ICES areas I and II) ","ICES","I, II","Y",480,"None",15.919824908000001,"N",null,-0.99723541666666671]
["POL","2016-2018","Reinhardtius hippoglossoides","North Sea (ICES areas IIIa and IV), Eastern Arctic (ICES areas I and II) ","ICES","I, II","N","<200","None",2.4092799999999999,"Y"]
["POL","2016-2018","Scomber scombrus","North Sea (ICES areas IIIa and IV), Eastern Arctic (ICES areas I and II) ","ICES","II ","N","<200","None",5.45E-3,"Y"]
["POL","2016-2018","Sebastes mentella","North Sea (ICES areas IIIa and IV), Eastern Arctic (ICES areas I and II) ","ICES","I, II","N","<200","None",3.16,"Y"]
["POL","2016-2018","Sebastes marinus","North Sea (ICES areas IIIa and IV), Eastern Arctic (ICES areas I and II) ","ICES","I, II","N","<200","None",43.13,"Y","Average landing in 2016-2018 is 28 t (as a by-catch only). EU Landing data not available"]
["POL","2016-2018","Clupea harengus","North Sea (ICES areas IIIa and IV), Eastern Arctic (ICES areas I and II) ","ICES","IV, VIId","N","<200","None",6.0000000000000001E-3,"Y"]
["POL","2016-2018","Micromesistius poutassou","North Sea (ICES areas IIIa and IV), Eastern Arctic (ICES areas I and II) ","ICES","IV, VIId","N","<200","None",1.84484,"Y"]
["POL","2016-2018","Scomber scombrus","North Sea (ICES areas IIIa and IV), Eastern Arctic (ICES areas I and II) ","ICES","IV, VIId","N",1345,"None",0.72546999999999995,"Y",null,0.11750408921933087]
["POL","2016-2018","Micromesistius poutassou","North-Western waters (ICES areas Vb (only Union waters), VI and VII) ","ICES","I-IX, XII, XIV","N",9225,"None",3.59876,"Y"]
["POL","2016-2018","Scomber scombrus","North-Western waters (ICES areas Vb (only Union waters), VI and VII) ","ICES","I, IIIa, IV, V, VI, VII, VIII, IX","N","<200",0.44783043789995097,2.7699999999999999E-3,"Y"]
["POL","2016-2018","Brachydeuterus auritus","Other regions","CECAF","34.3.1","N","None",null,"N.A.","Y","Selection for sampling stemming from international obligations and based on the Multi-lateral agreement for biological data collection of pelagic fisheries in CECAF waters (http://dcf.mir.gdynia.pl/?page_id=365) and on the Sampling Protocol -  “Biological Data Collection of pelagic fisheries in CECAF waters in compliance with the DCF, version 8-03-2018”. ( http://dcf.mir.gdynia.pl/?page_id=367 ). "]
["POL","2016-2018","Dentex spp.","Other regions","CECAF","34.3.1","N","<200",null,"N.A.","Y"]
["POL","2016-2018","Engraulis encrasicolus","Other regions","CECAF","34.1.3","N","<200",null,"N.A.","Y"]
["POL","2016-2018","Merluccius merluccius","Other regions","CECAF","34.1.3","N","<200",null,"N.A.","Y"]
["POL","2016-2018","Merluccius merluccius","Other regions","CECAF","34.3.1","N","<200",null,"N.A.","Y"]
["POL","2016-2018","Merluccius senegalensis","Other regions","CECAF","34.1.3","N","None",null,"N.A.","Y"]
["POL","2016-2018","Sardinella aurita","Other regions","CECAF","34.1.3","Y",300,null,"N.A.","N"]
["POL","2016-2018","Sardinella aurita","Other regions","CECAF","34.3.1","Y","<200",null,"N.A.","N"]
["POL","2016-2018","Sardina pilchardus","Other regions","CECAF","34.1.3","Y",710,null,"N.A.","N"]
["POL","2016-2018","Scomber spp.","Other regions","CECAF","34.1.3","Y",3350,null,"N.A.","N"]
["POL","2016-2018","Scomber spp.","Other regions","CECAF","34.3.1","Y",1200,null,"N.A.","N"]
["POL","2016-2018","Sparus spp.","Other regions","CECAF","34.1.3","N","<200",null,"N.A.","Y"]
["POL","2016-2018","Trachurus trachurus","Other regions","CECAF","34.1.3","Y",5135,null,"N.A.","N"]
["POL","2016-2018","Trachurus trachurus","Other regions","CECAF","34.3.1","Y",2240,null,"N.A.","N"]
["POL","2016-2018","Trachurus murphyi","Other regions","SPRFMO","SPRFMO Convention Area","Y",895,30.089978968908,"N.A.","N","Selection for sampling stemming from international obligations and based on the Multilateral Agreement for biological data collection of pelagic fisheries in SPRFMO waters (http://dcf.mir.gdynia.pl/?page_id=365) and according to the SPRFMO requirements (\"CMM 01-2019; Conservation and Management Measure for Trachurus Murphyi\") - https://www.sprfmo.int/assets/Fisheries/Conservation-and-Management-Measures/2019-CMMs/CMM-01-2019-5Mar2019.pdf","No EU fishing activity in SPRFMO area in 2020"]

{"sheet":"Table1B Planning of sampling ","index":1,"n_rows":29,"n_cols":25,"rows_kept":29,"cut":false,"hidden":false,"merged":[[3,0,4,0],[2,17,2,23],[1,17,1,23],[3,6,3,8],[3,1,4,1],[3,2,4,2],[3,3,4,3],[3,4,4,4],[3,5,4,5],[3,21,3,23],[3,9,3,11],[3,12,3,14],[3,15,3,17],[3,18,3,20]]}
["Table 1B: Planning of sampling for biological variables"]
[null,null,null,null,null,null,null,null,null,null,null,null,null,null,null,null,null,"WP years",null,null,null,null,null,null,"2020-2021"]
[null,null,null,null,null,null,null,null,null,null,null,null,null,null,null,null,null,"AR  year ",null,null,null,null,null,null,2020]
["MS","Species","Region","RFMO/RFO/IO","Area / Stock","Frequency","Length",null,null,"Age",null,null,"Weight",null,null,"Sex ratio",null,null,"Sexual maturity",null,null,"Fecundity",null,null,"Comments"]
[null,null,null,null,null,null,2019,2020,2021,2019,2020,2021,2019,2020,2021,2019,2020,2021,2019,2020,2021,2019,2020,2021]
["POL","Anguilla anguilla","Baltic Sea (ICES areas III b-d) ","ICES","22-32","A",null,"X","X",null,"X","X",null,"X","X",null,"X","X"]
["POL","Clupea harengus","Baltic Sea (ICES areas III b-d) ","ICES","22-24","Q",null,"X","X",null,"X","X",null,"X","X",null,"X","X",null,"X","X"]
["POL","Clupea harengus","Baltic Sea (ICES areas III b-d) ","ICES","25-29","Q",null,"X","X",null,"X","X",null,"X","X",null,"X","X",null,"X","X"]
["POL","Gadus morhua","Baltic Sea (ICES areas III b-d) ","ICES","22-24","Q",null,"X","X",null,"X","X",null,"X","X",null,"X","X",null,"X","X"]
["POL","Gadus morhua","Baltic Sea (ICES areas III b-d) ","ICES","25-32","Q",null,"X","X",null,"X","X",null,"X","X",null,"X","X",null,"X","X"]
["POL","Perca fluviatilis","Baltic Sea (ICES areas III b-d) ","ICES","IIId","A",null,"X","X",null,"X","X",null,"X","X",null,"X","X",null,"X","X"]
["POL","Platichthys flesus","Baltic Sea (ICES areas III b-d) ","ICES","22-32","Q",null,"X","X",null,"X","X",null,"X","X",null,"X","X",null,"X","X"]
["POL","Pleuronectes platessa","Baltic Sea (ICES areas III b-d) ","ICES","22-32","Q",null,"X","X",null,"X","X",null,"X","X",null,"X","X",null,"X","X"]
["POL","Psetta maxima","Baltic Sea (ICES areas III b-d) ","ICES","22-32","Q",null,"X","X",null,"X","X",null,"X","X",null,"X","X",null,"X","X"]
["POL","Salmo salar","Baltic Sea (ICES areas III b-d) ","ICES","22-31","A",null,"X","X",null,"X","X",null,"X","X",null,"X","X"]
["POL","Salmo trutta","Baltic Sea (ICES areas III b-d) ","ICES","22-32","A",null,"X","X",null,"X","X",null,"X","X",null,"X","X"]
["POL","Sander lucioperca","Baltic Sea (ICES areas III b-d) ","ICES","IIId","A",null,"X","X",null,"X","X",null,"X","X",null,"X","X",null,"X","X"]
["POL","Sprattus sprattus","Baltic Sea (ICES areas III b-d) ","ICES","22-32","Q",null,"X","X",null,"X","X",null,"X","X",null,"X","X",null,"X","X"]
["POL","Gadus morhua","North Sea (ICES areas IIIa and IV), Eastern Arctic (ICES areas I and II) ","ICES","I, II","A",null,"X","X",null,"X","X",null,"X","X",null,"X","X",null,"X","X"]
["POL","Melanogrammus aeglefinus","North Sea (ICES areas IIIa and IV), Eastern Arctic (ICES areas I and II) ","ICES","I, II","A",null,"X","X",null,"X","X",null,"X","X",null,"X","X",null,"X","X"]
["POL","Pollachius virens","North Sea (ICES areas IIIa and IV), Eastern Arctic (ICES areas I and II) ","ICES","I, II","A",null,"X","X",null,"X","X",null,"X","X",null,"X","X",null,"X","X"]
["POL","Sardinella aurita","Other regions","CECAF","34.1.3","Q",null,"X","X",null,"X","X",null,"X","X",null,"X","X",null,"X","X"]
["POL","Sardinella aurita","Other regions","CECAF","34.3.1","Q",null,"X","X",null,"X","X",null,"X","X",null,"X","X",null,"X","X"]
["POL","Sardina pilchardus","Other regions","CECAF","34.1.3","Q",null,"X","X",null,"X","X",null,"X","X",null,"X","X",null,"X","X"]
["POL","Scomber spp.","Other regions","CECAF","34.1.3","Q",null,"X","X",null,"X","X",null,"X","X",null,"X","X",null,"X","X"]
["POL","Scomber spp.","Other regions","CECAF","34.3.1","Q",null,"X","X",null,"X","X",null,"X","X",null,"X","X",null,"X","X"]
["POL","Trachurus trachurus","Other regions","CECAF","34.1.3","Q",null,"X","X",null,"X","X",null,"X","X",null,"X","X",null,"X","X"]
["POL","Trachurus trachurus","Other regions","CECAF","34.3.1","Q",null,"X","X",null,"X","X",null,"X","X",null,"X","X",null,"X","X"]
["POL","Trachurus murphyi","Other regions","SPRFMO","SPRFMO Convention Area","A",null,"X","X",null,"X","X",null,"X","X",null,"X","X",null,"X","X"]

{"sheet":"Table1C Sampling intensity ","index":2,"n_rows":195,"n_cols":17,"rows_kept":195,"cut":false,"hidden":false,"merged":[[190,11,194,11],[22,11,26,11],[37,11,41,11],[52,11,56,11],[67,11,71,11],[87,11,91,11],[92,11,96,11],[97,11,101,11],[102,11,106,11],[107,11,111,11],[135,11,139,11],[155,11,189,11]]}
["Table 1C: Sampling intensity for biological variables"]
[null,null,null,null,null,null,null,null,null,null,null,null,null,null,null,"WP  years","2020-2021"]
[null,null,null,null,null,null,null,null,null,null,null,null,null,null,null,"AR year",2020]
["MS","MS partcipating in sampling","Sampling year","Species","Region","RFMO/RFO/IO","Area / Stock","Variables","Data sources","Planned minimum no of individuals to be measured at the national level","Planned minimum no of individuals to be measured at the regional level","Comments","Achieved number of individuals measured at the national level","% of achievement (100*M/J)","Achieved number of samples ","Sampling protocol","AR  Comments"]
["POL","POL","2020-2021","Anguilla anguilla","Baltic Sea (ICES areas III b-d) ","ICES","22-32","length","Commercial ","all fish caught per haul","NA",null,520,95.228300000000004,14,"all fish caught per haul"]
["POL","POL","2020-2021","Anguilla anguilla","Baltic Sea (ICES areas III b-d) ","ICES","22-32","age","Commercial ","200 per eel management unit","NA",null,390,98,6,"200 per eel management unit"]
["POL","POL","2020-2021","Anguilla anguilla","Baltic Sea (ICES areas III b-d) ","ICES","22-32","weight","Commercial ","200 per eel management unit","NA",null,390,98,6,"200 per eel management unit"]
["POL","POL","2020-2021","Anguilla anguilla","Baltic Sea (ICES areas III b-d) ","ICES","22-32","sex ratio","Commercial ","200 per eel management unit","NA",null,390,98,6,"200 per eel management unit"]
["POL","POL","2020-2021","Anguilla anguilla","Baltic Sea (ICES areas III b-d) ","ICES","22-32","length","Surveys","all fish caught per haul","NA",null,412,100,140,"all fish caught per haul"]
["POL","POL","2020-2021","Anguilla anguilla","Baltic Sea (ICES areas III b-d) ","ICES","22-32","age","Surveys","all fish caught per haul","NA",null,412,100,140,"all fish caught per haul"]
["POL","POL","2020-2021","Anguilla anguilla","Baltic Sea (ICES areas III b-d) ","ICES","22-32","weight","Surveys","all fish caught per haul","NA",null,412,100,140,"all fish caught per haul"]
["POL","POL","2020-2021","Anguilla anguilla","Baltic Sea (ICES areas III b-d) ","ICES","22-32","sex ratio","Surveys","all fish caught per haul","NA",null,412,100,140,"all fish caught per haul"]
["POL","POL","2020-2021","Clupea harengus","Baltic Sea (ICES areas III b-d) ","ICES","22-24","length","Commercial at sea","200 fish per haul","NA",null,422,105.5,6,"200 fish per haul"]
["POL","POL","2020-2021","Clupea harengus","Baltic Sea (ICES areas III b-d) ","ICES","22-24","age","Commercial at sea","4 per 0.5 cm per haul","NA",null,128,113.27433628318585,5,"4 per 0.5 cm per haul"]
["POL","POL","2020-2021","Clupea harengus","Baltic Sea (ICES areas III b-d) ","ICES","22-24","weight","Commercial at sea","4 per 0.5 cm per haul","NA",null,128,113.27433628318585,5,"4 per 0.5 cm per haul"]
["POL","POL","2020-2021","Clupea harengus","Baltic Sea (ICES areas III b-d) ","ICES","22-24","sex ratio","Commercial at sea","4 per 0.5 cm per haul","NA",null,128,113.27433628318585,5,"4 per 0.5 cm per haul"]
["POL","POL","2020-2021","Clupea harengus","Baltic Sea (ICES areas III b-d) ","ICES","22-24","sexual maturity","Commercial at sea","4 per 0.5 cm per haul","NA",null,128,113.27433628318585,5,"4 per 0.5 cm per haul"]
["POL","POL","2020-2021","Clupea harengus","Baltic Sea (ICES areas III b-d) ","ICES","22-24","length","Commercial on shore","200 fish from the last haul","NA",null,2030,112.77777777777777,12,"200 fish from the last haul"]
["POL","POL","2020-2021","Clupea harengus","Baltic Sea (ICES areas III b-d) ","ICES","22-24","age","Commercial on shore","4 per 0.5 cm from the last haul","NA",null,667,118.89483065953654,12,"4 per 0.5 cm from the last haul"]
["POL","POL","2020-2021","Clupea harengus","Baltic Sea (ICES areas III b-d) ","ICES","22-24","weight","Commercial on shore","4 per 0.5 cm from the last haul","NA",null,667,118.89483065953654,12,"4 per 0.5 cm from the last haul"]
["POL","POL","2020-2021","Clupea harengus","Baltic Sea (ICES areas III b-d) ","ICES","22-24","sex ratio","Commercial on shore","4 per 0.5 cm from the last haul","NA",null,667,118.89483065953654,12,"4 per 0.5 cm from the last haul"]
["POL","POL","2020-2021","Clupea harengus","Baltic Sea (ICES areas III b-d) ","ICES","22-24","sexual maturity","Commercial on shore","4 per 0.5 cm from the last haul","NA",null,667,118.89483065953654,12,"4 per 0.5 cm from the last haul"]
["POL","POL","2020-2021","Clupea harengus","Baltic Sea (ICES areas III b-d) ","ICES","22-24","length","Surveys","200 fish per haul","NA","According to IBAS & BITS Surveys Manuals ( http://dcf.mir.gdynia.pl/?page_id=367 )",0,0,0,"200 fish per haul","No control fish hauls selected by WGBIFS in 22-24"]
["POL","POL","2020-2021","Clupea harengus","Baltic Sea (ICES areas III b-d) ","ICES","22-24","age","Surveys","5-10 per 0.5 cm per haul","NA",null,0,0,0,"5-10 per 0.5 cm per haul","No control fish hauls selected by WGBIFS in 22-24"]
["POL","POL","2020-2021","Clupea harengus","Baltic Sea (ICES areas III b-d) ","ICES","22-24","weight","Surveys","5-10 per 0.5 cm per haul","NA",null,0,0,0,"5-10 per 0.5 cm per haul","No control fish hauls selected by WGBIFS in 22-24"]
["POL","POL","2020-2021","Clupea harengus","Baltic Sea (ICES areas III b-d) ","ICES","22-24","sex ratio","Surveys","5-10 per 0.5 cm per haul","NA",null,0,0,0,"5-10 per 0.5 cm per haul","No control fish hauls selected by WGBIFS in 22-24"]
["POL","POL","2020-2021","Clupea harengus","Baltic Sea (ICES areas III b-d) ","ICES","22-24","sexual maturity","Surveys","5-10 per 0.5 cm per haul","NA",null,0,0,0,"5-10 per 0.5 cm per haul","No control fish hauls selected by WGBIFS in 22-24"]
["POL","POL","2020-2021","Clupea harengus","Baltic Sea (ICES areas III b-d) ","ICES","25-29","length","Commercial at sea","200 fish per haul","NA",null,299,29.9,7,"200 fish per haul","Reasons for undersampling - COVID related and ban on fisheries. No sea samples from fishery targetting Herring (Clupea harengus). Only 5 samples from fishery targetting Sprat (Sprattus sprattus). See Text Box 1C for comments"]
["POL","POL","2020-2021","Clupea harengus","Baltic Sea (ICES areas III b-d) ","ICES","25-29","age","Commercial at sea","4 per 0.5 cm per haul per ICES Sub-Diivision","NA",null,53,50.96153846153846,2,"4 per 0.5 cm per haul per ICES Sub-Diivision","Reasons for undersampling - COVID related and ban on fisheries. No sea samples from fishery targetting Herring (Clupea harengus). Only 5 samples from fishery targetting Sprat (Sprattus sprattus). See Text Box 1C for comments"]
["POL","POL","2020-2021","Clupea harengus","Baltic Sea (ICES areas III b-d) ","ICES","25-29","weight","Commercial at sea","4 per 0.5 cm per haul per ICES Sub-Diivision","NA",null,53,50.96153846153846,2,"4 per 0.5 cm per haul per ICES Sub-Diivision","Reasons for undersampling - COVID related and ban on fisheries. No sea samples from fishery targetting Herring (Clupea harengus). Only 5 samples from fishery targetting Sprat (Sprattus sprattus). See Text Box 1C for comments"]
["POL","POL","2020-2021","Clupea harengus","Baltic Sea (ICES areas III b-d) ","ICES","25-29","sex ratio","Commercial at sea","4 per 0.5 cm per haul per ICES Sub-Diivision","NA",null,53,50.96153846153846,2,"4 per 0.5 cm per haul per ICES Sub-Diivision","Reasons for undersampling - COVID related and ban on fisheries. No sea samples from fishery targetting Herring (Clupea harengus). Only 5 samples from fishery targetting Sprat (Sprattus sprattus). See Text Box 1C for comments"]
["POL","POL","2020-2021","Clupea harengus","Baltic Sea (ICES areas III b-d) ","ICES","25-29","sexual maturity","Commercial at sea","4 per 0.5 cm per haul per ICES Sub-Diivision","NA",null,53,50.96153846153846,2,"4 per 0.5 cm per haul per ICES Sub-Diivision","Reasons for undersampling - COVID related and ban on fisheries. No sea samples from fishery targetting Herring (Clupea harengus). Only 5 samples from fishery targetting Sprat (Sprattus sprattus). See Text Box 1C for comments"]
["POL","POL","2020-2021","Clupea harengus","Baltic Sea (ICES areas III b-d) ","ICES","25-29","length","Commercial on shore","200 fish from the last haul","NA",null,6151,123.02,31,"200 fish from the last haul"]
["POL","POL","2020-2021","Clupea harengus","Baltic Sea (ICES areas III b-d) ","ICES","25-29","age","Commercial on shore","4 per 0.5 cm from the last haul","NA",null,1807,109.05250452625226,28,"4 per 0.5 cm from the last haul"]
["POL","POL","2020-2021","Clupea harengus","Baltic Sea (ICES areas III b-d) ","ICES","25-29","weight","Commercial on shore","4 per 0.5 cm from the last haul","NA",null,1807,109.05250452625226,28,"4 per 0.5 cm from the last haul"]
["POL","POL","2020-2021","Clupea harengus","Baltic Sea (ICES areas III b-d) ","ICES","25-29","sex ratio","Commercial on shore","4 per 0.5 cm from the last haul","NA",null,1807,109.05250452625226,28,"4 per 0.5 cm from the last haul"]
["POL","POL","2020-2021","Clupea harengus","Baltic Sea (ICES areas III b-d) ","ICES","25-29","sexual maturity","Commercial on shore","4 per 0.5 cm from the last haul","NA",null,1807,109.05250452625226,28,"4 per 0.5 cm from the last haul"]
["POL","POL","2020-2021","Clupea harengus","Baltic Sea (ICES areas III b-d) ","ICES","25-29","length","Surveys","200 fish per haul","NA","According to IBAS & BITS Surveys Manuals (http://dcf.mir.gdynia.pl/?page_id=367 )",23969,89.833594313732021,155,"200 fish per haul"]
["POL","POL","2020-2021","Clupea harengus","Baltic Sea (ICES areas III b-d) ","ICES","25-29","age","Surveys","5-10 per 0.5 cm per haul","NA",null,3042,136.04651162790697,119,"5-10 per 0.5 cm per haul"]
["POL","POL","2020-2021","Clupea harengus","Baltic Sea (ICES areas III b-d) ","ICES","25-29","weight","Surveys","5-10 per 0.5 cm per haul","NA",null,3042,136.04651162790697,119,"5-10 per 0.5 cm per haul"]
["POL","POL","2020-2021","Clupea harengus","Baltic Sea (ICES areas III b-d) ","ICES","25-29","sex ratio","Surveys","5-10 per 0.5 cm per haul","NA",null,3042,136.04651162790697,119,"5-10 per 0.5 cm per haul"]
["POL","POL","2020-2021","Clupea harengus","Baltic Sea (ICES areas III b-d) ","ICES","25-29","sexual maturity","Surveys","5-10 per 0.5 cm per haul","NA",null,3042,136.04651162790697,119,"5-10 per 0.5 cm per haul"]
["POL","POL","2020-2021","Gadus morhua","Baltic Sea (ICES areas III b-d) ","ICES","22-24","length","Commercial at sea","5 boxes per haul","NA",null,160,10.358666666666666,6,"5 boxes per haul","Reasons for undersampling - COVID related and ban on fisheries. No sea samples from fishery targetting Cod (Gadus morhua). Only 6 samples from fishery targetting Flounder (Platichthys flesus) and Perch (Perca fluviatilis). See Text Box 1C for comments"]
["POL","POL","2020-2021","Gadus morhua","Baltic Sea (ICES areas III b-d) ","ICES","22-24","age","Commercial at sea","5 per 1cm ","NA",null,10,7.8125,1,"5 per 1cm ","Reasons for undersampling - COVID related and ban on fisheries. No sea samples from fishery targetting Cod (Gadus morhua). Only one sample from fishery targetting Flounder (Platichthys flesus). See Text Box 1C for comments"]
["POL","POL","2020-2021","Gadus morhua","Baltic Sea (ICES areas III b-d) ","ICES","22-24","weight","Commercial at sea","5 per 1cm ","NA",null,10,7.8125,1,"5 per 1cm ","Reasons for undersampling - COVID related and ban on fisheries. No sea samples from fishery targetting Cod (Gadus morhua). Only one sample from fishery targetting Flounder (Platichthys flesus). See Text Box 1C for comments"]
["POL","POL","2020-2021","Gadus morhua","Baltic Sea (ICES areas III b-d) ","ICES","22-24","sex ratio","Commercial at sea","5 per 1cm ","NA",null,10,7.8125,1,"5 per 1cm ","Reasons for undersampling - COVID related and ban on fisheries. No sea samples from fishery targetting Cod (Gadus morhua). Only one sample from fishery targetting Flounder (Platichthys flesus). See Text Box 1C for comments"]
["POL","POL","2020-2021","Gadus morhua","Baltic Sea (ICES areas III b-d) ","ICES","22-24","sexual maturity","Commercial at sea","5 per 1cm ","NA",null,10,7.8125,1,"5 per 1cm ","Reasons for undersampling - COVID related and ban on fisheries. No sea samples from fishery targetting Cod (Gadus morhua). Only one sample from fishery targetting Flounder (Platichthys flesus). See Text Box 1C for comments"]
["POL","POL","2020-2021","Gadus morhua","Baltic Sea (ICES areas III b-d) ","ICES","22-24","length","Commercial on shore","2 boxes from the last haul","NA",null,1,0.04,1,"2 boxes from the last haul","Reasons for undersampling - COVID related and ban on fisheries. No samples from fishery targetting Cod (Gadus morhua). Only one sample from fishery targetting Sprat (Sprattus sprattus). See Text Box 1C for comments"]
["POL","POL","2020-2021","Gadus morhua","Baltic Sea (ICES areas III b-d) ","ICES","22-24","age","Commercial on shore","4 per 1 cm","NA",null,0,0,0,"4 per 1 cm","Reasons for undersampling - COVID related and ban on fisheries. No single sample available from landings from commercial. See Text Box 1C for comments"]
["POL","POL","2020-2021","Gadus morhua","Baltic Sea (ICES areas III b-d) ","ICES","22-24","weight","Commercial on shore","4 per 1 cm","NA",null,0,0,0,"4 per 1 cm","Reasons for undersampling - COVID related and ban on fisheries. No single sample available from landings from commercial. See Text Box 1C for comments"]
["POL","POL","2020-2021","Gadus morhua","Baltic Sea (ICES areas III b-d) ","ICES","22-24","sex ratio","Commercial on shore","4 per 1 cm","NA",null,0,0,0,"4 per 1 cm","Reasons for undersampling - COVID related and ban on fisheries. No single sample available from landings from commercial. See Text Box 1C for comments"]
["POL","POL","2020-2021","Gadus morhua","Baltic Sea (ICES areas III b-d) ","ICES","22-24","sexual maturity","Commercial on shore","4 per 1 cm","NA",null,0,0,0,"4 per 1 cm","Reasons for undersampling - COVID related and ban on fisheries. No single sample available from landings from commercial. See Text Box 1C for comments"]
["POL","POL","2020-2021","Gadus morhua","Baltic Sea (ICES areas III b-d) ","ICES","22-24","length","Surveys","5 boxes per haul","NA","According to IBAS & BITS Surveys Manuals (http://dcf.mir.gdynia.pl/?page_id=367 )",0,0,0,"5 boxes per haul","No control fish hauls selected by WGBIFS in 22-24"]
["POL","POL","2020-2021","Gadus morhua","Baltic Sea (ICES areas III b-d) ","ICES","22-24","age","Surveys","5 per 1cm ","NA",null,0,0,0,"5 per 1cm ","No control fish hauls selected by WGBIFS in 22-24"]
["POL","POL","2020-2021","Gadus morhua","Baltic Sea (ICES areas III b-d) ","ICES","22-24","weight","Surveys","5 per 1cm ","NA",null,0,0,0,"5 per 1cm ","No control fish hauls selected by WGBIFS in 22-24"]
["POL","POL","2020-2021","Gadus morhua","Baltic Sea (ICES areas III b-d) ","ICES","22-24","sex ratio","Surveys","5 per 1cm ","NA",null,0,0,0,"5 per 1cm ","No control fish hauls selected by WGBIFS in 22-24"]
["POL","POL","2020-2021","Gadus morhua","Baltic Sea (ICES areas III b-d) ","ICES","22-24","sexual maturity","Surveys","5 per 1cm ","NA",null,0,0,0,"5 per 1cm ","No control fish hauls selected by WGBIFS in 22-24"]
["POL","POL","2020-2021","Gadus morhua","Baltic Sea (ICES areas III b-d) ","ICES","25-32","length","Commercial at sea","5 boxes per haul","NA",null,34,2.3106666666666662,6,"5 boxes per haul","Reasons for undersampling - COVID related and ban on fisheries. No sea samples from fishery targetting Cod (Gadus morhua). Only 6 samples from fishery targetting Flounder (Platichthys flesus),  Sprat (Sprattus sprattus) and Sea trout (Salmo trutta). See Text Box 1C for comments"]
["POL","POL","2020-2021","Gadus morhua","Baltic Sea (ICES areas III b-d) ","ICES","25-32","age","Commercial at sea","5 per 1cm ","NA",null,2,5.8823529411764701,1,"5 per 1cm ","Reasons for undersampling - COVID related and ban on fisheries. No sea samples from fishery targetting Cod (Gadus morhua). Only one sample from fishery targetting Flounder (Platichthys flesus). See Text Box 1C for comments"]
["POL","POL","2020-2021","Gadus morhua","Baltic Sea (ICES areas III b-d) ","ICES","25-32","weight","Commercial at sea","5 per 1cm ","NA",null,2,5.8823529411764701,1,"5 per 1cm ","Reasons for undersampling - COVID related and ban on fisheries. No sea samples from fishery targetting Cod (Gadus morhua). Only one sample from fishery targetting Flounder (Platichthys flesus). See Text Box 1C for comments"]
["POL","POL","2020-2021","Gadus morhua","Baltic Sea (ICES areas III b-d) ","ICES","25-32","sex ratio","Commercial at sea","5 per 1cm ","NA",null,2,5.8823529411764701,1,"5 per 1cm ","Reasons for undersampling - COVID related and ban on fisheries. No sea samples from fishery targetting Cod (Gadus morhua). Only one sample from fishery targetting Flounder (Platichthys flesus). See Text Box 1C for comments"]
["POL","POL","2020-2021","Gadus morhua","Baltic Sea (ICES areas III b-d) ","ICES","25-32","sexual maturity","Commercial at sea","5 per 1cm ","NA",null,2,5.8823529411764701,1,"5 per 1cm ","Reasons for undersampling - COVID related and ban on fisheries. No sea samples from fishery targetting Cod (Gadus morhua). Only one sample from fishery targetting Flounder (Platichthys flesus). See Text Box 1C for comments"]
["POL","POL","2020-2021","Gadus morhua","Baltic Sea (ICES areas III b-d) ","ICES","25-32","length","Commercial on shore","2 boxes from the last haul","NA",null,35,25.679999999999996,1,"2 boxes from the last haul","Reasons for undersampling - COVID related and ban on fisheries. No samples from fishery targetting Cod (Gadus morhua). Only one sample from fishery targetting Flounder (Platichthys flesus). See Text Box 1C for comments"]
["POL","POL","2020-2021","Gadus morhua","Baltic Sea (ICES areas III b-d) ","ICES","25-32","age","Commercial on shore","4 per 1 cm","NA",null,35,109.375,1,"4 per 1 cm","No samples from fishery targetting Cod (Gadus morhua). Only one sample from fishery targetting Flounder (Platichthys flesus). "]
["POL","POL","2020-2021","Gadus morhua","Baltic Sea (ICES areas III b-d) ","ICES","25-32","weight","Commercial on shore","4 per 1 cm","NA",null,35,109.375,1,"4 per 1 cm","No samples from fishery targetting Cod (Gadus morhua). Only one sample from fishery targetting Flounder (Platichthys flesus). "]
["POL","POL","2020-2021","Gadus morhua","Baltic Sea (ICES areas III b-d) ","ICES","25-32","sex ratio","Commercial on shore","4 per 1 cm","NA",null,35,109.375,1,"4 per 1 cm","No samples from fishery targetting Cod (Gadus morhua). Only one sample from fishery targetting Flounder (Platichthys flesus). "]
["POL","POL","2020-2021","Gadus morhua","Baltic Sea (ICES areas III b-d) ","ICES","25-32","sexual maturity","Commercial on shore","4 per 1 cm","NA",null,35,109.375,1,"4 per 1 cm","No samples from fishery targetting Cod (Gadus morhua). Only one sample from fishery targetting Flounder (Platichthys flesus). "]
["POL","POL","2020-2021","Gadus morhua","Baltic Sea (ICES areas III b-d) ","ICES","25-32","length","Surveys","5 boxes per haul","NA","According to IBAS & BITS Surveys Manuals (http://dcf.mir.gdynia.pl/?page_id=367 )",19648,150.12930720916597,134,"5 boxes per haul"]
["POL","POL","2020-2021","Gadus morhua","Baltic Sea (ICES areas III b-d) ","ICES","25-32","age","Surveys","5 per 1cm per ICES Sub-Division","NA",null,1076,109.01722391084093,118,"5 per 1cm per ICES Sub-Division"]
["POL","POL","2020-2021","Gadus morhua","Baltic Sea (ICES areas III b-d) ","ICES","25-32","weight","Surveys","5 per 1cm per ICES Sub-Division","NA",null,1076,109.01722391084093,118,"5 per 1cm per ICES Sub-Division"]
["POL","POL","2020-2021","Gadus morhua","Baltic Sea (ICES areas III b-d) ","ICES","25-32","sex ratio","Surveys","5 per 1cm per ICES Sub-Division","NA",null,1076,109.01722391084093,118,"5 per 1cm per ICES Sub-Division"]
["POL","POL","2020-2021","Gadus morhua","Baltic Sea (ICES areas III b-d) ","ICES","25-32","sexual maturity","Surveys","5 per 1cm per ICES Sub-Division","NA",null,1076,109.01722391084093,118,"5 per 1cm per ICES Sub-Division"]
["POL","POL","2020-2021","Perca fluviatilis","Baltic Sea (ICES areas III b-d) ","ICES","IIId","length","Commercial ","1 box per haul  ","NA",null,2110,96.69,34,"1 box per haul  "]
["POL","POL","2020-2021","Perca fluviatilis","Baltic Sea (ICES areas III b-d) ","ICES","IIId","age","Commercial ","5 per 1 cm per fishing ground","NA",null,658,103.34,31,"5 per 1 cm per fishing ground"]
["POL","POL","2020-2021","Perca fluviatilis","Baltic Sea (ICES areas III b-d) ","ICES","IIId","weight","Commercial ","5 per 1 cm per fishing ground","NA",null,658,103.34,31,"5 per 1 cm per fishing ground"]
["POL","POL","2020-2021","Perca fluviatilis","Baltic Sea (ICES areas III b-d) ","ICES","IIId","sex ratio","Commercial ","5 per 1 cm per fishing ground","NA",null,658,103.34,31,"5 per 1 cm per fishing ground"]
["POL","POL","2020-2021","Perca fluviatilis","Baltic Sea (ICES areas III b-d) ","ICES","IIId","sexual maturity","Commercial ","5 per 1 cm per fishing ground","NA",null,658,103.34,31,"5 per 1 cm per fishing ground"]
["POL","POL","2020-2021","Platichthys flesus","Baltic Sea (ICES areas III b-d) ","ICES","22-32","length","Commercial at sea","1 box per haul  ","NA",null,2737,152.97,44,"1 box per haul  "]
["POL","POL","2020-2021","Platichthys flesus","Baltic Sea (ICES areas III b-d) ","ICES","22-32","age","Commercial at sea","5 per 1 cm","NA",null,329,77.906976744186053,8,"5 per 1 cm","Reasons for undersampling - COVID related and ban on fisheries. Only 3 samples from one at-sea trip targetting Flounder (Platichthys flesus) and 5 samples collected at sea as by-catch from trips targetting other species. In case of some trips sampled, all fish were measured but not all fish were available to sample for other biological variables. See Text Box 1C for comments"]
["POL","POL","2020-2021","Platichthys flesus","Baltic Sea (ICES areas III b-d) ","ICES","22-32","weight","Commercial at sea","5 per 1 cm","NA",null,329,77.906976744186053,8,"5 per 1 cm","Reasons for undersampling - COVID related and ban on fisheries. Only 3 samples from one at-sea trip targetting Flounder (Platichthys flesus) and 5 samples collected at sea as by-catch from trips targetting other species. In case of some trips sampled, all fish were measured but not all fish were available to sample for other biological variables. See Text Box 1C for comments"]
["POL","POL","2020-2021","Platichthys flesus","Baltic Sea (ICES areas III b-d) ","ICES","22-32","sex ratio","Commercial at sea","5 per 1 cm","NA",null,329,77.906976744186053,8,"5 per 1 cm","Reasons for undersampling - COVID related and ban on fisheries. Only 3 samples from one at-sea trip targetting Flounder (Platichthys flesus) and 5 samples collected at sea as by-catch from trips targetting other species. In case of some trips sampled, all fish were measured but not all fish were available to sample for other biological variables. See Text Box 1C for comments"]
["POL","POL","2020-2021","Platichthys flesus","Baltic Sea (ICES areas III b-d) ","ICES","22-32","sexual maturity","Commercial at sea","5 per 1 cm","NA",null,329,77.906976744186053,8,"5 per 1 cm","Reasons for undersampling - COVID related and ban on fisheries. Only 3 samples from one at-sea trip targetting Flounder (Platichthys flesus) and 5 samples collected at sea as by-catch from trips targetting other species. In case of some trips sampled, all fish were measured but not all fish were available to sample for other biological variables. See Text Box 1C for comments"]
["POL","POL","2020-2021","Platichthys flesus","Baltic Sea (ICES areas III b-d) ","ICES","22-32","length","Commercial on shore","1 box from the last haul","NA",null,1204,130.03,11,"1 box from the last haul"]
["POL","POL","2020-2021","Platichthys flesus","Baltic Sea (ICES areas III b-d) ","ICES","22-32","age","Commercial on shore","5 per 1 cm","NA",null,426,94.877505567928736,8,"5 per 1 cm"]
["POL","POL","2020-2021","Platichthys flesus","Baltic Sea (ICES areas III b-d) ","ICES","22-32","weight","Commercial on shore","5 per 1 cm","NA",null,426,94.877505567928736,8,"5 per 1 cm"]
["POL","POL","2020-2021","Platichthys flesus","Baltic Sea (ICES areas III b-d) ","ICES","22-32","sex ratio","Commercial on shore","5 per 1 cm","NA",null,426,94.877505567928736,8,"5 per 1 cm"]
["POL","POL","2020-2021","Platichthys flesus","Baltic Sea (ICES areas III b-d) ","ICES","22-32","sexual maturity","Commercial on shore","5 per 1 cm","NA",null,426,94.877505567928736,8,"5 per 1 cm"]
["POL","POL","2020-2021","Platichthys flesus","Baltic Sea (ICES areas III b-d) ","ICES","22-32","length","Surveys","1 box per haul per ICES Sub-Division","NA","According to BITS Surveys Manual (http://dcf.mir.gdynia.pl/?page_id=367)",10712,103.2013342708112,115,"1 box per haul per ICES Sub-Division"]
["POL","POL","2020-2021","Platichthys flesus","Baltic Sea (ICES areas III b-d) ","ICES","22-32","age","Surveys","10 per 1cm per sex per ICES Sub-Division","NA",null,1479,96.856581532416513,104,"10 per 1cm per sex per ICES Sub-Division"]
["POL","POL","2020-2021","Platichthys flesus","Baltic Sea (ICES areas III b-d) ","ICES","22-32","weight","Surveys","10 per 1cm per sex per ICES Sub-Division","NA",null,1479,96.856581532416513,104,"10 per 1cm per sex per ICES Sub-Division"]
["POL","POL","2020-2021","Platichthys flesus","Baltic Sea (ICES areas III b-d) ","ICES","22-32","sex ratio","Surveys","10 per 1cm per sex per ICES Sub-Division","NA",null,1479,96.856581532416513,104,"10 per 1cm per sex per ICES Sub-Division"]
["POL","POL","2020-2021","Platichthys flesus","Baltic Sea (ICES areas III b-d) ","ICES","22-32","sexual maturity","Surveys","10 per 1cm per sex per ICES Sub-Division","NA",null,1479,96.856581532416513,104,"10 per 1cm per sex per ICES Sub-Division"]
["POL","POL","2020-2021","Pleuronectes platessa","Baltic Sea (ICES areas III b-d) ","ICES","22-32","length","Commercial at sea","all fish caught per haul","NA","no directed fishery (bycatch in cod and flounder fisheries)",9,100,4,"all fish caught per haul","No directed fishery (bycatch in cod and flounder fisheries)"]
["POL","POL","2020-2021","Pleuronectes platessa","Baltic Sea (ICES areas III b-d) ","ICES","22-32","age","Commercial at sea","all fish caught per haul","NA",null,3,33.333333333333329,1,"all fish caught per haul","no directed fishery (bycatch in cod and flounder fisheries). Only one sample available. Reasons for undersampling - see comments in Text Box 1C."]
["POL","POL","2020-2021","Pleuronectes platessa","Baltic Sea (ICES areas III b-d) ","ICES","22-32","weight","Commercial at sea","all fish caught per haul","NA",null,3,33.333333333333329,1,"all fish caught per haul","no directed fishery (bycatch in cod and flounder fisheries). Only one sample available. Reasons for undersampling - see comments in Text Box 1C."]
["POL","POL","2020-2021","Pleuronectes platessa","Baltic Sea (ICES areas III b-d) ","ICES","22-32","sex ratio","Commercial at sea","all fish caught per haul","NA",null,3,33.333333333333329,1,"all fish caught per haul","no directed fishery (bycatch in cod and flounder fisheries). Only one sample available. Reasons for undersampling - see comments in Text Box 1C."]
["POL","POL","2020-2021","Pleuronectes platessa","Baltic Sea (ICES areas III b-d) ","ICES","22-32","sexual maturity","Commercial at sea","all fish caught per haul","NA",null,3,33.333333333333329,1,"all fish caught per haul","no directed fishery (bycatch in cod and flounder fisheries). Only one sample available. Reasons for undersampling - see comments in Text Box 1C."]
["POL","POL","2020-2021","Pleuronectes platessa","Baltic Sea (ICES areas III b-d) ","ICES","22-32","length","Surveys","all fish caught per haul","NA","According to BITS Surveys Manual (http://dcf.mir.gdynia.pl/?page_id=367)",1554,87.846498208464894,88,"all fish caught per haul","In some hauls unexpectedly high levels of catch was observed in which case a subsample were taken for measurement."]
["POL","POL","2020-2021","Pleuronectes platessa","Baltic Sea (ICES areas III b-d) ","ICES","22-32","age","Surveys","all fish caught per haul","NA",null,796,99.01,82,"all fish caught per haul (max. 10 ind. per length class per sex per trip per ICES Sub-Division."]
["POL","POL","2020-2021","Pleuronectes platessa","Baltic Sea (ICES areas III b-d) ","ICES","22-32","weight","Surveys","all fish caught per haul","NA",null,796,99.01,82,"all fish caught per haul (max. 10 ind. per length class per sex per trip per ICES Sub-Division."]
["POL","POL","2020-2021","Pleuronectes platessa","Baltic Sea (ICES areas III b-d) ","ICES","22-32","sex ratio","Surveys","all fish caught per haul","NA",null,796,99.01,82,"all fish caught per haul (max. 10 ind. per length class per sex per trip per ICES Sub-Division."]
["POL","POL","2020-2021","Pleuronectes platessa","Baltic Sea (ICES areas III b-d) ","ICES","22-32","sexual maturity","Surveys","all fish caught per haul","NA",null,796,99.01,82,"all fish caught per haul (max. 10 ind. per length class per sex per trip per ICES Sub-Division."]
["POL","POL","2020-2021","Psetta maxima","Baltic Sea (ICES areas III b-d) ","ICES","22-32","length","Commercial at sea","all fish caught per haul","NA","no directed fishery (bycatch in cod and flounder fisheries)",130,100,7,"all fish caught per haul"]
["POL","POL","2020-2021","Psetta maxima","Baltic Sea (ICES areas III b-d) ","ICES","22-32","age","Commercial at sea","all fish caught per haul","NA",null,57,43.846153846153847,3,"all fish caught per haul","No directed fishery (bycatch in cod and flounder fisheries). Only 3 samples collected. In case of some trips sampled, all fish were measured but not all fish were available to sample for other biological variables - see comments in Text Box 1C."]
["POL","POL","2020-2021","Psetta maxima","Baltic Sea (ICES areas III b-d) ","ICES","22-32","weight","Commercial at sea","all fish caught per haul","NA",null,57,43.846153846153847,3,"all fish caught per haul","No directed fishery (bycatch in cod and flounder fisheries). Only 3 samples collected. In case of some trips sampled, all fish were measured but not all fish were available to sample for other biological variables - see comments in Text Box 1C."]
["POL","POL","2020-2021","Psetta maxima","Baltic Sea (ICES areas III b-d) ","ICES","22-32","sex ratio","Commercial at sea","all fish caught per haul","NA",null,57,43.846153846153847,3,"all fish caught per haul","No directed fishery (bycatch in cod and flounder fisheries). Only 3 samples collected. In case of some trips sampled, all fish were measured but not all fish were available to sample for other biological variables - see comments in Text Box 1C."]
["POL","POL","2020-2021","Psetta maxima","Baltic Sea (ICES areas III b-d) ","ICES","22-32","sexual maturity","Commercial at sea","all fish caught per haul","NA",null,57,43.846153846153847,3,"all fish caught per haul","No directed fishery (bycatch in cod and flounder fisheries). Only 3 samples collected. In case of some trips sampled, all fish were measured but not all fish were available to sample for other biological variables - see comments in Text Box 1C."]
["POL","POL","2020-2021","Psetta maxima","Baltic Sea (ICES areas III b-d) ","ICES","22-32","length","Surveys","all fish caught per haul","NA","According to BITS Surveys Manual (http://dcf.mir.gdynia.pl/?page_id=367)",92,100,33,"all fish caught per haul"]
["POL","POL","2020-2021","Psetta maxima","Baltic Sea (ICES areas III b-d) ","ICES","22-32","age","Surveys","all fish caught per haul","NA",null,92,100,33,"all fish caught per haul"]
["POL","POL","2020-2021","Psetta maxima","Baltic Sea (ICES areas III b-d) ","ICES","22-32","weight","Surveys","all fish caught per haul","NA",null,92,100,33,"all fish caught per haul"]
["POL","POL","2020-2021","Psetta maxima","Baltic Sea (ICES areas III b-d) ","ICES","22-32","sex ratio","Surveys","all fish caught per haul","NA",null,92,100,33,"all fish caught per haul"]
["POL","POL","2020-2021","Psetta maxima","Baltic Sea (ICES areas III b-d) ","ICES","22-32","sexual maturity","Surveys","all fish caught per haul","NA",null,92,100,33,"all fish caught per haul"]
["POL","POL","2020-2021","Salmo salar","Baltic Sea (ICES areas III b-d) ","ICES","22-31","length","Commercial ","all fish caught per haul","NA",null,102,100,5,"all fish caught per haul"]
["POL","POL","2020-2021","Salmo salar","Baltic Sea (ICES areas III b-d) ","ICES","22-31","age","Commercial ","5 per 1 cm per year","NA",null,100,111.11111111111111,3,"5 per 1 cm per year"]
["POL","POL","2020-2021","Salmo salar","Baltic Sea (ICES areas III b-d) ","ICES","22-31","weight","Commercial ","5 per 1 cm per year","NA",null,100,111.11111111111111,3,"5 per 1 cm per year"]
["POL","POL","2020-2021","Salmo salar","Baltic Sea (ICES areas III b-d) ","ICES","22-31","sex ratio","Commercial ","5 per 1 cm per year","NA",null,100,111.11111111111111,3,"5 per 1 cm per year"]
["POL","POL","2020-2021","Salmo trutta","Baltic Sea (ICES areas III b-d) ","ICES","22-32","length","Commercial ","all fish caught per haul","NA",null,28,100,15,"all fish caught per haul"]
["POL","POL","2020-2021","Salmo trutta","Baltic Sea (ICES areas III b-d) ","ICES","22-32","age","Commercial ","5 per 1 cm per year","NA",null,27,100,14,"5 per 1 cm per year"]
["POL","POL","2020-2021","Salmo trutta","Baltic Sea (ICES areas III b-d) ","ICES","22-32","weight","Commercial ","5 per 1 cm per year","NA",null,27,100,14,"5 per 1 cm per year"]
["POL","POL","2020-2021","Salmo trutta","Baltic Sea (ICES areas III b-d) ","ICES","22-32","sex ratio","Commercial ","5 per 1 cm per year","NA",null,27,100,14,"5 per 1 cm per year"]
["POL","POL","2020-2021","Sander lucioperca","Baltic Sea (ICES areas III b-d) ","ICES","IIId","length","Commercial ","5 box per haul  ","NA",null,1108,82.47,32,"5 box per haul  ","In case of some trips sampled, not all fish required according to sampling protocol were available to sample"]
["POL","POL","2020-2021","Sander lucioperca","Baltic Sea (ICES areas III b-d) ","ICES","IIId","age","Commercial ","5 per 1 cm per fishing ground","NA",null,507,71.319999999999993,27,"5 per 1 cm per fishing ground","In some cases of a very low catch in the sampled hauls (of the order of a few kg) all fish caught were measured but not sampled for other biological variables"]
["POL","POL","2020-2021","Sander lucioperca","Baltic Sea (ICES areas III b-d) ","ICES","IIId","weight","Commercial ","5 per 1 cm per fishing ground","NA",null,507,71.319999999999993,27,"5 per 1 cm per fishing ground","In some cases of a very low catch in the sampled hauls (of the order of a few kg) all fish caught were measured but not sampled for other biological variables"]
["POL","POL","2020-2021","Sander lucioperca","Baltic Sea (ICES areas III b-d) ","ICES","IIId","sex ratio","Commercial ","5 per 1 cm per fishing ground","NA",null,507,71.319999999999993,27,"5 per 1 cm per fishing ground","In some cases of a very low catch in the sampled hauls (of the order of a few kg) all fish caught were measured but not sampled for other biological variables"]
["POL","POL","2020-2021","Sander lucioperca","Baltic Sea (ICES areas III b-d) ","ICES","IIId","sexual maturity","Commercial ","5 per 1 cm per fishing ground","NA",null,507,71.319999999999993,27,"5 per 1 cm per fishing ground","In some cases of a very low catch in the sampled hauls (of the order of a few kg) all fish caught were measured but not sampled for other biological variables"]
["POL","POL","2020-2021","Sprattus sprattus","Baltic Sea (ICES areas III b-d) ","ICES","22-32","length","Commercial at sea","200 fish per haul","NA",null,1532,109.42857142857143,7,"200 fish per haul"]
["POL","POL","2020-2021","Sprattus sprattus","Baltic Sea (ICES areas III b-d) ","ICES","22-32","age","Commercial at sea","5-10 per 0.5 cm per haul per ICES Sub-Diivision","NA",null,414,97.872340425531917,6,"5-10 per 0.5 cm per haul per ICES Sub-Diivision"]
["POL","POL","2020-2021","Sprattus sprattus","Baltic Sea (ICES areas III b-d) ","ICES","22-32","weight","Commercial at sea","5-10 per 0.5 cm per haul per ICES Sub-Diivision","NA",null,414,97.872340425531917,6,"5-10 per 0.5 cm per haul per ICES Sub-Diivision"]
["POL","POL","2020-2021","Sprattus sprattus","Baltic Sea (ICES areas III b-d) ","ICES","22-32","sex ratio","Commercial at sea","5-10 per 0.5 cm per haul per ICES Sub-Diivision","NA",null,414,97.872340425531917,6,"5-10 per 0.5 cm per haul per ICES Sub-Diivision"]
["POL","POL","2020-2021","Sprattus sprattus","Baltic Sea (ICES areas III b-d) ","ICES","22-32","sexual maturity","Commercial at sea","5-10 per 0.5 cm per haul per ICES Sub-Diivision","NA",null,414,97.872340425531917,6,"5-10 per 0.5 cm per haul per ICES Sub-Diivision"]
["POL","POL","2020-2021","Sprattus sprattus","Baltic Sea (ICES areas III b-d) ","ICES","22-32","length","Commercial on shore","200 fish from the last haul","NA",null,4991,146.79411764705884,32,"200 fish from the last haul"]
["POL","POL","2020-2021","Sprattus sprattus","Baltic Sea (ICES areas III b-d) ","ICES","22-32","age","Commercial on shore","5-10 per 0.5 cm from the last haul","NA",null,1583,95.765275257108286,24,"5-10 per 0.5 cm from the last haul"]
["POL","POL","2020-2021","Sprattus sprattus","Baltic Sea (ICES areas III b-d) ","ICES","22-32","weight","Commercial on shore","5-10 per 0.5 cm from the last haul","NA",null,1583,95.765275257108286,24,"5-10 per 0.5 cm from the last haul"]
["POL","POL","2020-2021","Sprattus sprattus","Baltic Sea (ICES areas III b-d) ","ICES","22-32","sex ratio","Commercial on shore","5-10 per 0.5 cm from the last haul","NA",null,1583,95.765275257108286,24,"5-10 per 0.5 cm from the last haul"]
["POL","POL","2020-2021","Sprattus sprattus","Baltic Sea (ICES areas III b-d) ","ICES","22-32","sexual maturity","Commercial on shore","5-10 per 0.5 cm from the last haul","NA",null,1583,95.765275257108286,24,"5-10 per 0.5 cm from the last haul"]
["POL","POL","2020-2021","Sprattus sprattus","Baltic Sea (ICES areas III b-d) ","ICES","22-32","length","Surveys","200 fish per haul","NA","According to BITS Surveys Manual (http://dcf.mir.gdynia.pl/?page_id=367)",25440,101.03012187309042,138,"200 fish per haul"]
["POL","POL","2020-2021","Sprattus sprattus","Baltic Sea (ICES areas III b-d) ","ICES","22-32","age","Surveys","5-10 per 0.5 cm per haul","NA",null,1993,179.87364620938629,88,"5-10 per 0.5 cm per haul"]
["POL","POL","2020-2021","Sprattus sprattus","Baltic Sea (ICES areas III b-d) ","ICES","22-32","weight","Surveys","5-10 per 0.5 cm per haul","NA",null,1993,179.87364620938629,88,"5-10 per 0.5 cm per haul"]
["POL","POL","2020-2021","Sprattus sprattus","Baltic Sea (ICES areas III b-d) ","ICES","22-32","sex ratio","Surveys","5-10 per 0.5 cm per haul","NA",null,1993,179.87364620938629,88,"5-10 per 0.5 cm per haul"]
["POL","POL","2020-2021","Sprattus sprattus","Baltic Sea (ICES areas III b-d) ","ICES","22-32","sexual maturity","Surveys","5-10 per 0.5 cm per haul","NA",null,1993,179.87364620938629,88,"5-10 per 0.5 cm per haul"]
["POL","POL","2020-2021","Gadus morhua","North Sea (ICES areas IIIa and IV), Eastern Arctic (ICES areas I and II) ","ICES","I, II","length","Commercial at sea","300 fish per haul","NA",null,0,0,0,"300 fish per haul","No sampling performed in 2020 due to COVID-19 (closed borders, restrictions in poeple movement, safety issues). See Text Box 1C for details."]
["POL","POL","2020-2021","Gadus morhua","North Sea (ICES areas IIIa and IV), Eastern Arctic (ICES areas I and II) ","ICES","I, II","age","Commercial at sea","5 per 1 cm per trip","NA",null,0,0,0,"5 per 1 cm per trip","No sampling performed in 2020 due to COVID-19 (closed borders, restrictions in poeple movement, safety issues). See Text Box 1C for details."]
["POL","POL","2020-2021","Gadus morhua","North Sea (ICES areas IIIa and IV), Eastern Arctic (ICES areas I and II) ","ICES","I, II","weight","Commercial at sea","5 per 1 cm per trip","NA",null,0,0,0,"5 per 1 cm per trip","No sampling performed in 2020 due to COVID-19 (closed borders, restrictions in poeple movement, safety issues). See Text Box 1C for details."]
["POL","POL","2020-2021","Gadus morhua","North Sea (ICES areas IIIa and IV), Eastern Arctic (ICES areas I and II) ","ICES","I, II","sex ratio","Commercial at sea","5 per 1 cm per trip","NA",null,0,0,0,"5 per 1 cm per trip","No sampling performed in 2020 due to COVID-19 (closed borders, restrictions in poeple movement, safety issues). See Text Box 1C for details."]
["POL","POL","2020-2021","Gadus morhua","North Sea (ICES areas IIIa and IV), Eastern Arctic (ICES areas I and II) ","ICES","I, II","sexual maturity","Commercial at sea","5 per 1 cm per trip","NA",null,0,0,0,"5 per 1 cm per trip","No sampling performed in 2020 due to COVID-19 (closed borders, restrictions in poeple movement, safety issues). See Text Box 1C for details."]
["POL","POL","2020-2021","Melanogrammus aeglefinus","North Sea (ICES areas IIIa and IV), Eastern Arctic (ICES areas I and II) ","ICES","I, II","length","Commercial at sea","300 fish per haul","NA",null,0,0,0,"300 fish per haul","No sampling performed in 2020 due to COVID-19 (closed borders, restrictions in poeple movement, safety issues). See Text Box 1C for details."]
["POL","POL","2020-2021","Melanogrammus aeglefinus","North Sea (ICES areas IIIa and IV), Eastern Arctic (ICES areas I and II) ","ICES","I, II","age","Commercial at sea","5 per 1 cm per trip","NA",null,0,0,0,"5 per 1 cm per trip","No sampling performed in 2020 due to COVID-19 (closed borders, restrictions in poeple movement, safety issues). See Text Box 1C for details."]
["POL","POL","2020-2021","Melanogrammus aeglefinus","North Sea (ICES areas IIIa and IV), Eastern Arctic (ICES areas I and II) ","ICES","I, II","weight","Commercial at sea","5 per 1 cm per trip","NA",null,0,0,0,"5 per 1 cm per trip","No sampling performed in 2020 due to COVID-19 (closed borders, restrictions in poeple movement, safety issues). See Text Box 1C for details."]
["POL","POL","2020-2021","Melanogrammus aeglefinus","North Sea (ICES areas IIIa and IV), Eastern Arctic (ICES areas I and II) ","ICES","I, II","sex ratio","Commercial at sea","5 per 1 cm per trip","NA",null,0,0,0,"5 per 1 cm per trip","No sampling performed in 2020 due to COVID-19 (closed borders, restrictions in poeple movement, safety issues). See Text Box 1C for details."]
["POL","POL","2020-2021","Melanogrammus aeglefinus","North Sea (ICES areas IIIa and IV), Eastern Arctic (ICES areas I and II) ","ICES","I, II","sexual maturity","Commercial at sea","5 per 1 cm per trip","NA",null,0,0,0,"5 per 1 cm per trip","No sampling performed in 2020 due to COVID-19 (closed borders, restrictions in poeple movement, safety issues). See Text Box 1C for details."]
["POL","POL","2020-2021","Pollachius virens","North Sea (ICES areas IIIa and IV), Eastern Arctic (ICES areas I and II) ","ICES","I, II","length","Commercial at sea","300 fish per haul","NA",null,0,0,0,"300 fish per haul","No sampling performed in 2020 due to COVID-19 (closed borders, restrictions in poeple movement, safety issues). See Text Box 1C for details."]
["POL","POL","2020-2021","Pollachius virens","North Sea (ICES areas IIIa and IV), Eastern Arctic (ICES areas I and II) ","ICES","I, II","age","Commercial at sea","5 per 1 cm per trip","NA",null,0,0,0,"5 per 1 cm per trip","No sampling performed in 2020 due to COVID-19 (closed borders, restrictions in poeple movement, safety issues). See Text Box 1C for details."]
["POL","POL","2020-2021","Pollachius virens","North Sea (ICES areas IIIa and IV), Eastern Arctic (ICES areas I and II) ","ICES","I, II","weight","Commercial at sea","5 per 1 cm per trip","NA",null,0,0,0,"5 per 1 cm per trip","No sampling performed in 2020 due to COVID-19 (closed borders, restrictions in poeple movement, safety issues). See Text Box 1C for details."]
["POL","POL","2020-2021","Pollachius virens","North Sea (ICES areas IIIa and IV), Eastern Arctic (ICES areas I and II) ","ICES","I, II","sex ratio","Commercial at sea","5 per 1 cm per trip","NA",null,0,0,0,"5 per 1 cm per trip","No sampling performed in 2020 due to COVID-19 (closed borders, restrictions in poeple movement, safety issues). See Text Box 1C for details."]
["POL","POL","2020-2021","Pollachius virens","North Sea (ICES areas IIIa and IV), Eastern Arctic (ICES areas I and II) ","ICES","I, II","sexual maturity","Commercial at sea","5 per 1 cm per trip","NA",null,0,0,0,"5 per 1 cm per trip","No sampling performed in 2020 due to COVID-19 (closed borders, restrictions in poeple movement, safety issues). See Text Box 1C for details."]
["POL","DEU - LTU -LVA - NLD - POL","2020-2021","Sardinella aurita","Other regions","CECAF","34.1.3","length","Commercial at sea","sample of 25 kg per haul","NA","Sampling Protocol - \"Biological Data Collection of pelagic fisheries in CECAF waters in compliance with the DCF\" (http://dcf.mir.gdynia.pl/?page_id=367)",0,0,0,"sample of 25 kg per haul","No sampling performed in 2020 due to COVID-19 (closed borders, restrictions in poeple movement, safety issues). See Text Box 1C for details."]
["POL","DEU - LTU -LVA - NLD - POL","2020-2021","Sardinella aurita","Other regions","CECAF","34.1.3","age","Commercial at sea","5 per 1 cm per trip","NA",null,0,0,0,"5 per 1 cm per trip","No sampling performed in 2020 due to COVID-19 (closed borders, restrictions in poeple movement, safety issues). See Text Box 1C for details."]
["POL","DEU - LTU -LVA - NLD - POL","2020-2021","Sardinella aurita","Other regions","CECAF","34.1.3","weight","Commercial at sea","5 per 1 cm per trip","NA",null,0,0,0,"5 per 1 cm per trip","No sampling performed in 2020 due to COVID-19 (closed borders, restrictions in poeple movement, safety issues). See Text Box 1C for details."]
["POL","DEU - LTU -LVA - NLD - POL","2020-2021","Sardinella aurita","Other regions","CECAF","34.1.3","sex ratio","Commercial at sea","5 per 1 cm per trip","NA",null,0,0,0,"5 per 1 cm per trip","No sampling performed in 2020 due to COVID-19 (closed borders, restrictions in poeple movement, safety issues). See Text Box 1C for details."]
["POL","DEU - LTU -LVA - NLD - POL","2020-2021","Sardinella aurita","Other regions","CECAF","34.1.3","sexual maturity","Commercial at sea","5 per 1 cm per trip","NA",null,0,0,0,"5 per 1 cm per trip","No sampling performed in 2020 due to COVID-19 (closed borders, restrictions in poeple movement, safety issues). See Text Box 1C for details."]
["POL","DEU - LTU -LVA - NLD - POL","2020-2021","Sardinella aurita","Other regions","CECAF","34.3.1","length","Commercial at sea","sample of 25 kg per haul","NA",null,0,0,0,"sample of 25 kg per haul","No sampling performed in 2020 due to COVID-19 (closed borders, restrictions in poeple movement, safety issues). See Text Box 1C for details."]
["POL","DEU - LTU -LVA - NLD - POL","2020-2021","Sardinella aurita","Other regions","CECAF","34.3.1","age","Commercial at sea","5 per 1 cm per trip","NA",null,0,0,0,"5 per 1 cm per trip","No sampling performed in 2020 due to COVID-19 (closed borders, restrictions in poeple movement, safety issues). See Text Box 1C for details."]
["POL","DEU - LTU -LVA - NLD - POL","2020-2021","Sardinella aurita","Other regions","CECAF","34.3.1","weight","Commercial at sea","5 per 1 cm per trip","NA",null,0,0,0,"5 per 1 cm per trip","No sampling performed in 2020 due to COVID-19 (closed borders, restrictions in poeple movement, safety issues). See Text Box 1C for details."]
["POL","DEU - LTU -LVA - NLD - POL","2020-2021","Sardinella aurita","Other regions","CECAF","34.3.1","sex ratio","Commercial at sea","5 per 1 cm per trip","NA",null,0,0,0,"5 per 1 cm per trip","No sampling performed in 2020 due to COVID-19 (closed borders, restrictions in poeple movement, safety issues). See Text Box 1C for details."]
["POL","DEU - LTU -LVA - NLD - POL","2020-2021","Sardinella aurita","Other regions","CECAF","34.3.1","sexual maturity","Commercial at sea","5 per 1 cm per trip","NA",null,0,0,0,"5 per 1 cm per trip","No sampling performed in 2020 due to COVID-19 (closed borders, restrictions in poeple movement, safety issues). See Text Box 1C for details."]
["POL","DEU - LTU -LVA - NLD - POL","2020-2021","Sardina pilchardus","Other regions","CECAF","34.1.3","length","Commercial at sea","sample of 25 kg per haul","NA",null,0,0,0,"sample of 25 kg per haul","No sampling performed in 2020 due to COVID-19 (closed borders, restrictions in poeple movement, safety issues). See Text Box 1C for details."]
["POL","DEU - LTU -LVA - NLD - POL","2020-2021","Sardina pilchardus","Other regions","CECAF","34.1.3","age","Commercial at sea","5 per 1 cm per trip","NA",null,0,0,0,"5 per 1 cm per trip","No sampling performed in 2020 due to COVID-19 (closed borders, restrictions in poeple movement, safety issues). See Text Box 1C for details."]
["POL","DEU - LTU -LVA - NLD - POL","2020-2021","Sardina pilchardus","Other regions","CECAF","34.1.3","weight","Commercial at sea","5 per 1 cm per trip","NA",null,0,0,0,"5 per 1 cm per trip","No sampling performed in 2020 due to COVID-19 (closed borders, restrictions in poeple movement, safety issues). See Text Box 1C for details."]
["POL","DEU - LTU -LVA - NLD - POL","2020-2021","Sardina pilchardus","Other regions","CECAF","34.1.3","sex ratio","Commercial at sea","5 per 1 cm per trip","NA",null,0,0,0,"5 per 1 cm per trip","No sampling performed in 2020 due to COVID-19 (closed borders, restrictions in poeple movement, safety issues). See Text Box 1C for details."]
["POL","DEU - LTU -LVA - NLD - POL","2020-2021","Sardina pilchardus","Other regions","CECAF","34.1.3","sexual maturity","Commercial at sea","5 per 1 cm per trip","NA",null,0,0,0,"5 per 1 cm per trip","No sampling performed in 2020 due to COVID-19 (closed borders, restrictions in poeple movement, safety issues). See Text Box 1C for details."]
["POL","DEU - LTU -LVA - NLD - POL","2020-2021","Scomber spp.","Other regions","CECAF","34.1.3","length","Commercial at sea","sample of 25 kg per haul","NA",null,0,0,0,"sample of 25 kg per haul","No sampling performed in 2020 due to COVID-19 (closed borders, restrictions in poeple movement, safety issues). See Text Box 1C for details."]
["POL","DEU - LTU -LVA - NLD - POL","2020-2021","Scomber spp.","Other regions","CECAF","34.1.3","age","Commercial at sea","5 per 1 cm per trip","NA",null,0,0,0,"5 per 1 cm per trip","No sampling performed in 2020 due to COVID-19 (closed borders, restrictions in poeple movement, safety issues). See Text Box 1C for details."]
["POL","DEU - LTU -LVA - NLD - POL","2020-2021","Scomber spp.","Other regions","CECAF","34.1.3","weight","Commercial at sea","5 per 1 cm per trip","NA",null,0,0,0,"5 per 1 cm per trip","No sampling performed in 2020 due to COVID-19 (closed borders, restrictions in poeple movement, safety issues). See Text Box 1C for details."]
["POL","DEU - LTU -LVA - NLD - POL","2020-2021","Scomber spp.","Other regions","CECAF","34.1.3","sex ratio","Commercial at sea","5 per 1 cm per trip","NA",null,0,0,0,"5 per 1 cm per trip","No sampling performed in 2020 due to COVID-19 (closed borders, restrictions in poeple movement, safety issues). See Text Box 1C for details."]
["POL","DEU - LTU -LVA - NLD - POL","2020-2021","Scomber spp.","Other regions","CECAF","34.1.3","sexual maturity","Commercial at sea","5 per 1 cm per trip","NA",null,0,0,0,"5 per 1 cm per trip","No sampling performed in 2020 due to COVID-19 (closed borders, restrictions in poeple movement, safety issues). See Text Box 1C for details."]
["POL","DEU - LTU -LVA - NLD - POL","2020-2021","Scomber spp.","Other regions","CECAF","34.3.1","length","Commercial at sea","sample of 25 kg per haul","NA",null,0,0,0,"sample of 25 kg per haul","No sampling performed in 2020 due to COVID-19 (closed borders, restrictions in poeple movement, safety issues). See Text Box 1C for details."]
["POL","DEU - LTU -LVA - NLD - POL","2020-2021","Scomber spp.","Other regions","CECAF","34.3.1","age","Commercial at sea","5 per 1 cm per trip","NA",null,0,0,0,"5 per 1 cm per trip","No sampling performed in 2020 due to COVID-19 (closed borders, restrictions in poeple movement, safety issues). See Text Box 1C for details."]
["POL","DEU - LTU -LVA - NLD - POL","2020-2021","Scomber spp.","Other regions","CECAF","34.3.1","weight","Commercial at sea","5 per 1 cm per trip","NA",null,0,0,0,"5 per 1 cm per trip","No sampling performed in 2020 due to COVID-19 (closed borders, restrictions in poeple movement, safety issues). See Text Box 1C for details."]
["POL","DEU - LTU -LVA - NLD - POL","2020-2021","Scomber spp.","Other regions","CECAF","34.3.1","sex ratio","Commercial at sea","5 per 1 cm per trip","NA",null,0,0,0,"5 per 1 cm per trip","No sampling performed in 2020 due to COVID-19 (closed borders, restrictions in poeple movement, safety issues). See Text Box 1C for details."]
["POL","DEU - LTU -LVA - NLD - POL","2020-2021","Scomber spp.","Other regions","CECAF","34.3.1","sexual maturity","Commercial at sea","5 per 1 cm per trip","NA",null,0,0,0,"5 per 1 cm per trip","No sampling performed in 2020 due to COVID-19 (closed borders, restrictions in poeple movement, safety issues). See Text Box 1C for details."]
["POL","DEU - LTU -LVA - NLD - POL","2020-2021","Trachurus trachurus","Other regions","CECAF","34.1.3","length","Commercial at sea","sample of 25 kg per haul","NA",null,0,0,0,"sample of 25 kg per haul","No sampling performed in 2020 due to COVID-19 (closed borders, restrictions in poeple movement, safety issues). See Text Box 1C for details."]
["POL","DEU - LTU -LVA - NLD - POL","2020-2021","Trachurus trachurus","Other regions","CECAF","34.1.3","age","Commercial at sea","5 per 1 cm per trip","NA",null,0,0,0,"5 per 1 cm per trip","No sampling performed in 2020 due to COVID-19 (closed borders, restrictions in poeple movement, safety issues). See Text Box 1C for details."]
["POL","DEU - LTU -LVA - NLD - POL","2020-2021","Trachurus trachurus","Other regions","CECAF","34.1.3","weight","Commercial at sea","5 per 1 cm per trip","NA",null,0,0,0,"5 per 1 cm per trip","No sampling performed in 2020 due to COVID-19 (closed borders, restrictions in poeple movement, safety issues). See Text Box 1C for details."]
["POL","DEU - LTU -LVA - NLD - POL","2020-2021","Trachurus trachurus","Other regions","CECAF","34.1.3","sex ratio","Commercial at sea","5 per 1 cm per trip","NA",null,0,0,0,"5 per 1 cm per trip","No sampling performed in 2020 due to COVID-19 (closed borders, restrictions in poeple movement, safety issues). See Text Box 1C for details."]
["POL","DEU - LTU -LVA - NLD - POL","2020-2021","Trachurus trachurus","Other regions","CECAF","34.1.3","sexual maturity","Commercial at sea","5 per 1 cm per trip","NA",null,0,0,0,"5 per 1 cm per trip","No sampling performed in 2020 due to COVID-19 (closed borders, restrictions in poeple movement, safety issues). See Text Box 1C for details."]
["POL","DEU - LTU -LVA - NLD - POL","2020-2021","Trachurus trachurus","Other regions","CECAF","34.3.1","length","Commercial at sea","sample of 25 kg per haul","NA",null,0,0,0,"sample of 25 kg per haul","No sampling performed in 2020 due to COVID-19 (closed borders, restrictions in poeple movement, safety issues). See Text Box 1C for details."]
["POL","DEU - LTU -LVA - NLD - POL","2020-2021","Trachurus trachurus","Other regions","CECAF","34.3.1","age","Commercial at sea","5 per 1 cm per trip","NA",null,0,0,0,"5 per 1 cm per trip","No sampling performed in 2020 due to COVID-19 (closed borders, restrictions in poeple movement, safety issues). See Text Box 1C for details."]
["POL","DEU - LTU -LVA - NLD - POL","2020-2021","Trachurus trachurus","Other regions","CECAF","34.3.1","weight","Commercial at sea","5 per 1 cm per trip","NA",null,0,0,0,"5 per 1 cm per trip","No sampling performed in 2020 due to COVID-19 (closed borders, restrictions in poeple movement, safety issues). See Text Box 1C for details."]
["POL","DEU - LTU -LVA - NLD - POL","2020-2021","Trachurus trachurus","Other regions","CECAF","34.3.1","sex ratio","Commercial at sea","5 per 1 cm per trip","NA",null,0,0,0,"5 per 1 cm per trip","No sampling performed in 2020 due to COVID-19 (closed borders, restrictions in poeple movement, safety issues). See Text Box 1C for details."]
["POL","DEU - LTU -LVA - NLD - POL","2020-2021","Trachurus trachurus","Other regions","CECAF","34.3.1","sexual maturity","Commercial at sea","5 per 1 cm per trip","NA",null,0,0,0,"5 per 1 cm per trip","No sampling performed in 2020 due to COVID-19 (closed borders, restrictions in poeple movement, safety issues). See Text Box 1C for details."]
["POL","DEU - LTU - NLD - POL","2020-2021","Trachurus murphyi","Other regions","SPRFMO","SPRFMO Convention Area","length","Commercial at sea","2-3 baskets per haul (ca. 100 fish per haul)","NA","\"Manual for scientific observers on board EU pelagic trawlers in the Pacific\" (in accordance to SPRFMO Data Standards) (http://dcf.mir.gdynia.pl/?page_id=367)",0,0,0,"2-3 baskets per haul (ca. 100 fish per haul)","No EU fishing activity in SPRFMO area, hence no sampling in 2020."]
["POL","DEU - LTU - NLD - POL","2020-2021","Trachurus murphyi","Other regions","SPRFMO","SPRFMO Convention Area","age","Commercial at sea","5 per 1 cm per trip","NA",null,0,0,0,"5 per 1 cm per trip","No EU fishing activity in SPRFMO area, hence no sampling in 2020."]
["POL","DEU - LTU - NLD - POL","2020-2021","Trachurus murphyi","Other regions","SPRFMO","SPRFMO Convention Area","weight","Commercial at sea","5 per 1 cm per trip","NA",null,0,0,0,"5 per 1 cm per trip","No EU fishing activity in SPRFMO area, hence no sampling in 2020."]
["POL","DEU - LTU - NLD - POL","2020-2021","Trachurus murphyi","Other regions","SPRFMO","SPRFMO Convention Area","sex ratio","Commercial at sea","5 per 1 cm per trip","NA",null,0,0,0,"5 per 1 cm per trip","No EU fishing activity in SPRFMO area, hence no sampling in 2020."]
["POL","DEU - LTU - NLD - POL","2020-2021","Trachurus murphyi","Other regions","SPRFMO","SPRFMO Convention Area","sexual maturity","Commercial at sea","5 per 1 cm per trip","NA",null,0,0,0,"5 per 1 cm per trip","No EU fishing activity in SPRFMO area, hence no sampling in 2020."]

{"sheet":"Table1D Recreational Fisheries","index":3,"n_rows":11,"n_cols":25,"rows_kept":11,"cut":false,"hidden":false,"merged":[]}
["Table 1D: Recreational fisheries"]
[null,null,null,null,null,null,null,null,null,null,null,null,null,null,null,null,null,null,null,null,null,null,null,"WP  years","2020-2021"]
[null,null,null,null,null,null,null,null,null,null,null,null,null,null,null,null,null,null,null,null,null,null,null,"AR year",2020]
["MS","Sampling year","Area/EMU","RFMO/RFO/IO","Species","Applicable (Species present in the MS?)","Reasons for not sampling","Threshold (Y/N)","Annual estimate of catch? (Y/N)","Annual percentage of released catch? (Y/N)","Collection of catch composition data? (Y/N)","Type of Survey","Comments","Unique Survey ID or Name of sampling scheme\n(Linked to Table 5A)","Is the survey part of a pilot study or part of an established programme? \n","Frequency","Is the sampling design documented?\n(Linked to Table 5A)","Are non-response and refusal recorded?\n(Linked to Table 5A)","Are the editing and imputation methods documented? (Linked to Table 5A)","Estimation of  the yearly weight and numbers of catch (Y/N)","Estimation of  the yearly percentage release (Y/N)","Collection of catch composition data (Y/N)","Evaluated by external experts/bodies (Y/N)","Conform with accepted standards Y/N","AR Comments "]
["POL","2020-2021","Baltic Sea (ICES Subdivisions 22-32)","ICES","Gadus morhua","Y","NA","N","Y","Y","Y","National estimates of numbers of trips &number of anglers & onsite surveys of catch per unit effort & of catch composition","Planned number of at sea trips: 24","National estimates of numbers of trips &number of anglers & onsite surveys of catch per unit effort & of catch composition","Routine","Annual","Y","Y","N","Y","Y","Y","Y","Y","The estimation of annual catch and number for the sampling Year (N) is available in the year after (N+1). Survey evaluated by WGRFS. Imputation is not performed at national level. Refusals recorded for questionnaires' survey. At-sea biological sampling not randomized but based on vessels' availability (drawing from vessel list)."]
["POL","2020-2021","Vistula/Oder EMU","EIFAAC","Anguilla anguilla","Y","Conducted by Inland Fisheries Institute (IFI)","N","Y","N","N","National estimates of catch based on questionaires and  catch register","Data availabvle to WGEEL annually","National estimates of catch based on questionaires and  catch register","Routine","Annual","N","N","N","Y","N","N","N","Y","The estimation of annual catch and number for the sampling Year (N) is available in the year after (N+2). The survey is carried out as part of state statistics and is not financed by the DCF,  therefore the details of sampling design are not  available on the dcf platform."]
["POL","2020-2021","Inland waters","ICES","Salmo salar","Y","NA","N","Y","Y","Y","Anglers registers verified and modified by in situ questionnaires.","Only incidental catches of salmon are noted  in Polish rivers. There are no wild salmon populations.","National estimates of catch based on questionaires,  catch register, on-site survey","Routine","Annual","Y","Y","Y","Y","Y","Y","N","Y","Routine sampling from 2020 based on Pilot Study 2017-2019. "]
["POL","2020-2021","Inland waters","ICES","Salmo trutta","Y","NA","N","Y","Y","Y","Anglers registers verified and modified by in situ questionnaires.",null,"National estimates of catch based on questionaires,  catch register, on-site survey","Routine","Annual","Y","Y","Y","Y","Y","Y","N","Y","Routine sampling from 2020 based on Pilot Study 2017-2019. "]
["POL","2020-2021","Baltic Sea (ICES Subdivisions 22-32)","ICES","Salmo salar","Y","NA","N","Y","Y","Y","National estimates of numbers of trips; remote CCTV cameras in ports, on-site surveys; annual off-site surveys; catch per unit effort; catch composition.",null,"National estimates of numbers of trips; remote CCTV cameras in ports, on-site surveys; annual off-site surveys; catch per unit effort; catch composition.","Routine","Annual","Y","Y","Y","Y","Y","Y","Y","Y","Routine sampling from 2020 based on Pilot Study 201-2019. Methodology presented during ICES WGRFS meeting in 2018 https://www.ices.dk/sites/pub/Publication%20Reports/Expert%20Group%20Report/EOSG/2018/WGRFS/WGRFS_2018.pdf. Pilots Study results documented in the \"PS1-PL-2021 Report\"  presented to EC (https://dcf.mir.gdynia.pl/wp-content/uploads/2021/05/PS1-PL-2021_Report.pdf)"]
["POL","2020-2021","Baltic Sea (ICES Subdivisions 22-32)","ICES","Salmo trutta","Y","NA","N","Y","Y","Y","On-site surveys; off-site surveys; estimates of catch size; catch composition.",null,"On-site surveys; off-site surveys; estimates of catch size; catch composition.","Routine","Annual","Y","Y","Y","Y","Y","Y","Y","Y","Routine sampling from 2020 based on Pilot Study 201-2019. Methodology presented during ICES WGRFS meeting in 2018 https://www.ices.dk/sites/pub/Publication%20Reports/Expert%20Group%20Report/EOSG/2018/WGRFS/WGRFS_2018.pdf. Pilots Study results documented in the \"PS1-PL-2021 Report\"  presented to EC (https://dcf.mir.gdynia.pl/wp-content/uploads/2021/05/PS1-PL-2021_Report.pdf)"]
["POL","2020-2021","Baltic Sea (ICES Subdivisions 22-32)","ICES","Anguilla anguilla","Y","NA","N","Y","Y","Y","Off-site surveys; estimates of catch size; catch composition.",null,"Off-site surveys; estimates of catch size; catch composition.","Routine","Annual","Y","Y","Y","Y","Y","Y","Y","Y","Routine sampling from 2020 based on Pilot Study 201-2019. Methodology presented during ICES WGRFS meeting in 2018 https://www.ices.dk/sites/pub/Publication%20Reports/Expert%20Group%20Report/EOSG/2018/WGRFS/WGRFS_2018.pdf. Pilots Study results documented in the \"PS1-PL-2021 Report\"  presented to EC (https://dcf.mir.gdynia.pl/wp-content/uploads/2021/05/PS1-PL-2021_Report.pdf)"]

{"sheet":"Table1E Anadromous catadromous","index":4,"n_rows":18,"n_cols":21,"rows_kept":18,"cut":false,"hidden":false,"merged":[[3,18,4,18],[3,19,4,19],[3,20,4,20],[3,12,4,12],[3,13,4,13],[3,14,4,14],[3,15,4,15],[3,16,4,16],[3,17,4,17],[3,11,4,11],[3,0,4,0],[3,1,4,1],[3,2,4,2],[3,3,4,3],[3,4,4,4],[3,5,4,5],[3,6,4,6],[3,7,4,7],[3,8,4,8],[3,9,4,9],[3,10,4,10]]}
["Table 1E: Anadromous and catadromous species data collection in fresh water "]
[null,null,null,null,null,null,null,null,null,null,null,null,null,null,null,null,null,null,null,"WP  years","2020-2021"]
[null,null,null,null,null,null,null,null,null,null,null,null,null,null,null,null,null,null,null,"AR year",2020]
["MS","Sampling period","Area","RFMO/RFO/IO","Species","Applicable (Y/N)","Reasons for not sampling","Water Body","Life stage","Fishery / Independent data collection","Method","Unit","Planned nos","Frequency","Comments","Achieved numbers","% of achievement (100*P/M)","Reasons for non-conformity","Survey ID","Agreed at RCG level?","AR Comments"]
[]
["POL","2020-2021","ODER EMU","ICES","Anguilla anguilla","Y","NA","Inland - lakes","yellow","F","sampling","n.samples",100,"A","biological variables ",380,{"$f":"P6*100/M6","v":380},"Total Catch Measurement","POL-ELE-FRW-FYK-commercial fishing","N"]
["POL","2020-2021","VISTULA EMU","ICES","Anguilla anguilla","Y","NA","Inland - lakes","yellow","F","sampling","n.samples",100,"A","biological variables ",49,{"$f":"P7*100/M7","v":49},"Low fishing catches.","POL-ELE-FRW-FYK-commercial fishing","N"]
["POL","2020-2021","ODER EMU","ICES","Anguilla anguilla","Y","NA","Inland - lakes","silver","F","sampling","n.samples",150,"A","biological variables ",236,157.33333333333334,"Total Catch Measurement","POL-ELE-FRW-FYK-commercial fishing","N"]
["POL","2020-2021","VISTULA EMU","ICES","Anguilla anguilla","Y","NA","Inland - lakes","silver","F","sampling","n.samples",150,"A","biological variables ",159,106,null,"POL-ELE-FRW-FYK-commercial fishing","N"]
["POL","2020-2021","ODER EMU","ICES","Anguilla anguilla","Y","NA","Szczecin Lagoon","yellow","I","trap","n.sites",1,"A","yellow eel abundance",1,100,null,"POL-ELE-MAR-FYK-commercial fishing","N","This sampling refers to surveys  in marine waters (transitional)  and is also defined in Tables 1 C "]
["POL","2020-2021","VISTULA EMU","ICES","Anguilla anguilla","Y","NA","Vistula Lagoon","yellow","I","trap","n.sites",2,"A","yellow eel abundance",2,100,null,"POL-ELE-MAR-FYK-commercial fishing","N","This sampling refers to surveys  in marine waters (transitional)  and is also defined in Tables 1 C "]
["POL","2020-2021","ODER EMU","ICES","Anguilla anguilla","Y","NA","Inland - lakes","yellow","I","trap","n.sites",3,"A","yellow eel abundance",3,100,null,"POL-ELE-FRW-FYK-fishery-independent","N"]
["POL","2020-2021","VISTULA EMU","ICES","Anguilla anguilla","Y","NA","Inland - lakes","yellow","I","trap","n.sites",3,"A","yellow eel abundance",3,100,null,"POL-ELE-FRW-FYK-fishery-independent","N"]
["POL","2020-2021","ODER EMU","ICES","Anguilla anguilla","Y","NA","Pomeranian rivers","yellow","I","trap, eel ladder","n.sites",2,"A","abundance of recruits",2,100,null,"POL-ELE-FRW-FIX-fishery independant","N"]
["POL","2020-2021","Inland waters","ICES","Salmo trutta","Y","NA","Oder and Vistula RBD","adult","F","sampling","n.samples",100,"A","biological variables ",197,197,"All fish from the Rega fishery spot were measured","POL-TRS-FRW-FIX-commercial fishing","N"]
["POL","2020-2021","Inland waters","ICES","Salmo trutta","Y","NA","Pomeranian rivers","parr","I","electrofishing","n.sites",40,"A","parr density",40,100,null,"POL-TRS-FRW-MEL-fishery-independent","Y"]
["POL","2020-2021","Inland waters","ICES","Salmo trutta","Y","NA","Pomeranian rivers and Vistula river","adult","I","counters","n.sites",3,"A","adult abundance",3,{"$f":"P17*100/M17","v":100},null,"POL-ELE-FRW-FIX-fishery independant","N"]
["POL","2020-2021","Baltic Sea","ICES","Salmo salar","Y","Residual abundance, no index rivers","Pomeranian rivers","parr, adult","NA","NA","NA","NA","NA"," seeText box 1E","NA","NA","NA","NA","NA"]

{"sheet":"Table1F Incidental by catch","index":5,"n_rows":30,"n_cols":23,"rows_kept":30,"cut":false,"hidden":false,"merged":[[4,21,5,21],[4,22,5,22],[4,15,5,15],[4,16,5,16],[4,17,5,17],[4,18,5,18],[4,19,5,19],[4,20,5,20],[4,14,5,14],[3,15,3,19],[4,0,5,0],[4,1,5,1],[4,2,5,2],[4,3,5,3],[4,4,5,4],[4,5,5,5],[4,6,5,6],[4,7,5,7],[4,8,5,8],[4,9,5,9],[4,10,5,10],[4,11,5,11],[4,12,5,12],[4,13,5,13]]}
["Table 1F: Incidental by-catch of birds, mammals, reptiles and fish "]
[null,null,null,null,null,null,null,null,null,null,null,null,null,null,null,null,null,null,null,null,null,"WP  years","2020-2021"]
[null,null,null,null,null,null,null,null,null,null,null,null,null,null,null,null,null,null,null,null,null,"AR year",2020]
[null,null,null,null,null,null,null,null,null,null,null,null,null,null,null,"Has there be occurrence of bycatch?"]
["MS","Sampling period/year(s)","Region","RFMO/RFO/IO","Sub-area / Fishing ground","Scheme","Stratum ID code / Name of the survey","Group of vulnerable species","Expected occurence of recordings ","Comments","Total number of PSU in the sampling year","Achieved number of PSU in the sampling year","Number of PSU sampled in which observers have been instructed to look for bycatch","Does your sampling protocol allow for the calculation of observation effort “at haul level” (Y/N)","Is there any mitigation device? (Y/N) ","Fish (Y/N/NA)","Mammals (Y/N/NA)","Birds (Y/N/NA)","Reptiles (Y/N/NA)","Other (Y/N/NA)","Are data stored in a national database?","Are data stored in international database(s)?","AR Comments"]
[]
["POL","2020-2021","Baltic Sea (ICES areas III b-d) ","ICES","22-32","Baltic at sea and on shore","BAL VL0010","fish","X",null,21737,55,38,"Y","Y","Y","Y","Y","NA","Y","Y","Y","Acoustic deterrent devices for GNS and GTR. National database: NPZDRpl. International databases: ICES Bycatch DB"]
["POL","2020-2021","Baltic Sea (ICES areas III b-d) ","ICES","22-32","Baltic at sea and on shore","BAL VL0010","birds","X",null,21737,55,38,"Y","Y","Y","Y","Y","NA","Y","Y","Y","Acoustic deterrent devices for GNS and GTR. National database: NPZDRpl. International databases: ICES Bycatch DB"]
["POL","2020-2021","Baltic Sea (ICES areas III b-d) ","ICES","22-32","Baltic at sea and on shore","BAL VL0010","mammals","X",null,21737,55,38,"Y","Y","Y","Y","Y","NA","Y","Y","Y","Acoustic deterrent devices for GNS and GTR. National database: NPZDRpl. International databases: ICES Bycatch DB"]
["POL","2020-2021","Baltic Sea (ICES areas III b-d) ","ICES","22-32","Baltic at sea and on shore","BAL VL1012","fish","X",null,5228,10,4,"Y","Y","Y","Y","Y","NA","Y","Y","Y","Acoustic deterrent devices for GNS and GTR. National database: NPZDRpl. International databases: ICES Bycatch DB"]
["POL","2020-2021","Baltic Sea (ICES areas III b-d) ","ICES","22-32","Baltic at sea and on shore","BAL VL1012","birds","X",null,5228,10,4,"Y","Y","Y","Y","Y","NA","Y","Y","Y","Acoustic deterrent devices for GNS and GTR. National database: NPZDRpl. International databases: ICES Bycatch DB"]
["POL","2020-2021","Baltic Sea (ICES areas III b-d) ","ICES","22-32","Baltic at sea and on shore","BAL VL1012","mammals","X",null,5228,10,4,"Y","Y","Y","Y","Y","NA","Y","Y","Y","Acoustic deterrent devices for GNS and GTR. National database: NPZDRpl. International databases: ICES Bycatch DB"]
["POL","2020-2021","Baltic Sea (ICES areas III b-d) ","ICES","22-32","Baltic at sea and on shore","BAL VL1218","fish","X",null,1949,12,1,"Y","N","Y","Y","Y","NA","Y","Y","Y","National database: NPZDRpl. International databases: ICES Bycatch DB"]
["POL","2020-2021","Baltic Sea (ICES areas III b-d) ","ICES","22-32","Baltic at sea and on shore","BAL VL1218","birds","X",null,1949,12,1,"Y","N","Y","Y","Y","NA","Y","Y","Y","National database: NPZDRpl. International databases: ICES Bycatch DB"]
["POL","2020-2021","Baltic Sea (ICES areas III b-d) ","ICES","22-32","Baltic at sea and on shore","BAL VL1218","mammals","X",null,1949,12,1,"Y","N","Y","Y","Y","NA","Y","Y","Y","National database: NPZDRpl. International databases: ICES Bycatch DB"]
["POL","2020-2021","Baltic Sea (ICES areas III b-d) ","ICES","22-32","Baltic at sea and on shore","BAL VL1824","fish","X",null,2808,17,2,"Y","N","Y","Y","Y","NA","Y","Y","Y","National database: NPZDRpl. International databases: ICES Bycatch DB"]
["POL","2020-2021","Baltic Sea (ICES areas III b-d) ","ICES","22-32","Baltic at sea and on shore","BAL VL1824","birds","X",null,2808,17,2,"Y","N","Y","Y","Y","NA","Y","Y","Y","National database: NPZDRpl. International databases: ICES Bycatch DB"]
["POL","2020-2021","Baltic Sea (ICES areas III b-d) ","ICES","22-32","Baltic at sea and on shore","BAL VL1824","mammals","X",null,2808,17,2,"Y","N","Y","Y","Y","NA","Y","Y","Y","National database: NPZDRpl. International databases: ICES Bycatch DB"]
["POL","2020-2021","Baltic Sea (ICES areas III b-d) ","ICES","22-32","Baltic at sea and on shore","BAL VL2440","fish","X",null,2711,25,4,"Y","N","Y","Y","Y","NA","Y","Y","Y","National database: NPZDRpl. International databases: ICES Bycatch DB"]
["POL","2020-2021","Baltic Sea (ICES areas III b-d) ","ICES","22-32","Baltic at sea and on shore","BAL VL2440","birds","X",null,2711,25,4,"Y","N","Y","Y","Y","NA","Y","Y","Y","National database: NPZDRpl. International databases: ICES Bycatch DB"]
["POL","2020-2021","Baltic Sea (ICES areas III b-d) ","ICES","22-32","Baltic at sea and on shore","BAL VL2440","mammals","X",null,2711,25,4,"Y","N","Y","Y","Y","NA","Y","Y","Y","National database: NPZDRpl. International databases: ICES Bycatch DB"]
["POL","2020-2021","North Sea (ICES areas IIIa and IV), Eastern Arctic (ICES areas I and II) ","ICES","I, II","North Sea and Eastern Arctic at sea","NSEA","fish","X",null,7,0,0,"Y","Y","NA","NA","NA","NA","NA","NA","NA","Escape device. No sampling performed in 2020 due to COVID-19 (closed borders, restrictions in poeple movement, safaty issues). See Text Box 1C for details."]
["POL","2020-2021","North Sea (ICES areas IIIa and IV), Eastern Arctic (ICES areas I and II) ","ICES","I, II","North Sea and Eastern Arctic at sea","NSEA","birds","X",null,7,0,0,"Y","Y","NA","NA","NA","NA","NA","NA","NA","Escape device. No sampling performed in 2020 due to COVID-19 (closed borders, restrictions in poeple movement, safaty issues). See Text Box 1C for details."]
["POL","2020-2021","North Sea (ICES areas IIIa and IV), Eastern Arctic (ICES areas I and II) ","ICES","I, II","North Sea and Eastern Arctic at sea","NSEA","mammals","X",null,7,0,0,"Y","Y","NA","NA","NA","NA","NA","NA","NA","Escape device. No sampling performed in 2020 due to COVID-19 (closed borders, restrictions in poeple movement, safaty issues). See Text Box 1C for details."]
["POL","2020-2021","Other regions","CECAF","34.1.3, 34.3.1","Other fishing regions at sea","OFR1","fish","X",null,0,0,0,"Y","N","NA","NA","NA","NA","NA","NA","NA","No sampling performed in 2020 due to COVID-19 (closed borders, restrictions in poeple movement, safaty issues). See Text Box 1C for details."]
["POL","2020-2021","Other regions","CECAF","34.1.3, 34.3.1","Other fishing regions at sea","OFR1","mammals","X",null,0,0,0,"Y","N","NA","NA","NA","NA","NA","NA","NA","No sampling performed in 2020 due to COVID-19 (closed borders, restrictions in poeple movement, safaty issues). See Text Box 1C for details."]
["POL","2020-2021","Other regions","SPRFMO","SPRFMO Convention Area","Other fishing regions at sea","OFR2","fish","X",null,0,0,0,"Y","Y","NA","NA","NA","NA","NA","NA","NA","Bird Baffler -obligatory birds mitigation device in SPRFMO area. Data reported to SPRFMO Secretariat and Scientific Council. No EU fishing activity in SPRFMO area, hence no sampling in 2020."]
["POL","2020-2021","Other regions","SPRFMO","SPRFMO Convention Area","Other fishing regions at sea","OFR2","birds","X",null,0,0,0,"Y","Y","NA","NA","NA","NA","NA","NA","NA","Bird Baffler -obligatory birds mitigation device in SPRFMO area. Data reported to SPRFMO Secretariat and Scientific Council. No EU fishing activity in SPRFMO area, hence no sampling in 2020."]
["POL","2020-2021","Other regions","SPRFMO","SPRFMO Convention Area","Other fishing regions at sea","OFR2","mammals","X",null,0,0,0,"Y","Y","NA","NA","NA","NA","NA","NA","NA","Bird Baffler -obligatory birds mitigation device in SPRFMO area. Data reported to SPRFMO Secretariat and Scientific Council. No EU fishing activity in SPRFMO area, hence no sampling in 2020."]
["POL",2020,"Baltic Sea (ICES areas III b-d) ","ICES","22-32","self-sampling of small pelagic's","Pelagics_pilot","fish","X",null,1640,4,0,"N","N","N","N","N","N","N","NA","NA","New row. Sampling frame not included in the WP. Samples were collected as a part of Intersessional Subgroup 'Case study of fisheries for small pelagic's in the Baltic'. The data were collected in the three months period (February-April) in 2020"]

{"sheet":"Table1G List of research survey","index":6,"n_rows":10,"n_cols":27,"rows_kept":10,"cut":false,"hidden":false,"merged":[[1,17,1,19],[1,20,1,22],[2,17,2,19],[1,7,1,8],[1,9,1,10],[1,11,1,12],[1,13,1,14],[1,15,1,16]]}
["Table 1G: List of research surveys at sea"]
[null,null,null,null,null,null,null,null,null,null,null,null,null,null,null,null,null,null,null,null,null,null,null,null,null,"WP  years","2020-2021"]
[null,null,null,null,null,null,null,null,null,null,null,null,null,null,null,null,null,null,null,null,null,null,null,null,null,"AR year",2020]
["MS","Name of survey","Acronym ","Mandatory (Y/N)","Threshold (Y/N)","Agreed at RCG level","MS participation","Area(s)\ncovered","Period (Month)","Frequency","Days at sea planned","Type of sampling activities","Planned target ","Map","Relevant international planning group - RFMO/RFO/IO","International database","Comments","Type of MS participation","In case of financial participation, is payment done? (Y/N)","Days at sea achieved","Achieved target","Other data assimilations (Y/N)","Was the survey carried out within the official time period? (Y/N)","Was the survey carried out within the official survey area? (Y/N)","Indication if AR comments by MS are required concerning effort achieved","Indication if AR comments by MS are required concerning temporal and spatial coverage","AR Comments"]
["POL","Baltic International Trawl Survey","BITS Q1","Y","N","Y","DEU (E); DNK (E); LTU (E); LVA (E); SWE (E)","IIIb-d","February","Annual",28,"Fish Hauls",81,"Fig 1.1","ICES WGBIFS","DATRAS, TowData, ROSCOP","Number of planned days at sea and planned targets (no of hauls) may change between years subject to recommendations from WGBIFS","P",null,27,70,"N","Y","Y",null,null,"70 control hauls was recommended by the WGBIFS and all planned hauls were executed"]
["POL","Baltic International Trawl Survey","BITS Q4","Y","N","Y","DEU (E); DNK (E); LTU (E); LVA (E); SWE (E)","IIIb-d","November","Annual ",23,"Fish Hauls",60,"Fig 1.2","ICES WGBIFS","DATRAS, TowData, ROSCOP","Number of planned days at sea and planned targets (no of hauls) may change between years subject to recommendations from WGBIFS","P",null,21,62,"N","Y","Y",null,null,"62 control hauls was recommended by the WGBIFS and all planned hauls were executed"]
["POL","Baltic International Acoustic Survey (Autumn)","BIAS","Y","N","Y","DEU (E); DNK (C); EST (E); FIN (E); LTU (E); LVA (E); SWE (E)","IIIb-d","September","Annual ",18,"Echo Nm",830,"Fig 1.3","ICES WGBIFS","BIAS-DB","Number of planned days at sea and planned targets (no of hauls, Nm) may change between years subject to recommendations from WGBIFS","P",null,16,777,"N","Y","Y",null,null,"Realized length of echointegration transects according to WGBIFS recommendation (min. 60 Nm for area of 1000 square Nm)"]
["POL","Baltic International Acoustic Survey (Autumn)","BIAS","Y","N","Y","DEU (E); DNK (C); EST (E); FIN (E); LTU (E); LVA (E); SWE (E)","IIIb-d","September","Annual ",18,"Fish Hauls",35,"Fig 1.3","ICES WGBIFS","BIAS-DB","Number of planned days at sea and planned targets (no of hauls, Nm) may change between years subject to recommendations from WGBIFS","P",null,16,28,"N","Y","Y",null,null,"Executed No of control hauls according to WGBIFS recommendation (min. 2 hauls per ICES statistical rectangle)"]
["POL","Sprat Acoustic Survey","SPRAS","Y","N","Y","DEU (E); EST (E); LTU (E); LVA (E).","IIId","May","Annual ",12,"Echo Nm",830,"Fig 1.3","ICES WGBIFS","BASS-DB","Number of planned days at sea and planned targets (no of hauls, Nm) may change between years subject to recommendations from WGBIFS","P",null,11,750,"N","Y","Y",null,null,"Realized length of echointegration transects according to WGBIFS recommendation (min. 60 Nm for area of 1000 square Nm)"]
["POL","Sprat Acoustic Survey","SPRAS","Y","N","Y","DEU (E); EST (E); LTU (E); LVA (E).","IIId","May","Annual ",12,"Fish Hauls",35,"Fig 1.3","ICES WGBIFS","BASS-DB","Number of planned days at sea and planned targets (no of hauls, Nm) may change between years subject to recommendations from WGBIFS","P",null,11,30,"N","Y","Y",null,null,"Executed No of control hauls according to WGBIFS recommendation (min. 2 hauls per ICES statistical rectangle)"]

{"sheet":"Table1H Research survey data","index":7,"n_rows":22,"n_cols":13,"rows_kept":22,"cut":false,"hidden":false,"merged":[]}
["Table 1H: Research survey data collection and dissemination"]
[null,null,null,null,null,null,null,null,null,null,null,"WP  years","2020-2021"]
[null,null,null,null,null,null,null,null,null,null,null,"AR year",2020]
["MS","Name of survey","Acronym ","Type of data collected","Core/ Additional variable","Used as basis for advice (Y/N)","Comments","Was the sampling carried out? (Y/N/P)","Relevant International database","Was the data uploaded to the relevant database? (Y/N)","Other data assimilations? (Y/N)","Indication if AR comments are required by MS","AR comments"]
["POL","Baltic International Trawl Survey","BITS Q1","Biological data for Cod 25-32 and Flounder 22-32","C","Y",null,"Y","DATRAS, TowData, ROSCOP","Y","N"]
["POL","Baltic International Trawl Survey","BITS Q1","Cod stomach content","A","N",null,"Y","No existing database","N","N"]
["POL","Baltic International Trawl Survey","BITS Q1","CTD by haul","A","N",null,"Y","ICES Oceanographic DB; ICES - IROC","Y","N"]
["POL","Baltic International Trawl Survey","BITS Q1","Litter by haul","A","N",null,"Y","DATRAS ","Y","N"]
["POL","Baltic International Trawl Survey","BITS Q1","Marine mammal observations","A","N",null,"Y","No existing database","N","N"]
["POL","Baltic International Trawl Survey","BITS Q4","Biological data for Cod 25-32 and Flounder 22-32","C","Y",null,"Y","DATRAS, TowData, ROSCOP","Y","N"]
["POL","Baltic International Trawl Survey","BITS Q4","Cod stomach content","A","N",null,"Y","No existing database","N","N"]
["POL","Baltic International Trawl Survey","BITS Q4","CTD by haul","A","N",null,"Y","ICES Oceanographic DB; ICES - IROC","Y","N"]
["POL","Baltic International Trawl Survey","BITS Q4","Litter by haul","A","N",null,"Y","DATRAS ","Y","N"]
["POL","Baltic International Trawl Survey","BITS Q4","Marine mammal observations","A","N",null,"Y","No existing database","N","N"]
["POL","Baltic International Acoustic Survey (Autumn)","BIAS","Hydroacoustic data","C","Y",null,"Y","ICES Acoustic trawl surveys DB","Y","N"]
["POL","Baltic International Acoustic Survey (Autumn)","BIAS","Biological data for Herring 25-29 and Sprat 22-32","C","Y",null,"Y","ICES Acoustic trawl surveys DB","Y","N"]
["POL","Baltic International Acoustic Survey (Autumn)","BIAS","CTD by haul","A","N",null,"Y","ICES Oceanographic DB; ICES - IROC","Y","N"]
["POL","Baltic International Acoustic Survey (Autumn)","BIAS","Marine mammal observations","A","N",null,"Y","No existing database","N","N"]
["POL","Sprat Acoustic Survey","SPRAS","Hydroacoustic data","C","Y",null,"Y","ICES Acoustic trawl surveys DB","Y","N"]
["POL","Sprat Acoustic Survey","SPRAS","Biological data for Sprat 22-32","C","Y",null,"Y","ICES Acoustic trawl surveys DB","Y","N"]
["POL","Sprat Acoustic Survey","SPRAS","CTD by haul","A","N",null,"Y","ICES Oceanographic DB; ICES - IROC","Y","N"]
["POL","Sprat Acoustic Survey","SPRAS","Marine mammal observations","A","N",null,"Y","No existing database","N","N"]

{"sheet":"Table2A Fishing activity variab","index":8,"n_rows":78,"n_cols":20,"rows_kept":78,"cut":false,"hidden":false,"merged":[]}
["Table 2A: Fishing activity variables data collection strategy "]
[null,null,null,null,null,null,null,null,null,null,null,null,null,null,null,null,null,null,"WP  years","2020-2021"]
[null,null,null,null,null,null,null,null,null,null,null,null,null,null,null,null,null,null,"AR year",2020]
["MS","Supra region ","Region","Variable Group ","Variable","Fishing technique ","Length class ","Metiers (level 6)","Data collected  under control regulation appropriate for scientific use (Y/N/I)","Type of data collected under control regulation used to calculate the estimates ","Expected coverage of data collected under control regulation (% of fishing trips)","Additional data collection (Y/N)","Data collection scheme ","Planned coverage of data collected under complementary data collection (% of fishing trips)","Comments","Data collected  under control regulation accessible for scientific use (Y/N/I)","Data source for complementary data collection","Achieved coverage of data collected under complementary data collection ","Response Rate (%)","AR comments"]
["POL","Baltic Sea; North Sea; Eastern Arctic; NAFO; Extended North-Western waters (Ices areas V, VI and VII) and Southern Western waters","Baltic Sea (ICES areas III b-d)","Effort","Days at sea, Hours fished, Fishing days, kW*Fishing days, GT*Fishing days, Number of trips, Number of fishing operations","Demersal trawlers and/or demersal seiners","10-<12 m","All metiers","Y","Aggregated data from logbooks","100","N","None","NA",null,"Y","NA","NA","NA"]
["POL","Baltic Sea; North Sea; Eastern Arctic; NAFO; Extended North-Western waters (Ices areas V, VI and VII) and Southern Western waters","Baltic Sea (ICES areas III b-d)","Effort","Days at sea, Hours fished, Fishing days, kW*Fishing days, GT*Fishing days, Number of trips, Number of fishing operations","Demersal trawlers and/or demersal seiners","12-<18 m","All metiers","Y","Aggregated data from logbooks, VMS data","100","N","None","NA",null,"Y","NA","NA","NA"]
["POL","Baltic Sea; North Sea; Eastern Arctic; NAFO; Extended North-Western waters (Ices areas V, VI and VII) and Southern Western waters","Baltic Sea (ICES areas III b-d)","Effort","Days at sea, Hours fished, Fishing days, kW*Fishing days, GT*Fishing days, Number of trips, Number of fishing operations","Demersal trawlers and/or demersal seiners","18-<24 m","All metiers","Y","Aggregated data from logbooks, VMS data","100","N","None","NA",null,"Y","NA","NA","NA"]
["POL","Baltic Sea; North Sea; Eastern Arctic; NAFO; Extended North-Western waters (Ices areas V, VI and VII) and Southern Western waters","Baltic Sea (ICES areas III b-d)","Effort","Days at sea, Hours fished, Fishing days, kW*Fishing days, GT*Fishing days, Number of trips, Number of fishing operations","Demersal trawlers and/or demersal seiners","24-<40 m","All metiers","Y","Aggregated data from logbooks, VMS data","100","N","None","NA",null,"Y","NA","NA","NA"]
["POL","Baltic Sea; North Sea; Eastern Arctic; NAFO; Extended North-Western waters (Ices areas V, VI and VII) and Southern Western waters","Baltic Sea (ICES areas III b-d)","Capacity","Number of vessels, GT, kW, Vessel Age","Demersal trawlers and/or demersal seiners","10-<12 m","All metiers","Y","Aggregated data from logbooks, Fleet register","100","N","None","NA",null,"Y","NA","NA","NA"]
["POL","Baltic Sea; North Sea; Eastern Arctic; NAFO; Extended North-Western waters (Ices areas V, VI and VII) and Southern Western waters","Baltic Sea (ICES areas III b-d)","Capacity","Number of vessels, GT, kW, Vessel Age","Demersal trawlers and/or demersal seiners","12-<18 m","All metiers","Y","Aggregated data from logbooks, Fleet register","100","N","None","NA",null,"Y","NA","NA","NA"]
["POL","Baltic Sea; North Sea; Eastern Arctic; NAFO; Extended North-Western waters (Ices areas V, VI and VII) and Southern Western waters","Baltic Sea (ICES areas III b-d)","Capacity","Number of vessels, GT, kW, Vessel Age","Demersal trawlers and/or demersal seiners","18-<24 m","All metiers","Y","Aggregated data from logbooks, Fleet register","100","N","None","NA",null,"Y","NA","NA","NA"]
["POL","Baltic Sea; North Sea; Eastern Arctic; NAFO; Extended North-Western waters (Ices areas V, VI and VII) and Southern Western waters","Baltic Sea (ICES areas III b-d)","Capacity","Number of vessels, GT, kW, Vessel Age","Demersal trawlers and/or demersal seiners","24-<40 m","All metiers","Y","Aggregated data from logbooks, Fleet register","100","N","None","NA",null,"Y","NA","NA","NA"]
["POL","Baltic Sea; North Sea; Eastern Arctic; NAFO; Extended North-Western waters (Ices areas V, VI and VII) and Southern Western waters","Baltic Sea (ICES areas III b-d)","Landings","Value of landings total and per commercial species, Live Weight of landings total and per species, Prices by commercial species","Demersal trawlers and/or demersal seiners","10-<12 m","All metiers","Y","Aggregated data from logbooks and sales notes","100","N","None","NA",null,"Y","NA","NA","NA"]
["POL","Baltic Sea; North Sea; Eastern Arctic; NAFO; Extended North-Western waters (Ices areas V, VI and VII) and Southern Western waters","Baltic Sea (ICES areas III b-d)","Landings","Value of landings total and per commercial species, Live Weight of landings total and per species, Prices by commercial species","Demersal trawlers and/or demersal seiners","12-<18 m","All metiers","Y","Aggregated data from logbooks and sales notes, VMS data","100","N","None","NA",null,"Y","NA","NA","NA"]
["POL","Baltic Sea; North Sea; Eastern Arctic; NAFO; Extended North-Western waters (Ices areas V, VI and VII) and Southern Western waters","Baltic Sea (ICES areas III b-d)","Landings","Value of landings total and per commercial species, Live Weight of landings total and per species, Prices by commercial species","Demersal trawlers and/or demersal seiners","18-<24 m","All metiers","Y","Aggregated data from logbooks and sales notes, VMS data","100","N","None","NA",null,"Y","NA","NA","NA"]
["POL","Baltic Sea; North Sea; Eastern Arctic; NAFO; Extended North-Western waters (Ices areas V, VI and VII) and Southern Western waters","Baltic Sea (ICES areas III b-d)","Landings","Value of landings total and per commercial species, Live Weight of landings total and per species, Prices by commercial species","Demersal trawlers and/or demersal seiners","24-<40 m","All metiers","Y","Aggregated data from logbooks and sales notes, VMS data","100","N","None","NA",null,"Y","NA","NA","NA"]
["POL","Baltic Sea; North Sea; Eastern Arctic; NAFO; Extended North-Western waters (Ices areas V, VI and VII) and Southern Western waters","Baltic Sea (ICES areas III b-d)","Effort","Days at sea, Hours fished, Fishing days, kW*Fishing days, GT*Fishing days, Number of trips, Number of fishing operations","Pelagic trawlers","12-<18 m","All metiers","Y","Aggregated data from logbooks, VMS data","100","N","None","NA",null,"Y","NA","NA","NA"]
["POL","Baltic Sea; North Sea; Eastern Arctic; NAFO; Extended North-Western waters (Ices areas V, VI and VII) and Southern Western waters","Baltic Sea (ICES areas III b-d)","Effort","Days at sea, Hours fished, Fishing days, kW*Fishing days, GT*Fishing days, Number of trips, Number of fishing operations","Pelagic trawlers","18-<24 m","All metiers","Y","Aggregated data from logbooks, VMS data","100","N","None","NA",null,"Y","NA","NA","NA"]
["POL","Baltic Sea; North Sea; Eastern Arctic; NAFO; Extended North-Western waters (Ices areas V, VI and VII) and Southern Western waters","Baltic Sea (ICES areas III b-d)","Effort","Days at sea, Hours fished, Fishing days, kW*Fishing days, GT*Fishing days, Number of trips, Number of fishing operations","Pelagic trawlers","24-<40 m","All metiers","Y","Aggregated data from logbooks, VMS data","100","N","None","NA",null,"Y","NA","NA","NA"]
["POL","Baltic Sea; North Sea; Eastern Arctic; NAFO; Extended North-Western waters (Ices areas V, VI and VII) and Southern Western waters","Baltic Sea (ICES areas III b-d)","Capacity","Number of vessels, GT, kW, Vessel Age","Pelagic trawlers","12-<18 m","All metiers","Y","Aggregated data from logbooks, Fleet register","100","N","None","NA",null,"Y","NA","NA","NA"]
["POL","Baltic Sea; North Sea; Eastern Arctic; NAFO; Extended North-Western waters (Ices areas V, VI and VII) and Southern Western waters","Baltic Sea (ICES areas III b-d)","Capacity","Number of vessels, GT, kW, Vessel Age","Pelagic trawlers","18-<24 m","All metiers","Y","Aggregated data from logbooks, Fleet register","100","N","None","NA",null,"Y","NA","NA","NA"]
["POL","Baltic Sea; North Sea; Eastern Arctic; NAFO; Extended North-Western waters (Ices areas V, VI and VII) and Southern Western waters","Baltic Sea (ICES areas III b-d)","Capacity","Number of vessels, GT, kW, Vessel Age","Pelagic trawlers","24-<40 m","All metiers","Y","Aggregated data from logbooks, Fleet register","100","N","None","NA",null,"Y","NA","NA","NA"]
["POL","Baltic Sea; North Sea; Eastern Arctic; NAFO; Extended North-Western waters (Ices areas V, VI and VII) and Southern Western waters","Baltic Sea (ICES areas III b-d)","Landings","Value of landings total and per commercial species, Live Weight of landings total and per species, Prices by commercial species","Pelagic trawlers","12-<18 m","All metiers","Y","Aggregated data from logbooks and sales notes, VMS data","100","N","None","NA",null,"Y","NA","NA","NA"]
["POL","Baltic Sea; North Sea; Eastern Arctic; NAFO; Extended North-Western waters (Ices areas V, VI and VII) and Southern Western waters","Baltic Sea (ICES areas III b-d)","Landings","Value of landings total and per commercial species, Live Weight of landings total and per species, Prices by commercial species","Pelagic trawlers","18-<24 m","All metiers","Y","Aggregated data from logbooks and sales notes, VMS data","100","N","None","NA",null,"Y","NA","NA","NA"]
["POL","Baltic Sea; North Sea; Eastern Arctic; NAFO; Extended North-Western waters (Ices areas V, VI and VII) and Southern Western waters","Baltic Sea (ICES areas III b-d)","Landings","Value of landings total and per commercial species, Live Weight of landings total and per species, Prices by commercial species","Pelagic trawlers","24-<40 m","All metiers","Y","Aggregated data from logbooks and sales notes, VMS data","100","N","None","NA",null,"Y","NA","NA","NA"]
["POL","Baltic Sea; North Sea; Eastern Arctic; NAFO; Extended North-Western waters (Ices areas V, VI and VII) and Southern Western waters","Baltic Sea (ICES areas III b-d)","Effort","Days at sea, Hours fished, Fishing days, kW*Fishing days, GT*Fishing days, Number of trips, Number of nets","Drift and/or fixed netters","0-<10 m","All metiers","Y","Data from monthly catch reports","100","N","None","NA","Mesh size information is missing which causes difficulties in metier identification.","Y","NA","NA","NA"]
["POL","Baltic Sea; North Sea; Eastern Arctic; NAFO; Extended North-Western waters (Ices areas V, VI and VII) and Southern Western waters","Baltic Sea (ICES areas III b-d)","Effort","Days at sea, Hours fished, Fishing days, kW*Fishing days, GT*Fishing days, Number of trips, Number of fishing operations, Number of nets","Drift and/or fixed netters","10-<12 m","All metiers","Y","Aggregated data from logbooks","100","N","None","NA",null,"Y","NA","NA","NA"]
["POL","Baltic Sea; North Sea; Eastern Arctic; NAFO; Extended North-Western waters (Ices areas V, VI and VII) and Southern Western waters","Baltic Sea (ICES areas III b-d)","Effort","Days at sea, Hours fished, Fishing days, kW*Fishing days, GT*Fishing days, Number of trips, Number of fishing operations, Number of nets","Drift and/or fixed netters","12-<18 m","All metiers","Y","Aggregated data from logbooks, VMS data","100","N","None","NA",null,"Y","NA","NA","NA"]
["POL","Baltic Sea; North Sea; Eastern Arctic; NAFO; Extended North-Western waters (Ices areas V, VI and VII) and Southern Western waters","Baltic Sea (ICES areas III b-d)","Capacity","Number of vessels, GT, kW, Vessel Age","Drift and/or fixed netters","0-<10 m","All metiers","Y","Data from monthly catch reports, Fleet register","100","N","None","NA","Mesh size information is missing which causes difficulties in metier identification.","Y","NA","NA","NA"]
["POL","Baltic Sea; North Sea; Eastern Arctic; NAFO; Extended North-Western waters (Ices areas V, VI and VII) and Southern Western waters","Baltic Sea (ICES areas III b-d)","Capacity","Number of vessels, GT, kW, Vessel Age","Drift and/or fixed netters","10-<12 m","All metiers","Y","Aggregated data from logbooks, Fleet register","100","N","None","NA",null,"Y","NA","NA","NA"]
["POL","Baltic Sea; North Sea; Eastern Arctic; NAFO; Extended North-Western waters (Ices areas V, VI and VII) and Southern Western waters","Baltic Sea (ICES areas III b-d)","Capacity","Number of vessels, GT, kW, Vessel Age","Drift and/or fixed netters","12-<18 m","All metiers","Y","Aggregated data from logbooks, Fleet register","100","N","None","NA",null,"Y","NA","NA","NA"]
["POL","Baltic Sea; North Sea; Eastern Arctic; NAFO; Extended North-Western waters (Ices areas V, VI and VII) and Southern Western waters","Baltic Sea (ICES areas III b-d)","Landings","Value of landings total and per commercial species, Live Weight of landings total and per species, Prices by commercial species","Drift and/or fixed netters","0-<10 m","All metiers","Y","Data from monthly catch reports ad sales notes","100","N","None","NA","Mesh size information is missing which causes difficulties in metier identification.","Y","NA","NA","NA","Limited access to sales notes which are stored in a paper form. "]
["POL","Baltic Sea; North Sea; Eastern Arctic; NAFO; Extended North-Western waters (Ices areas V, VI and VII) and Southern Western waters","Baltic Sea (ICES areas III b-d)","Landings","Value of landings total and per commercial species, Live Weight of landings total and per species, Prices by commercial species","Drift and/or fixed netters","10-<12 m","All metiers","Y","Aggregated data from logbooks and sales notes","100","N","None","NA",null,"Y","NA","NA","NA"]
["POL","Baltic Sea; North Sea; Eastern Arctic; NAFO; Extended North-Western waters (Ices areas V, VI and VII) and Southern Western waters","Baltic Sea (ICES areas III b-d)","Landings","Value of landings total and per commercial species, Live Weight of landings total and per species, Prices by commercial species","Drift and/or fixed netters","12-<18 m","All metiers","Y","Aggregated data from logbooks and sales notes, VMS data","100","N","None","NA",null,"Y","NA","NA","NA"]
["POL","Baltic Sea; North Sea; Eastern Arctic; NAFO; Extended North-Western waters (Ices areas V, VI and VII) and Southern Western waters","Baltic Sea (ICES areas III b-d)","Effort","Days at sea, Hours fished, Fishing days, kW*Fishing days, GT*Fishing days, Number of trips, Number of pots/traps","Vessels using Pots and/or traps","0-<10 m","All metiers","Y","Data from monthly catch reports","100","N","None","NA","Mesh size information is missing which causes difficulties in metier identification.","Y","NA","NA","NA"]
["POL","Baltic Sea; North Sea; Eastern Arctic; NAFO; Extended North-Western waters (Ices areas V, VI and VII) and Southern Western waters","Baltic Sea (ICES areas III b-d)","Effort","Days at sea, Hours fished, Fishing days, kW*Fishing days, GT*Fishing days, Number of trips, Number of fishing operations, Number of pots/traps","Vessels using Pots and/or traps","10-<12 m","All metiers","Y","Aggregated data from logbooks","100","N","None","NA",null,"Y","NA","NA","NA"]
["POL","Baltic Sea; North Sea; Eastern Arctic; NAFO; Extended North-Western waters (Ices areas V, VI and VII) and Southern Western waters","Baltic Sea (ICES areas III b-d)","Capacity","Number of vessels, GT, kW, Vessel Age","Vessels using Pots and/or traps","0-<10 m","All metiers","Y","Data from monthly catch reports, Fleet register","100","N","None","NA","Mesh size information is missing which causes difficulties in metier identification.","Y","NA","NA","NA"]
["POL","Baltic Sea; North Sea; Eastern Arctic; NAFO; Extended North-Western waters (Ices areas V, VI and VII) and Southern Western waters","Baltic Sea (ICES areas III b-d)","Capacity","Number of vessels, GT, kW, Vessel Age","Vessels using Pots and/or traps","10-<12 m","All metiers","Y","Aggregated data from logbooks, Fleet register","100","N","None","NA",null,"Y","NA","NA","NA"]
["POL","Baltic Sea; North Sea; Eastern Arctic; NAFO; Extended North-Western waters (Ices areas V, VI and VII) and Southern Western waters","Baltic Sea (ICES areas III b-d)","Landings","Value of landings total and per commercial species, Live Weight of landings total and per species, Prices by commercial species","Vessels using Pots and/or traps","0-<10 m","All metiers","Y","Data from monthly catch reports ad sales notes","100","N","None","NA","Mesh size information is missing which causes difficulties in metier identification.","Y","NA","NA","NA"," Limited access to sales notes which are stored in a paper form."]
["POL","Baltic Sea; North Sea; Eastern Arctic; NAFO; Extended North-Western waters (Ices areas V, VI and VII) and Southern Western waters","Baltic Sea (ICES areas III b-d)","Landings","Value of landings total and per commercial species, Live Weight of landings total and per species, Prices by commercial species","Vessels using Pots and/or traps","10-<12 m","All metiers","Y","Aggregated data from logbooks and sales notes","100","N","None","NA",null,"Y","NA","NA","NA"]
["POL","Baltic Sea; North Sea; Eastern Arctic; NAFO; Extended North-Western waters (Ices areas V, VI and VII) and Southern Western waters","Baltic Sea (ICES areas III b-d)","Effort","Days at sea, Hours fished, Fishing days, kW*Fishing days, GT*Fishing days, Number of trips, Number of hooks","Vessels using hooks","0-<10 m","All metiers","Y","Data from monthly catch reports","100","N","None","NA","Mesh size information is missing which causes difficulties in metier identification.","Y","NA","NA","NA"]
["POL","Baltic Sea; North Sea; Eastern Arctic; NAFO; Extended North-Western waters (Ices areas V, VI and VII) and Southern Western waters","Baltic Sea (ICES areas III b-d)","Effort","Days at sea, Hours fished, Fishing days, kW*Fishing days, GT*Fishing days, Number of trips, Number of fishing operations, Number of hooks","Vessels using hooks","10-<12 m","All metiers","Y","Aggregated data from logbooks","100","N","None","NA",null,"Y","NA","NA","NA"]
["POL","Baltic Sea; North Sea; Eastern Arctic; NAFO; Extended North-Western waters (Ices areas V, VI and VII) and Southern Western waters","Baltic Sea (ICES areas III b-d)","Effort","Days at sea, Hours fished, Fishing days, kW*Fishing days, GT*Fishing days, Number of trips, Number of fishing operations, Number of hooks","Vessels using hooks","12-<18 m","All metiers","Y","Aggregated data from logbooks, VMS data","100","N","None","NA",null,"Y","NA","NA","NA"]
["POL","Baltic Sea; North Sea; Eastern Arctic; NAFO; Extended North-Western waters (Ices areas V, VI and VII) and Southern Western waters","Baltic Sea (ICES areas III b-d)","Effort","Days at sea, Hours fished, Fishing days, kW*Fishing days, GT*Fishing days, Number of trips, Number of fishing operations, Number of hooks","Vessels using hooks","18-<24 m","All metiers","Y","Aggregated data from logbooks, VMS data","100","N","None","NA",null,null,null,null,null,"Segment did not exist in 2019. "]
["POL","Baltic Sea; North Sea; Eastern Arctic; NAFO; Extended North-Western waters (Ices areas V, VI and VII) and Southern Western waters","Baltic Sea (ICES areas III b-d)","Capacity","Number of vessels, GT, kW, Vessel Age","Vessels using hooks","0-<10 m","All metiers","Y","Data from monthly catch reports, Fleet register","100","N","None","NA","Mesh size information is missing which causes difficulties in metier identification.","Y","NA","NA","NA"]
["POL","Baltic Sea; North Sea; Eastern Arctic; NAFO; Extended North-Western waters (Ices areas V, VI and VII) and Southern Western waters","Baltic Sea (ICES areas III b-d)","Capacity","Number of vessels, GT, kW, Vessel Age","Vessels using hooks","10-<12 m","All metiers","Y","Aggregated data from logbooks, Fleet register","100","N","None","NA",null,"Y","NA","NA","NA"]
["POL","Baltic Sea; North Sea; Eastern Arctic; NAFO; Extended North-Western waters (Ices areas V, VI and VII) and Southern Western waters","Baltic Sea (ICES areas III b-d)","Capacity","Number of vessels, GT, kW, Vessel Age","Vessels using hooks","12-<18 m","All metiers","Y","Aggregated data from logbooks, Fleet register","100","N","None","NA",null,"Y","NA","NA","NA"]
["POL","Baltic Sea; North Sea; Eastern Arctic; NAFO; Extended North-Western waters (Ices areas V, VI and VII) and Southern Western waters","Baltic Sea (ICES areas III b-d)","Capacity","Number of vessels, GT, kW, Vessel Age","Vessels using hooks","18-<24 m","All metiers","Y","Aggregated data from logbooks, Fleet register","100","N","None","NA",null,null,null,null,null,"Segment did not exist in 2019. "]
["POL","Baltic Sea; North Sea; Eastern Arctic; NAFO; Extended North-Western waters (Ices areas V, VI and VII) and Southern Western waters","Baltic Sea (ICES areas III b-d)","Landings","Value of landings total and per commercial species, Live Weight of landings total and per species, Prices by commercial species","Vessels using hooks","0-<10 m","All metiers","Y","Data from monthly catch reports ad sales notes","100","N","None","NA","Mesh size information is missing which causes difficulties in metier identification.","Y","NA","NA","NA"]
["POL","Baltic Sea; North Sea; Eastern Arctic; NAFO; Extended North-Western waters (Ices areas V, VI and VII) and Southern Western waters","Baltic Sea (ICES areas III b-d)","Landings","Value of landings total and per commercial species, Live Weight of landings total and per species, Prices by commercial species","Vessels using hooks","10-<12 m","All metiers","Y","Aggregated data from logbooks and sales notes","100","N","None","NA",null,"Y","NA","NA","NA"]
["POL","Baltic Sea; North Sea; Eastern Arctic; NAFO; Extended North-Western waters (Ices areas V, VI and VII) and Southern Western waters","Baltic Sea (ICES areas III b-d)","Landings","Value of landings total and per commercial species, Live Weight of landings total and per species, Prices by commercial species","Vessels using hooks","12-<18 m","All metiers","Y","Aggregated data from logbooks and sales notes, VMS data","100","N","None","NA",null,"Y","NA","NA","NA"]
["POL","Baltic Sea; North Sea; Eastern Arctic; NAFO; Extended North-Western waters (Ices areas V, VI and VII) and Southern Western waters","Baltic Sea (ICES areas III b-d)","Landings","Value of landings total and per commercial species, Live Weight of landings total and per species, Prices by commercial species","Vessels using hooks","18-<24 m","All metiers","Y","Aggregated data from logbooks and sales notes, VMS data","100","N","None","NA",null,null,null,null,null,"Segment did not exist in 2019. "]
["POL","Baltic Sea; North Sea; Eastern Arctic; NAFO; Extended North-Western waters (Ices areas V, VI and VII) and Southern Western waters","North Sea (ICES areas IIIa and IV), Eastern Arctic (ICES areas I and II)","Effort","Days at sea, Hours fished, Fishing days, kW*Fishing days, GT*Fishing days, Number of trips, Number of fishing operations","Demersal trawlers and/or demersal seiners","40 m or larger","All metiers","Y","Aggregated data from logbooks, VMS data","100","N","None","NA",null,"Y","NA","NA","NA"]
["POL","Baltic Sea; North Sea; Eastern Arctic; NAFO; Extended North-Western waters (Ices areas V, VI and VII) and Southern Western waters","North Sea (ICES areas IIIa and IV), Eastern Arctic (ICES areas I and II)","Capacity","Number of vessels, GT, kW, Vessel Age","Demersal trawlers and/or demersal seiners","40 m or larger","All metiers","Y","Aggregated data from logbooks, Fleet register","100","N","None","NA",null,"Y","NA","NA","NA"]
["POL","Baltic Sea; North Sea; Eastern Arctic; NAFO; Extended North-Western waters (Ices areas V, VI and VII) and Southern Western waters","North Sea (ICES areas IIIa and IV), Eastern Arctic (ICES areas I and II)","Landings","Live Weight of landings total and per species","Demersal trawlers and/or demersal seiners","40 m or larger","All metiers","Y","Aggregated data from logbooks and sales notes, VMS data","100","N","None","NA",null,"Y","NA","NA","NA"]
["POL","Baltic Sea; North Sea; Eastern Arctic; NAFO; Extended North-Western waters (Ices areas V, VI and VII) and Southern Western waters","North-Western waters (ICES areas Vb (only Union waters), VI and VII)","Effort","Days at sea, Hours fished, Fishing days, kW*Fishing days, GT*Fishing days, Number of trips, Number of fishing operations","Pelagic trawlers","40 m or larger","All metiers","Y","Aggregated data from logbooks, VMS data","100","N","None","NA",null,"Y","NA","NA","NA"]
["POL","Baltic Sea; North Sea; Eastern Arctic; NAFO; Extended North-Western waters (Ices areas V, VI and VII) and Southern Western waters","North-Western waters (ICES areas Vb (only Union waters), VI and VII)","Capacity","Number of vessels, GT, kW, Vessel Age","Pelagic trawlers","40 m or larger","All metiers","Y","Aggregated data from logbooks, Fleet register","100","N","None","NA",null,"Y","NA","NA","NA"]
["POL","Baltic Sea; North Sea; Eastern Arctic; NAFO; Extended North-Western waters (Ices areas V, VI and VII) and Southern Western waters","North-Western waters (ICES areas Vb (only Union waters), VI and VII)","Landings","Live Weight of landings total and per species","Pelagic trawlers","40 m or larger","All metiers","Y","Aggregated data from logbooks and sales notes, VMS data","100","N","None","NA",null,"Y","NA","NA","NA"]
["POL","Other regions","CECAF","Effort","Days at sea, Hours fished, Fishing days, kW*Fishing days, GT*Fishing days, Number of trips, Number of fishing operations","Pelagic trawlers","40 m or larger","All metiers","Y","Aggregated data from logbooks, VMS data","100","N","None","NA",null,null,null,null,null,"Segment did not exist in 2019. "]
["POL","Other regions","CECAF","Capacity","Number of vessels, GT, kW, Vessel Age","Pelagic trawlers","40 m or larger","All metiers","Y","Aggregated data from logbooks, Fleet register","100","N","None","NA",null,null,null,null,null,"Segment did not exist in 2019. "]
["POL","Other regions","CECAF","Landings","Live Weight of landings total and per species","Pelagic trawlers","40 m or larger","All metiers","Y","Aggregated data from logbooks and sales notes, VMS data","100","N","None","NA",null,null,null,null,null,"Segment did not exist in 2019. "]
["POL","Other regions","SPRFMO","Effort","Days at sea, Hours fished, Fishing days, kW*Fishing days, GT*Fishing days, Number of trips, Number of fishing operations","Pelagic trawlers","40 m or larger","All metiers","Y","Aggregated data from logbooks, VMS data","100","N","None","NA",null,"Y","NA","NA","NA"]
["POL","Other regions","SPRFMO","Capacity","Number of vessels, GT, kW, Vessel Age","Pelagic trawlers","40 m or larger","All metiers","Y","Aggregated data from logbooks, Fleet register","100","N","None","NA",null,"Y","NA","NA","NA"]
["POL","Other regions","SPRFMO","Landings","Live Weight of landings total and per species","Pelagic trawlers","40 m or larger","All metiers","Y","Aggregated data from logbooks and sales notes, VMS data","100","N","None","NA",null,"Y","NA","NA","NA"]
["POL","Baltic Sea; North Sea; Eastern Arctic; NAFO; Extended North-Western waters (Ices areas V, VI and VII) and Southern Western waters","Baltic Sea (ICES areas III b-d)","Capacity","Number of vessels, GT, kW, Vessel Age","Inactive","0-<10","NA","Y","Data from monthly catch reports, Fleet register","100","N","None","NA",null,"Y","NA","NA","NA"]
["POL","Baltic Sea; North Sea; Eastern Arctic; NAFO; Extended North-Western waters (Ices areas V, VI and VII) and Southern Western waters","Baltic Sea (ICES areas III b-d)","Capacity","Number of vessels, GT, kW, Vessel Age","Inactive","10-<12","NA","Y","Aggregated data from logbooks, Fleet register","100","N","None","NA",null,"Y","NA","NA","NA"]
["POL","Baltic Sea; North Sea; Eastern Arctic; NAFO; Extended North-Western waters (Ices areas V, VI and VII) and Southern Western waters","Baltic Sea (ICES areas III b-d)","Capacity","Number of vessels, GT, kW, Vessel Age","Inactive","12-<18","NA","Y","Aggregated data from logbooks, Fleet register","100","N","None","NA",null,"Y","NA","NA","NA"]
["POL","Baltic Sea; North Sea; Eastern Arctic; NAFO; Extended North-Western waters (Ices areas V, VI and VII) and Southern Western waters","Baltic Sea (ICES areas III b-d)","Capacity","Number of vessels, GT, kW, Vessel Age","Inactive","18-<24","NA","Y","Aggregated data from logbooks, Fleet register","100","N","None","NA",null,"Y","NA","NA","NA"]
["POL","Baltic Sea; North Sea; Eastern Arctic; NAFO; Extended North-Western waters (Ices areas V, VI and VII) and Southern Western waters","Baltic Sea (ICES areas III b-d)","Capacity","Number of vessels, GT, kW, Vessel Age","Inactive","24-<40","NA","Y","Aggregated data from logbooks, Fleet register","100","N","None","NA",null,"Y","NA","NA","NA"]
["POL","Baltic Sea; North Sea; Eastern Arctic; NAFO; Extended North-Western waters (Ices areas V, VI and VII) and Southern Western waters","North Sea (ICES areas IIIa and IV)","Effort","Days at sea, Hours fished, Fishing days, kW*Fishing days, GT*Fishing days, Number of trips, Number of fishing operations, Number of pots/traps","Vessels using Pots and/or traps","24-<40 m","All metiers","Y","Aggregated data from logbooks, VMS data",100,"N","None","NA",null,"Y","NA","NA","NA","New row. Segment was not included in WP"]
["POL","Baltic Sea; North Sea; Eastern Arctic; NAFO; Extended North-Western waters (Ices areas V, VI and VII) and Southern Western waters","North Sea (ICES areas IIIa and IV)","Capacity","Number of vessels, GT, kW, Vessel Age","Vessels using Pots and/or traps","24-<40 m","All metiers","Y","Fleet register",100,"N","None","NA",null,"Y","NA","NA","NA","New row. Segment was not included in WP"]
["POL","Baltic Sea; North Sea; Eastern Arctic; NAFO; Extended North-Western waters (Ices areas V, VI and VII) and Southern Western waters","North Sea (ICES areas IIIa and IV)","Landings","Value of landings total and per commercial species, Live Weight of landings total and per species, Prices by commercial species","Vessels using Pots and/or traps","24-<40 m","All metiers","Y","Aggregated data from logbooks and sales notes, VMS data",100,"N","None","NA",null,"Y","NA","NA","NA","New row. Segment was not included in WP"]
["POL","Baltic Sea; North Sea; Eastern Arctic; NAFO; Extended North-Western waters (Ices areas V, VI and VII) and Southern Western waters","Baltic Sea (ICES areas III b-d)","Effort","Days at sea, Hours fished, Fishing days, kW*Fishing days, GT*Fishing days, Number of trips, Number of fishing operations, Number of nets","Drift and/or fixed netters","18-<24 m","All metiers","Y","Aggregated data from logbooks, VMS data",100,"N","None","NA",null,"Y","NA","NA","NA","New row. Segment was not included in WP"]
["POL","Baltic Sea; North Sea; Eastern Arctic; NAFO; Extended North-Western waters (Ices areas V, VI and VII) and Southern Western waters","Baltic Sea (ICES areas III b-d)","Capacity","Number of vessels, GT, kW, Vessel Age","Drift and/or fixed netters","18-<24 m","All metiers","Y","Aggregated data from logbooks, Fleet register",100,"N","None","NA",null,"Y","NA","NA","NA","New row. Segment was not included in WP"]
["POL","Baltic Sea; North Sea; Eastern Arctic; NAFO; Extended North-Western waters (Ices areas V, VI and VII) and Southern Western waters","Baltic Sea (ICES areas III b-d)","Landings","Value of landings total and per commercial species, Live Weight of landings total and per species, Prices by commercial species","Drift and/or fixed netters","18-<24 m","All metiers","Y","Aggregated data from logbooks and sales notes, VMS data",100,"N","None","NA",null,"Y","NA","NA","NA","New row. Segment was not included in WP"]
["POL","Baltic Sea; North Sea; Eastern Arctic; NAFO; Extended North-Western waters (Ices areas V, VI and VII) and Southern Western waters","Baltic Sea (ICES areas III b-d)","Effort","Days at sea, Hours fished, Fishing days, kW*Fishing days, GT*Fishing days, Number of trips, Number of fishing operations, Number of nets","Vessels using polyvalent active gears","18-<24 m","All metiers","Y","Aggregated data from logbooks, VMS data",100,"N","None","NA",null,"Y","NA","NA","NA","New row. Segment was not included in WP"]
["POL","Baltic Sea; North Sea; Eastern Arctic; NAFO; Extended North-Western waters (Ices areas V, VI and VII) and Southern Western waters","Baltic Sea (ICES areas III b-d)","Capacity","Number of vessels, GT, kW, Vessel Age","Vessels using polyvalent active gears","18-<24 m","All metiers","Y","Aggregated data from logbooks, Fleet register",100,"N","None","NA",null,"Y","NA","NA","NA","New row. Segment was not included in WP"]
["POL","Baltic Sea; North Sea; Eastern Arctic; NAFO; Extended North-Western waters (Ices areas V, VI and VII) and Southern Western waters","Baltic Sea (ICES areas III b-d)","Landings","Value of landings total and per commercial species, Live Weight of landings total and per species, Prices by commercial species","Vessels using polyvalent active gears","18-<24 m","All metiers","Y","Aggregated data from logbooks and sales notes, VMS data",100,"N","None","NA",null,"Y","NA","NA","NA","New row. Segment was not included in WP"]

{"sheet":"Table3A  Pop segment fisheries","index":9,"n_rows":402,"n_cols":18,"rows_kept":402,"cut":false,"hidden":false,"merged":[]}
["Table 3A: Population segments for collection of economic and social data for fisheries"]
[null,null,null,null,null,null,null,null,null,null,null,null,null,null,null,null,"WP  years","2020-2021"]
[null,null,null,null,null,null,null,null,null,null,null,null,null,null,null,null,"AR year",2020]
["MS","Supra region ","Fishing technique ","Length class ","Cluster Name","Type of variables (E/S)","Variable","Data Source","Type of data collection scheme ","Frequency","Planned sample rate % ","Comments","Frame population","Achieved sample number","Achieved Sample Rate %","Response Rate %","Achieved Sample no/Planned sample no.","AR Comments"]
["POL","Baltic Sea, North Sea and Eastern Arctic, and North Atlantic","Vessels using Polyvalent ‘passive’ gears only","00-<10 m",null,"E","Gross value of landings","questionnaires","A - Census","Every Year",1,null,517,517,{"$f":"N5/M5","v":1},100,{"$f":"N5/(M5*K5/100)","v":100}]
["POL","Baltic Sea, North Sea and Eastern Arctic, and North Atlantic","Vessels using Polyvalent ‘passive’ gears only","00-<10 m",null,"E","Income from leasing out quota or other fishing rights","not relevant",null,null,null,null,"N/A","N/A","N/A","N/A","N/A"]
["POL","Baltic Sea, North Sea and Eastern Arctic, and North Atlantic","Vessels using Polyvalent ‘passive’ gears only","00-<10 m",null,"E","Other income","questionnaires","A - Census","Every Year",1,null,517,271,{"$f":"N7/M7","v":0.52417794970986464},0.52417794970986464,{"$f":"N7/(M7*K7/100)","v":52.417794970986463}]
["POL","Baltic Sea, North Sea and Eastern Arctic, and North Atlantic","Vessels using Polyvalent ‘passive’ gears only","00-<10 m",null,"E","Personnel costs","questionnaires","A - Census","Every Year",1,null,517,271,0.52417794970986464,0.52417794970986464,52.417794970986463]
["POL","Baltic Sea, North Sea and Eastern Arctic, and North Atlantic","Vessels using Polyvalent ‘passive’ gears only","00-<10 m",null,"E","Value of unpaid labour","estimation","D - Indirect survey","Every Year",1,"starting collection every year in 2021",517,271,0.52417794970986464,0.52417794970986464,52.417794970986463]
["POL","Baltic Sea, North Sea and Eastern Arctic, and North Atlantic","Vessels using Polyvalent ‘passive’ gears only","00-<10 m",null,"E","Energy costs","questionnaires","A - Census","Every Year",1,null,517,271,0.52417794970986464,0.52417794970986464,52.417794970986463]
["POL","Baltic Sea, North Sea and Eastern Arctic, and North Atlantic","Vessels using Polyvalent ‘passive’ gears only","00-<10 m",null,"E","Repair and maintenance costs","questionnaires","A - Census","Every Year",1,null,517,271,0.52417794970986464,0.52417794970986464,52.417794970986463]
["POL","Baltic Sea, North Sea and Eastern Arctic, and North Atlantic","Vessels using Polyvalent ‘passive’ gears only","00-<10 m",null,"E","Variable costs","questionnaires","A - Census","Every Year",1,null,517,271,0.52417794970986464,0.52417794970986464,52.417794970986463]
["POL","Baltic Sea, North Sea and Eastern Arctic, and North Atlantic","Vessels using Polyvalent ‘passive’ gears only","00-<10 m",null,"E","Non-variable costs","questionnaires","A - Census","Every Year",1,null,517,271,0.52417794970986464,0.52417794970986464,52.417794970986463]
["POL","Baltic Sea, North Sea and Eastern Arctic, and North Atlantic","Vessels using Polyvalent ‘passive’ gears only","00-<10 m",null,"E","Lease/rental payments for quota or other fishing rights","questionnaires","A - Census","Every Year",1,null,"N/A","N/A","N/A","N/A","N/A"]
["POL","Baltic Sea, North Sea and Eastern Arctic, and North Atlantic","Vessels using Polyvalent ‘passive’ gears only","00-<10 m",null,"E","Operating Subsidies","questionnaires &\nadministrative data base","A - Census","Every Year",1,null,517,271,0.52417794970986464,0.52417794970986464,52.417794970986463]
["POL","Baltic Sea, North Sea and Eastern Arctic, and North Atlantic","Vessels using Polyvalent ‘passive’ gears only","00-<10 m",null,"E","Subsidies on investments","questionnaires &\nadministrative data base","A - Census","Every Year",1,null,517,271,0.52417794970986464,0.52417794970986464,52.417794970986463]
["POL","Baltic Sea, North Sea and Eastern Arctic, and North Atlantic","Vessels using Polyvalent ‘passive’ gears only","00-<10 m",null,"E","Consumption of fixed capital","questionnaires","A - Census","Every Year",1,null,517,271,0.52417794970986464,0.52417794970986464,52.417794970986463]
["POL","Baltic Sea, North Sea and Eastern Arctic, and North Atlantic","Vessels using Polyvalent ‘passive’ gears only","00-<10 m",null,"E","Value of physical capital","questionnaires & scraping premium","D - Indirect survey","Every Year",1,null,517,271,0.52417794970986464,0.52417794970986464,52.417794970986463]
["POL","Baltic Sea, North Sea and Eastern Arctic, and North Atlantic","Vessels using Polyvalent ‘passive’ gears only","00-<10 m",null,"E","Value of quota and other fishing rights","not relevant",null,null,null,null,"N/A","N/A","N/A","N/A","N/A"]
["POL","Baltic Sea, North Sea and Eastern Arctic, and North Atlantic","Vessels using Polyvalent ‘passive’ gears only","00-<10 m",null,"E","Investments in tangible assets, net","questionnaires","A - Census","Every Year",1,null,517,271,0.52417794970986464,0.52417794970986464,52.417794970986463]
["POL","Baltic Sea, North Sea and Eastern Arctic, and North Atlantic","Vessels using Polyvalent ‘passive’ gears only","00-<10 m",null,"E","Long/short Debt","questionnaires","A - Census","Every Year",1,null,517,271,0.52417794970986464,0.52417794970986464,52.417794970986463]
["POL","Baltic Sea, North Sea and Eastern Arctic, and North Atlantic","Vessels using Polyvalent ‘passive’ gears only","00-<10 m",null,"E","Total assets","questionnaires & scraping premium","D - Indirect survey","Every Year",1,null,517,271,0.52417794970986464,0.52417794970986464,52.417794970986463]
["POL","Baltic Sea, North Sea and Eastern Arctic, and North Atlantic","Vessels using Polyvalent ‘passive’ gears only","00-<10 m",null,"E","Engaged crew","questionnaires","A - Census","Every Year",1,null,517,271,0.52417794970986464,0.52417794970986464,52.417794970986463]
["POL","Baltic Sea, North Sea and Eastern Arctic, and North Atlantic","Vessels using Polyvalent ‘passive’ gears only","00-<10 m",null,"E","Unpaid labour","questionnaires","A - Census","Every Year",1,"starting collection every year in 2021",517,271,0.52417794970986464,0.52417794970986464,52.417794970986463]
["POL","Baltic Sea, North Sea and Eastern Arctic, and North Atlantic","Vessels using Polyvalent ‘passive’ gears only","00-<10 m",null,"E","Total hours worked per year","questionnaires & logbooks","D - Indirect survey","Every Year",1,null,517,271,0.52417794970986464,0.52417794970986464,52.417794970986463]
["POL","Baltic Sea, North Sea and Eastern Arctic, and North Atlantic","Vessels using Polyvalent ‘passive’ gears only","00-<10 m",null,"E","Number of vessels","questionnaires, Register","A - Census","Every Year",1,null,517,271,0.52417794970986464,0.52417794970986464,52.417794970986463]
["POL","Baltic Sea, North Sea and Eastern Arctic, and North Atlantic","Vessels using Polyvalent ‘passive’ gears only","00-<10 m",null,"E","Mean LOA of vessels","questionnaires, Register","A - Census","Every Year",1,null,517,271,0.52417794970986464,0.52417794970986464,52.417794970986463]
["POL","Baltic Sea, North Sea and Eastern Arctic, and North Atlantic","Vessels using Polyvalent ‘passive’ gears only","00-<10 m",null,"E","Total vessel's tonnage","questionnaires, Register","A - Census","Every Year",1,null,517,271,0.52417794970986464,0.52417794970986464,52.417794970986463]
["POL","Baltic Sea, North Sea and Eastern Arctic, and North Atlantic","Vessels using Polyvalent ‘passive’ gears only","00-<10 m",null,"E","Total vessel's power","questionnaires, Register","A - Census","Every Year",1,null,517,271,0.52417794970986464,0.52417794970986464,52.417794970986463]
["POL","Baltic Sea, North Sea and Eastern Arctic, and North Atlantic","Vessels using Polyvalent ‘passive’ gears only","00-<10 m",null,"E","Mean age of vessels","questionnaires, Register","A - Census","Every Year",1,null,517,271,0.52417794970986464,0.52417794970986464,52.417794970986463]
["POL","Baltic Sea, North Sea and Eastern Arctic, and North Atlantic","Vessels using Polyvalent ‘passive’ gears only","00-<10 m",null,"E","Days at sea","questionnaires, logbooks","A - Census","Every Year",1,null,517,271,0.52417794970986464,0.52417794970986464,52.417794970986463]
["POL","Baltic Sea, North Sea and Eastern Arctic, and North Atlantic","Vessels using Polyvalent ‘passive’ gears only","00-<10 m",null,"E","Energy consuption","questionnaires","A - Census","Every Year",1,null,517,271,0.52417794970986464,0.52417794970986464,52.417794970986463]
["POL","Baltic Sea, North Sea and Eastern Arctic, and North Atlantic","Vessels using Polyvalent ‘passive’ gears only","00-<10 m",null,"E","Number of fishing enterprises/units","Register","A - Census","Every Year",1,null,517,271,0.52417794970986464,0.52417794970986464,52.417794970986463]
["POL","Baltic Sea, North Sea and Eastern Arctic, and North Atlantic","Vessels using Polyvalent ‘passive’ gears only","00-<10 m",null,"E","Value of landings per species","First sale document","A - Census","Every Year",1,null,517,271,0.52417794970986464,0.52417794970986464,52.417794970986463]
["POL","Baltic Sea, North Sea and Eastern Arctic, and North Atlantic","Vessels using Polyvalent ‘passive’ gears only","00-<10 m",null,"E","Average price per spices","First sale document","A - Census","Every Year",1,null,517,271,0.52417794970986464,0.52417794970986464,52.417794970986463]
["POL","Baltic Sea, North Sea and Eastern Arctic, and North Atlantic","Vessels using Polyvalent ‘passive’ gears only","00-<10 m",null,"S","Employment by gender","questionnaires","A - Census","Every Year",1,null,517,271,0.52417794970986464,0.52417794970986464,52.417794970986463]
["POL","Baltic Sea, North Sea and Eastern Arctic, and North Atlantic","Vessels using Polyvalent ‘passive’ gears only","00-<10 m",null,"S","FTE by gender","questionnaires","A - Census","Every Year",1,null,517,271,0.52417794970986464,0.52417794970986464,52.417794970986463]
["POL","Baltic Sea, North Sea and Eastern Arctic, and North Atlantic","Vessels using Polyvalent ‘passive’ gears only","00-<10 m",null,"S","Unpaid labour by gender","questionnaires","A - Census","Every Year",1,"starting collection every year in 2021",517,271,0.52417794970986464,0.52417794970986464,52.417794970986463]
["POL","Baltic Sea, North Sea and Eastern Arctic, and North Atlantic","Vessels using Polyvalent ‘passive’ gears only","00-<10 m",null,"S","Employment by age","questionnaires","A - Census","Every Year",1,null,517,271,0.52417794970986464,0.52417794970986464,52.417794970986463]
["POL","Baltic Sea, North Sea and Eastern Arctic, and North Atlantic","Vessels using Polyvalent ‘passive’ gears only","00-<10 m",null,"S","Employment by education level","questionnaires","A - Census","Every Year",1,null,517,271,0.52417794970986464,0.52417794970986464,52.417794970986463]
["POL","Baltic Sea, North Sea and Eastern Arctic, and North Atlantic","Vessels using Polyvalent ‘passive’ gears only","00-<10 m",null,"S","Employment by nationality","questionnaires","A - Census","Every Year",1,"starting collection every year in 2021",517,271,0.52417794970986464,0.52417794970986464,52.417794970986463]
["POL","Baltic Sea, North Sea and Eastern Arctic, and North Atlantic","Vessels using Polyvalent ‘passive’ gears only","00-<10 m",null,"S","Employment by employment status","questionnaires","A - Census","Every Year",1,null,517,271,0.52417794970986464,0.52417794970986464,52.417794970986463]
["POL","Baltic Sea, North Sea and Eastern Arctic, and North Atlantic","Vessels using Polyvalent ‘passive’ gears only","00-<10 m",null,"S","FTE National","questionnaires","A - Census","Every Year",1,null,517,271,0.52417794970986464,0.52417794970986464,52.417794970986463]
["POL","Baltic Sea, North Sea and Eastern Arctic, and North Atlantic","Vessels using Polyvalent ‘passive’ gears only","10-<12 m",null,"E","Gross value of landings","questionnaires","A - Census","Every Year",1,null,106,106,1,1,100]
["POL","Baltic Sea, North Sea and Eastern Arctic, and North Atlantic","Vessels using Polyvalent ‘passive’ gears only","10-<12 m",null,"E","Income from leasing out quota or other fishing rights","not relevant",null,null,null,null,"N/A","N/A","N/A","N/A","N/A"]
["POL","Baltic Sea, North Sea and Eastern Arctic, and North Atlantic","Vessels using Polyvalent ‘passive’ gears only","10-<12 m",null,"E","Other income","questionnaires","A - Census","Every Year",1,null,106,46,0.43396226415094341,0.43396226415094341,43.39622641509434]
["POL","Baltic Sea, North Sea and Eastern Arctic, and North Atlantic","Vessels using Polyvalent ‘passive’ gears only","10-<12 m",null,"E","Wages and salaries of crew","questionnaires","A - Census","Every Year",1,null,106,46,0.43396226415094341,0.43396226415094341,43.39622641509434]
["POL","Baltic Sea, North Sea and Eastern Arctic, and North Atlantic","Vessels using Polyvalent ‘passive’ gears only","10-<12 m",null,"E","Imputed value of unpaid labour","estimation","D - Indirect survey","Every Year",1,"starting collection every year in 2021",106,46,0.43396226415094341,0.43396226415094341,43.39622641509434]
["POL","Baltic Sea, North Sea and Eastern Arctic, and North Atlantic","Vessels using Polyvalent ‘passive’ gears only","10-<12 m",null,"E","Energy costs","questionnaires","A - Census","Every Year",1,null,106,45,0.42452830188679247,0.42452830188679247,42.452830188679243]
["POL","Baltic Sea, North Sea and Eastern Arctic, and North Atlantic","Vessels using Polyvalent ‘passive’ gears only","10-<12 m",null,"E","Repair and maintenance costs","questionnaires","A - Census","Every Year",1,null,106,46,0.43396226415094341,0.43396226415094341,43.39622641509434]
["POL","Baltic Sea, North Sea and Eastern Arctic, and North Atlantic","Vessels using Polyvalent ‘passive’ gears only","10-<12 m",null,"E","Variable costs","questionnaires","A - Census","Every Year",1,null,106,46,0.43396226415094341,0.43396226415094341,43.39622641509434]
["POL","Baltic Sea, North Sea and Eastern Arctic, and North Atlantic","Vessels using Polyvalent ‘passive’ gears only","10-<12 m",null,"E","Non-variable costs","questionnaires","A - Census","Every Year",1,null,106,46,0.43396226415094341,0.43396226415094341,43.39622641509434]
["POL","Baltic Sea, North Sea and Eastern Arctic, and North Atlantic","Vessels using Polyvalent ‘passive’ gears only","10-<12 m",null,"E","Lease/rental payments for quota or other fishing rights","questionnaires","A - Census","Every Year",1,null,"N/A","N/A","N/A","N/A","N/A"]
["POL","Baltic Sea, North Sea and Eastern Arctic, and North Atlantic","Vessels using Polyvalent ‘passive’ gears only","10-<12 m",null,"E","Operating Subsidies","questionnaires &\nadministrative data base","A - Census","Every Year",1,null,106,46,0.43396226415094341,0.43396226415094341,43.39622641509434]
["POL","Baltic Sea, North Sea and Eastern Arctic, and North Atlantic","Vessels using Polyvalent ‘passive’ gears only","10-<12 m",null,"E","Subsidies on investments","questionnaires &\nadministrative data base","A - Census","Every Year",1,null,106,46,0.43396226415094341,0.43396226415094341,43.39622641509434]
["POL","Baltic Sea, North Sea and Eastern Arctic, and North Atlantic","Vessels using Polyvalent ‘passive’ gears only","10-<12 m",null,"E","Consumption of fixed capital","questionnaires","A - Census","Every Year",1,null,106,46,0.43396226415094341,0.43396226415094341,43.39622641509434]
["POL","Baltic Sea, North Sea and Eastern Arctic, and North Atlantic","Vessels using Polyvalent ‘passive’ gears only","10-<12 m",null,"E","Value of physical capital","questionnaires & scraping premium","D - Indirect survey","Every Year",1,null,106,46,0.43396226415094341,0.43396226415094341,43.39622641509434]
["POL","Baltic Sea, North Sea and Eastern Arctic, and North Atlantic","Vessels using Polyvalent ‘passive’ gears only","10-<12 m",null,"E","Value of quota and other fishing rights","not relevant",null,null,null,null,"N/A","N/A","N/A","N/A","N/A"]
["POL","Baltic Sea, North Sea and Eastern Arctic, and North Atlantic","Vessels using Polyvalent ‘passive’ gears only","10-<12 m",null,"E","Investments in tangible assets, net","questionnaires","A - Census","Every Year",1,null,106,46,0.43396226415094341,0.43396226415094341,43.39622641509434]
["POL","Baltic Sea, North Sea and Eastern Arctic, and North Atlantic","Vessels using Polyvalent ‘passive’ gears only","10-<12 m",null,"E","Long/short Debt","questionnaires","A - Census","Every Year",1,null,106,46,0.43396226415094341,0.43396226415094341,43.39622641509434]
["POL","Baltic Sea, North Sea and Eastern Arctic, and North Atlantic","Vessels using Polyvalent ‘passive’ gears only","10-<12 m",null,"E","Total assets","questionnaires & scraping premium","D - Indirect survey","Every Year",1,null,106,46,0.43396226415094341,0.43396226415094341,43.39622641509434]
["POL","Baltic Sea, North Sea and Eastern Arctic, and North Atlantic","Vessels using Polyvalent ‘passive’ gears only","10-<12 m",null,"E","Engaged crew","questionnaires","A - Census","Every Year",1,null,106,46,0.43396226415094341,0.43396226415094341,43.39622641509434]
["POL","Baltic Sea, North Sea and Eastern Arctic, and North Atlantic","Vessels using Polyvalent ‘passive’ gears only","10-<12 m",null,"E","Unpaid labour","questionnaires","A - Census","Every Year",1,"starting collection every year in 2021",106,46,0.43396226415094341,0.43396226415094341,43.39622641509434]
["POL","Baltic Sea, North Sea and Eastern Arctic, and North Atlantic","Vessels using Polyvalent ‘passive’ gears only","10-<12 m",null,"E","Total hours worked per year","questionnaires & logbooks","D - Indirect survey","Every Year",1,null,106,46,0.43396226415094341,0.43396226415094341,43.39622641509434]
["POL","Baltic Sea, North Sea and Eastern Arctic, and North Atlantic","Vessels using Polyvalent ‘passive’ gears only","10-<12 m",null,"E","Number of vessels","questionnaires, Register","A - Census","Every Year",1,null,106,46,0.43396226415094341,0.43396226415094341,43.39622641509434]
["POL","Baltic Sea, North Sea and Eastern Arctic, and North Atlantic","Vessels using Polyvalent ‘passive’ gears only","10-<12 m",null,"E","Mean LOA of vessels","questionnaires, Register","A - Census","Every Year",1,null,106,46,0.43396226415094341,0.43396226415094341,43.39622641509434]
["POL","Baltic Sea, North Sea and Eastern Arctic, and North Atlantic","Vessels using Polyvalent ‘passive’ gears only","10-<12 m",null,"E","Total vessels tonnage","questionnaires, Register","A - Census","Every Year",1,null,106,46,0.43396226415094341,0.43396226415094341,43.39622641509434]
["POL","Baltic Sea, North Sea and Eastern Arctic, and North Atlantic","Vessels using Polyvalent ‘passive’ gears only","10-<12 m",null,"E","Total vessels power","questionnaires, Register","A - Census","Every Year",1,null,106,46,0.43396226415094341,0.43396226415094341,43.39622641509434]
["POL","Baltic Sea, North Sea and Eastern Arctic, and North Atlantic","Vessels using Polyvalent ‘passive’ gears only","10-<12 m",null,"E","Mean age of vessels","questionnaires, Register","A - Census","Every Year",1,null,106,46,0.43396226415094341,0.43396226415094341,43.39622641509434]
["POL","Baltic Sea, North Sea and Eastern Arctic, and North Atlantic","Vessels using Polyvalent ‘passive’ gears only","10-<12 m",null,"E","Days at sea","questionnaires, logbooks","A - Census","Every Year",1,null,106,46,0.43396226415094341,0.43396226415094341,43.39622641509434]
["POL","Baltic Sea, North Sea and Eastern Arctic, and North Atlantic","Vessels using Polyvalent ‘passive’ gears only","10-<12 m",null,"E","Energy consuption","questionnaires","A - Census","Every Year",1,null,106,46,{"$f":"N71/M71","v":0.43396226415094341},0.43396226415094341,{"$f":"N71/(M71*K71/100)","v":43.39622641509434}]
["POL","Baltic Sea, North Sea and Eastern Arctic, and North Atlantic","Vessels using Polyvalent ‘passive’ gears only","10-<12 m",null,"E","Number of fishing enterprises/units","Register","A - Census","Every Year",1,null,106,46,0.43396226415094341,0.43396226415094341,43.39622641509434]
["POL","Baltic Sea, North Sea and Eastern Arctic, and North Atlantic","Vessels using Polyvalent ‘passive’ gears only","10-<12 m",null,"E","Value of landings per species","First sale document","A - Census","Every Year",1,null,106,46,0.43396226415094341,0.43396226415094341,43.39622641509434]
["POL","Baltic Sea, North Sea and Eastern Arctic, and North Atlantic","Vessels using Polyvalent ‘passive’ gears only","10-<12 m",null,"E","Average price per spices","First sale document","A - Census","Every Year",1,null,106,46,0.43396226415094341,0.43396226415094341,43.39622641509434]
["POL","Baltic Sea, North Sea and Eastern Arctic, and North Atlantic","Vessels using Polyvalent ‘passive’ gears only","10-<12 m",null,"S","Employment by gender","questionnaires","A - Census","Every Year",1,null,106,46,0.43396226415094341,0.43396226415094341,43.39622641509434]
["POL","Baltic Sea, North Sea and Eastern Arctic, and North Atlantic","Vessels using Polyvalent ‘passive’ gears only","10-<12 m",null,"S","FTE by gender","questionnaires","A - Census","Every Year",1,null,106,46,0.43396226415094341,0.43396226415094341,43.39622641509434]
["POL","Baltic Sea, North Sea and Eastern Arctic, and North Atlantic","Vessels using Polyvalent ‘passive’ gears only","10-<12 m",null,"S","Unpaid labour by gender","questionnaires","A - Census","Every Year",1,"starting collection every year in 2021",106,46,0.43396226415094341,0.43396226415094341,43.39622641509434]
["POL","Baltic Sea, North Sea and Eastern Arctic, and North Atlantic","Vessels using Polyvalent ‘passive’ gears only","10-<12 m",null,"S","Employment by age","questionnaires","A - Census","Every Year",1,null,106,46,0.43396226415094341,0.43396226415094341,43.39622641509434]
["POL","Baltic Sea, North Sea and Eastern Arctic, and North Atlantic","Vessels using Polyvalent ‘passive’ gears only","10-<12 m",null,"S","Employment by education level","questionnaires","A - Census","Every Year",1,null,106,46,0.43396226415094341,0.43396226415094341,43.39622641509434]
["POL","Baltic Sea, North Sea and Eastern Arctic, and North Atlantic","Vessels using Polyvalent ‘passive’ gears only","10-<12 m",null,"S","Employment by nationality","questionnaires","A - Census","Every Year",1,"starting collection every year in 2021",106,46,0.43396226415094341,0.43396226415094341,43.39622641509434]
["POL","Baltic Sea, North Sea and Eastern Arctic, and North Atlantic","Vessels using Polyvalent ‘passive’ gears only","10-<12 m",null,"S","Employment by employment status","questionnaires","A - Census","Every Year",1,null,106,46,0.43396226415094341,0.43396226415094341,43.39622641509434]
["POL","Baltic Sea, North Sea and Eastern Arctic, and North Atlantic","Vessels using Polyvalent ‘passive’ gears only","10-<12 m",null,"S","FTE National","questionnaires","A - Census","Every Year",1,null,106,46,0.43396226415094341,0.43396226415094341,43.39622641509434]
["POL","Baltic Sea, North Sea and Eastern Arctic, and North Atlantic","Drift and/or fixed netters","10-<12 m",null,"E","Gross value of landings","questionnaires","A - Census","Every Year",1,null,13,13,1,1,100,"wrong length class, should be 12-<18 m"]
["POL","Baltic Sea, North Sea and Eastern Arctic, and North Atlantic","Drift and/or fixed netters","10-<12 m",null,"E","Income from leasing out quota or other fishing rights","not relevant",null,null,null,null,"N/A","N/A","N/A","N/A","N/A","wrong length class, should be 12-<18 m"]
["POL","Baltic Sea, North Sea and Eastern Arctic, and North Atlantic","Drift and/or fixed netters","10-<12 m",null,"E","Other income","questionnaires","A - Census","Every Year",1,null,13,5,0.38461538461538464,0.38461538461538464,38.46153846153846,"wrong length class, should be 12-<18 m"]
["POL","Baltic Sea, North Sea and Eastern Arctic, and North Atlantic","Drift and/or fixed netters","10-<12 m",null,"E","Wages and salaries of crew","questionnaires","A - Census","Every Year",1,null,13,5,0.38461538461538464,0.38461538461538464,38.46153846153846,"wrong length class, should be 12-<18 m"]
["POL","Baltic Sea, North Sea and Eastern Arctic, and North Atlantic","Drift and/or fixed netters","10-<12 m",null,"E","Imputed value of unpaid labour","estimation","D - Indirect survey","Every Year",1,"starting collection every year in 2021",13,5,0.38461538461538464,0.38461538461538464,38.46153846153846,"wrong length class, should be 12-<18 m"]
["POL","Baltic Sea, North Sea and Eastern Arctic, and North Atlantic","Drift and/or fixed netters","10-<12 m",null,"E","Energy costs","questionnaires","A - Census","Every Year",1,null,13,5,0.38461538461538464,0.38461538461538464,38.46153846153846,"wrong length class, should be 12-<18 m"]
["POL","Baltic Sea, North Sea and Eastern Arctic, and North Atlantic","Drift and/or fixed netters","10-<12 m",null,"E","Repair and maintenance costs","questionnaires","A - Census","Every Year",1,null,13,5,0.38461538461538464,0.38461538461538464,38.46153846153846,"wrong length class, should be 12-<18 m"]
["POL","Baltic Sea, North Sea and Eastern Arctic, and North Atlantic","Drift and/or fixed netters","10-<12 m",null,"E","Variable costs","questionnaires","A - Census","Every Year",1,null,13,5,0.38461538461538464,0.38461538461538464,38.46153846153846,"wrong length class, should be 12-<18 m"]
["POL","Baltic Sea, North Sea and Eastern Arctic, and North Atlantic","Drift and/or fixed netters","10-<12 m",null,"E","Non-variable costs","questionnaires","A - Census","Every Year",1,null,13,5,0.38461538461538464,0.38461538461538464,38.46153846153846,"wrong length class, should be 12-<18 m"]
["POL","Baltic Sea, North Sea and Eastern Arctic, and North Atlantic","Drift and/or fixed netters","10-<12 m",null,"E","Lease/rental payments for quota or other fishing rights","questionnaires","A - Census","Every Year",1,null,"N/A","N/A","N/A","N/A","N/A","wrong length class, should be 12-<18 m"]
["POL","Baltic Sea, North Sea and Eastern Arctic, and North Atlantic","Drift and/or fixed netters","10-<12 m",null,"E","Operating Subsidies","questionnaires &\nadministrative data base","A - Census","Every Year",1,null,13,5,0.38461538461538464,0.38461538461538464,38.46153846153846,"wrong length class, should be 12-<18 m"]
["POL","Baltic Sea, North Sea and Eastern Arctic, and North Atlantic","Drift and/or fixed netters","10-<12 m",null,"E","Subsidies on investments","questionnaires &\nadministrative data base","A - Census","Every Year",1,null,13,5,0.38461538461538464,0.38461538461538464,38.46153846153846,"wrong length class, should be 12-<18 m"]
["POL","Baltic Sea, North Sea and Eastern Arctic, and North Atlantic","Drift and/or fixed netters","10-<12 m",null,"E","Consumption of fixed capital","questionnaires","A - Census","Every Year",1,null,13,5,0.38461538461538464,0.38461538461538464,38.46153846153846,"wrong length class, should be 12-<18 m"]
["POL","Baltic Sea, North Sea and Eastern Arctic, and North Atlantic","Drift and/or fixed netters","10-<12 m",null,"E","Value of physical capital","questionnaires & scraping premium","D - Indirect survey","Every Year",1,null,13,5,0.38461538461538464,0.38461538461538464,38.46153846153846,"wrong length class, should be 12-<18 m"]
["POL","Baltic Sea, North Sea and Eastern Arctic, and North Atlantic","Drift and/or fixed netters","10-<12 m",null,"E","Value of quota and other fishing rights","not relevant",null,null,null,null,"N/A","N/A","N/A","N/A","N/A","wrong length class, should be 12-<18 m"]
["POL","Baltic Sea, North Sea and Eastern Arctic, and North Atlantic","Drift and/or fixed netters","10-<12 m",null,"E","Investments in tangible assets, net","questionnaires","A - Census","Every Year",1,null,13,5,0.38461538461538464,0.38461538461538464,38.46153846153846,"wrong length class, should be 12-<18 m"]
["POL","Baltic Sea, North Sea and Eastern Arctic, and North Atlantic","Drift and/or fixed netters","10-<12 m",null,"E","Long/short Debt","questionnaires","A - Census","Every Year",1,null,13,5,0.38461538461538464,0.38461538461538464,38.46153846153846,"wrong length class, should be 12-<18 m"]
["POL","Baltic Sea, North Sea and Eastern Arctic, and North Atlantic","Drift and/or fixed netters","10-<12 m",null,"E","Total assets","questionnaires & scraping premium","D - Indirect survey","Every Year",1,null,13,5,0.38461538461538464,0.38461538461538464,38.46153846153846,"wrong length class, should be 12-<18 m"]
["POL","Baltic Sea, North Sea and Eastern Arctic, and North Atlantic","Drift and/or fixed netters","10-<12 m",null,"E","Engaged crew","questionnaires","A - Census","Every Year",1,null,13,5,0.38461538461538464,0.38461538461538464,38.46153846153846,"wrong length class, should be 12-<18 m"]
["POL","Baltic Sea, North Sea and Eastern Arctic, and North Atlantic","Drift and/or fixed netters","10-<12 m",null,"E","Unpaid labour","questionnaires","A - Census","Every Year",1,"starting collection every year in 2021",13,5,0.38461538461538464,0.38461538461538464,38.46153846153846,"wrong length class, should be 12-<18 m"]
["POL","Baltic Sea, North Sea and Eastern Arctic, and North Atlantic","Drift and/or fixed netters","10-<12 m",null,"E","Total hours worked per year","questionnaires & logbooks","D - Indirect survey","Every Year",1,null,13,5,0.38461538461538464,0.38461538461538464,38.46153846153846,"wrong length class, should be 12-<18 m"]
["POL","Baltic Sea, North Sea and Eastern Arctic, and North Atlantic","Drift and/or fixed netters","10-<12 m",null,"E","Number of vessels","questionnaires, Register","A - Census","Every Year",1,null,13,5,0.38461538461538464,0.38461538461538464,38.46153846153846,"wrong length class, should be 12-<18 m"]
["POL","Baltic Sea, North Sea and Eastern Arctic, and North Atlantic","Drift and/or fixed netters","10-<12 m",null,"E","Mean LOA of vessels","questionnaires, Register","A - Census","Every Year",1,null,13,5,0.38461538461538464,0.38461538461538464,38.46153846153846,"wrong length class, should be 12-<18 m"]
["POL","Baltic Sea, North Sea and Eastern Arctic, and North Atlantic","Drift and/or fixed netters","10-<12 m",null,"E","Total vessels tonnage","questionnaires, Register","A - Census","Every Year",1,null,13,5,0.38461538461538464,0.38461538461538464,38.46153846153846,"wrong length class, should be 12-<18 m"]
["POL","Baltic Sea, North Sea and Eastern Arctic, and North Atlantic","Drift and/or fixed netters","10-<12 m",null,"E","Total vessels power","questionnaires, Register","A - Census","Every Year",1,null,13,5,0.38461538461538464,0.38461538461538464,38.46153846153846,"wrong length class, should be 12-<18 m"]
["POL","Baltic Sea, North Sea and Eastern Arctic, and North Atlantic","Drift and/or fixed netters","10-<12 m",null,"E","Mean age of vessels","questionnaires, Register","A - Census","Every Year",1,null,13,5,0.38461538461538464,0.38461538461538464,38.46153846153846,"wrong length class, should be 12-<18 m"]
["POL","Baltic Sea, North Sea and Eastern Arctic, and North Atlantic","Drift and/or fixed netters","10-<12 m",null,"E","Days at sea","questionnaires, logbooks","A - Census","Every Year",1,null,13,5,0.38461538461538464,0.38461538461538464,38.46153846153846,"wrong length class, should be 12-<18 m"]
["POL","Baltic Sea, North Sea and Eastern Arctic, and North Atlantic","Drift and/or fixed netters","10-<12 m",null,"E","Energy consuption","questionnaires","A - Census","Every Year",1,null,13,5,0.38461538461538464,0.38461538461538464,38.46153846153846,"wrong length class, should be 12-<18 m"]
["POL","Baltic Sea, North Sea and Eastern Arctic, and North Atlantic","Drift and/or fixed netters","10-<12 m",null,"E","Number of fishing enterprises/units","Register","A - Census","Every Year",1,null,13,5,0.38461538461538464,0.38461538461538464,38.46153846153846,"wrong length class, should be 12-<18 m"]
["POL","Baltic Sea, North Sea and Eastern Arctic, and North Atlantic","Drift and/or fixed netters","10-<12 m",null,"E","Value of landings per species","First sale document","A - Census","Every Year",1,null,13,5,0.38461538461538464,0.38461538461538464,38.46153846153846,"wrong length class, should be 12-<18 m"]
["POL","Baltic Sea, North Sea and Eastern Arctic, and North Atlantic","Drift and/or fixed netters","10-<12 m",null,"E","Average price per spices","First sale document","A - Census","Every Year",1,null,13,5,0.38461538461538464,0.38461538461538464,38.46153846153846,"wrong length class, should be 12-<18 m"]
["POL","Baltic Sea, North Sea and Eastern Arctic, and North Atlantic","Drift and/or fixed netters","10-<12 m",null,"S","Employment by gender","questionnaires","A - Census","Every Year",1,null,13,5,0.38461538461538464,0.38461538461538464,38.46153846153846,"wrong length class, should be 12-<18 m"]
["POL","Baltic Sea, North Sea and Eastern Arctic, and North Atlantic","Drift and/or fixed netters","10-<12 m",null,"S","FTE by gender","questionnaires","A - Census","Every Year",1,null,13,5,0.38461538461538464,0.38461538461538464,38.46153846153846,"wrong length class, should be 12-<18 m"]
["POL","Baltic Sea, North Sea and Eastern Arctic, and North Atlantic","Drift and/or fixed netters","10-<12 m",null,"S","Unpaid labour by gender","questionnaires","A - Census","Every Year",1,"starting collection every year in 2021",13,5,0.38461538461538464,0.38461538461538464,38.46153846153846,"wrong length class, should be 12-<18 m"]
["POL","Baltic Sea, North Sea and Eastern Arctic, and North Atlantic","Drift and/or fixed netters","10-<12 m",null,"S","Employment by age","questionnaires","A - Census","Every Year",1,null,13,5,0.38461538461538464,0.38461538461538464,38.46153846153846,"wrong length class, should be 12-<18 m"]
["POL","Baltic Sea, North Sea and Eastern Arctic, and North Atlantic","Drift and/or fixed netters","10-<12 m",null,"S","Employment by education level","questionnaires","A - Census","Every Year",1,null,13,5,0.38461538461538464,0.38461538461538464,38.46153846153846,"wrong length class, should be 12-<18 m"]
["POL","Baltic Sea, North Sea and Eastern Arctic, and North Atlantic","Drift and/or fixed netters","10-<12 m",null,"S","Employment by nationality","questionnaires","A - Census","Every Year",1,"starting collection every year in 2021",13,5,0.38461538461538464,0.38461538461538464,38.46153846153846,"wrong length class, should be 12-<18 m"]
["POL","Baltic Sea, North Sea and Eastern Arctic, and North Atlantic","Drift and/or fixed netters","10-<12 m",null,"S","Employment by employment status","questionnaires","A - Census","Every Year",1,null,13,5,0.38461538461538464,0.38461538461538464,38.46153846153846,"wrong length class, should be 12-<18 m"]
["POL","Baltic Sea, North Sea and Eastern Arctic, and North Atlantic","Drift and/or fixed netters","10-<12 m",null,"S","FTE National","questionnaires","A - Census","Every Year",1,null,13,5,0.38461538461538464,0.38461538461538464,38.46153846153846,"wrong length class, should be 12-<18 m"]
["POL","Baltic Sea, North Sea and Eastern Arctic, and North Atlantic","Demersal trawlers and/or demersal seiners ","12-<18 m",null,"E","Gross value of landings","questionnaires","A - Census","Every Year",1,null,52,52,1,1,100]
["POL","Baltic Sea, North Sea and Eastern Arctic, and North Atlantic","Demersal trawlers and/or demersal seiners ","12-<18 m",null,"E","Income from leasing out quota or other fishing rights","not relevant",null,null,null,null,"N/A","N/A","N/A","N/A","N/A"]
["POL","Baltic Sea, North Sea and Eastern Arctic, and North Atlantic","Demersal trawlers and/or demersal seiners ","12-<18 m",null,"E","Other income","questionnaires","A - Census","Every Year",1,null,52,24,0.46153846153846156,0.46153846153846156,46.153846153846153]
["POL","Baltic Sea, North Sea and Eastern Arctic, and North Atlantic","Demersal trawlers and/or demersal seiners ","12-<18 m",null,"E","Wages and salaries of crew","questionnaires","A - Census","Every Year",1,null,52,24,0.46153846153846156,0.46153846153846156,46.153846153846153]
["POL","Baltic Sea, North Sea and Eastern Arctic, and North Atlantic","Demersal trawlers and/or demersal seiners ","12-<18 m",null,"E","Imputed value of unpaid labour","estimation","D - Indirect survey","Every Year",1,"starting collection every year in 2021",52,24,0.46153846153846156,0.46153846153846156,46.153846153846153]
["POL","Baltic Sea, North Sea and Eastern Arctic, and North Atlantic","Demersal trawlers and/or demersal seiners ","12-<18 m",null,"E","Energy costs","questionnaires","A - Census","Every Year",1,null,52,24,0.46153846153846156,0.46153846153846156,46.153846153846153]
["POL","Baltic Sea, North Sea and Eastern Arctic, and North Atlantic","Demersal trawlers and/or demersal seiners ","12-<18 m",null,"E","Repair and maintenance costs","questionnaires","A - Census","Every Year",1,null,52,24,0.46153846153846156,0.46153846153846156,46.153846153846153]
["POL","Baltic Sea, North Sea and Eastern Arctic, and North Atlantic","Demersal trawlers and/or demersal seiners ","12-<18 m",null,"E","Variable costs","questionnaires","A - Census","Every Year",1,null,52,24,0.46153846153846156,0.46153846153846156,46.153846153846153]
["POL","Baltic Sea, North Sea and Eastern Arctic, and North Atlantic","Demersal trawlers and/or demersal seiners ","12-<18 m",null,"E","Non-variable costs","questionnaires","A - Census","Every Year",1,null,52,24,0.46153846153846156,0.46153846153846156,46.153846153846153]
["POL","Baltic Sea, North Sea and Eastern Arctic, and North Atlantic","Demersal trawlers and/or demersal seiners ","12-<18 m",null,"E","Lease/rental payments for quota or other fishing rights","questionnaires","A - Census","Every Year",1,null,"N/A","N/A","N/A","N/A","N/A"]
["POL","Baltic Sea, North Sea and Eastern Arctic, and North Atlantic","Demersal trawlers and/or demersal seiners ","12-<18 m",null,"E","Operating Subsidies","questionnaires &\nadministrative data base","A - Census","Every Year",1,null,52,24,0.46153846153846156,0.46153846153846156,46.153846153846153]
["POL","Baltic Sea, North Sea and Eastern Arctic, and North Atlantic","Demersal trawlers and/or demersal seiners ","12-<18 m",null,"E","Subsidies on investments","questionnaires &\nadministrative data base","A - Census","Every Year",1,null,52,24,0.46153846153846156,0.46153846153846156,46.153846153846153]
["POL","Baltic Sea, North Sea and Eastern Arctic, and North Atlantic","Demersal trawlers and/or demersal seiners ","12-<18 m",null,"E","Consumption of fixed capital","questionnaires","A - Census","Every Year",1,null,52,24,0.46153846153846156,0.46153846153846156,46.153846153846153]
["POL","Baltic Sea, North Sea and Eastern Arctic, and North Atlantic","Demersal trawlers and/or demersal seiners ","12-<18 m",null,"E","Value of physical capital","questionnaires & scraping premium","D - Indirect survey","Every Year",1,null,52,24,{"$f":"N135/M135","v":0.46153846153846156},0.46153846153846156,{"$f":"N135/(M135*K135/100)","v":46.153846153846153}]
["POL","Baltic Sea, North Sea and Eastern Arctic, and North Atlantic","Demersal trawlers and/or demersal seiners ","12-<18 m",null,"E","Value of quota and other fishing rights","not relevant",null,null,null,null,"N/A","N/A","N/A","N/A","N/A"]
["POL","Baltic Sea, North Sea and Eastern Arctic, and North Atlantic","Demersal trawlers and/or demersal seiners ","12-<18 m",null,"E","Investments in tangible assets, net","questionnaires","A - Census","Every Year",1,null,52,24,0.46153846153846156,0.46153846153846156,46.153846153846153]
["POL","Baltic Sea, North Sea and Eastern Arctic, and North Atlantic","Demersal trawlers and/or demersal seiners ","12-<18 m",null,"E","Long/short Debt","questionnaires","A - Census","Every Year",1,null,52,24,0.46153846153846156,0.46153846153846156,46.153846153846153]
["POL","Baltic Sea, North Sea and Eastern Arctic, and North Atlantic","Demersal trawlers and/or demersal seiners ","12-<18 m",null,"E","Total assets","questionnaires & scraping premium","D - Indirect survey","Every Year",1,null,52,24,0.46153846153846156,0.46153846153846156,46.153846153846153]
["POL","Baltic Sea, North Sea and Eastern Arctic, and North Atlantic","Demersal trawlers and/or demersal seiners ","12-<18 m",null,"E","Engaged crew","questionnaires","A - Census","Every Year",1,null,52,24,0.46153846153846156,0.46153846153846156,46.153846153846153]
["POL","Baltic Sea, North Sea and Eastern Arctic, and North Atlantic","Demersal trawlers and/or demersal seiners ","12-<18 m",null,"E","Unpaid labour","questionnaires","A - Census","Every Year",1,"starting collection every year in 2021",52,24,0.46153846153846156,0.46153846153846156,46.153846153846153]
["POL","Baltic Sea, North Sea and Eastern Arctic, and North Atlantic","Demersal trawlers and/or demersal seiners ","12-<18 m",null,"E","Total hours worked per year","questionnaires & logbooks","D - Indirect survey","Every Year",1,null,52,24,0.46153846153846156,0.46153846153846156,46.153846153846153]
["POL","Baltic Sea, North Sea and Eastern Arctic, and North Atlantic","Demersal trawlers and/or demersal seiners ","12-<18 m",null,"E","Number of vessels","questionnaires, Register","A - Census","Every Year",1,null,52,24,0.46153846153846156,0.46153846153846156,46.153846153846153]
["POL","Baltic Sea, North Sea and Eastern Arctic, and North Atlantic","Demersal trawlers and/or demersal seiners ","12-<18 m",null,"E","Mean LOA of vessels","questionnaires, Register","A - Census","Every Year",1,null,52,24,0.46153846153846156,0.46153846153846156,46.153846153846153]
["POL","Baltic Sea, North Sea and Eastern Arctic, and North Atlantic","Demersal trawlers and/or demersal seiners ","12-<18 m",null,"E","Total vessels tonnage","questionnaires, Register","A - Census","Every Year",1,null,52,24,0.46153846153846156,0.46153846153846156,46.153846153846153]
["POL","Baltic Sea, North Sea and Eastern Arctic, and North Atlantic","Demersal trawlers and/or demersal seiners ","12-<18 m",null,"E","Total vessels power","questionnaires, Register","A - Census","Every Year",1,null,52,24,0.46153846153846156,0.46153846153846156,46.153846153846153]
["POL","Baltic Sea, North Sea and Eastern Arctic, and North Atlantic","Demersal trawlers and/or demersal seiners ","12-<18 m",null,"E","Mean age of vessels","questionnaires, Register","A - Census","Every Year",1,null,52,24,0.46153846153846156,0.46153846153846156,46.153846153846153]
["POL","Baltic Sea, North Sea and Eastern Arctic, and North Atlantic","Demersal trawlers and/or demersal seiners ","12-<18 m",null,"E","Days at sea","questionnaires, logbooks","A - Census","Every Year",1,null,52,24,0.46153846153846156,0.46153846153846156,46.153846153846153]
["POL","Baltic Sea, North Sea and Eastern Arctic, and North Atlantic","Demersal trawlers and/or demersal seiners ","12-<18 m",null,"E","Energy consuption","questionnaires","A - Census","Every Year",1,null,52,24,0.46153846153846156,0.46153846153846156,46.153846153846153]
["POL","Baltic Sea, North Sea and Eastern Arctic, and North Atlantic","Demersal trawlers and/or demersal seiners ","12-<18 m",null,"E","Number of fishing enterprises/units","Register","A - Census","Every Year",1,null,52,24,0.46153846153846156,0.46153846153846156,46.153846153846153]
["POL","Baltic Sea, North Sea and Eastern Arctic, and North Atlantic","Demersal trawlers and/or demersal seiners ","12-<18 m",null,"E","Value of landings per species","First sale document","A - Census","Every Year",1,null,52,24,0.46153846153846156,0.46153846153846156,46.153846153846153]
["POL","Baltic Sea, North Sea and Eastern Arctic, and North Atlantic","Demersal trawlers and/or demersal seiners ","12-<18 m",null,"E","Average price per spices","First sale document","A - Census","Every Year",1,null,52,24,0.46153846153846156,0.46153846153846156,46.153846153846153]
["POL","Baltic Sea, North Sea and Eastern Arctic, and North Atlantic","Demersal trawlers and/or demersal seiners ","12-<18 m",null,"S","Employment by gender","questionnaires","A - Census","Every Year",1,null,52,24,0.46153846153846156,0.46153846153846156,46.153846153846153]
["POL","Baltic Sea, North Sea and Eastern Arctic, and North Atlantic","Demersal trawlers and/or demersal seiners ","12-<18 m",null,"S","FTE by gender","questionnaires","A - Census","Every Year",1,null,52,24,0.46153846153846156,0.46153846153846156,46.153846153846153]
["POL","Baltic Sea, North Sea and Eastern Arctic, and North Atlantic","Demersal trawlers and/or demersal seiners ","12-<18 m",null,"S","Unpaid labour by gender","questionnaires","A - Census","Every Year",1,"starting collection every year in 2021",52,24,0.46153846153846156,0.46153846153846156,46.153846153846153]
["POL","Baltic Sea, North Sea and Eastern Arctic, and North Atlantic","Demersal trawlers and/or demersal seiners ","12-<18 m",null,"S","Employment by age","questionnaires","A - Census","Every Year",1,null,52,24,0.46153846153846156,0.46153846153846156,46.153846153846153]
["POL","Baltic Sea, North Sea and Eastern Arctic, and North Atlantic","Demersal trawlers and/or demersal seiners ","12-<18 m",null,"S","Employment by education level","questionnaires","A - Census","Every Year",1,null,52,24,0.46153846153846156,0.46153846153846156,46.153846153846153]
["POL","Baltic Sea, North Sea and Eastern Arctic, and North Atlantic","Demersal trawlers and/or demersal seiners ","12-<18 m",null,"S","Employment by nationality","questionnaires","A - Census","Every Year",1,"starting collection every year in 2021",52,24,0.46153846153846156,0.46153846153846156,46.153846153846153]
["POL","Baltic Sea, North Sea and Eastern Arctic, and North Atlantic","Demersal trawlers and/or demersal seiners ","12-<18 m",null,"S","Employment by employment status","questionnaires","A - Census","Every Year",1,null,52,24,0.46153846153846156,0.46153846153846156,46.153846153846153]
["POL","Baltic Sea, North Sea and Eastern Arctic, and North Atlantic","Demersal trawlers and/or demersal seiners ","12-<18 m",null,"S","FTE National","questionnaires","A - Census","Every Year",1,null,52,24,0.46153846153846156,0.46153846153846156,46.153846153846153]
["POL","Baltic Sea, North Sea and Eastern Arctic, and North Atlantic","Demersal trawlers and/or demersal seiners ","18-<24 m",null,"E","Gross value of landings","questionnaires","A - Census","Every Year",1,null,25,25,1,1,100]
["POL","Baltic Sea, North Sea and Eastern Arctic, and North Atlantic","Demersal trawlers and/or demersal seiners ","18-<24 m",null,"E","Income from leasing out quota or other fishing rights","not relevant",null,null,null,null,"N/A","N/A","N/A","N/A","N/A"]
["POL","Baltic Sea, North Sea and Eastern Arctic, and North Atlantic","Demersal trawlers and/or demersal seiners ","18-<24 m",null,"E","Other income","questionnaires","A - Census","Every Year",1,null,25,11,0.44,0.44,44]
["POL","Baltic Sea, North Sea and Eastern Arctic, and North Atlantic","Demersal trawlers and/or demersal seiners ","18-<24 m",null,"E","Wages and salaries of crew","questionnaires","A - Census","Every Year",1,null,25,11,0.44,0.44,44]
["POL","Baltic Sea, North Sea and Eastern Arctic, and North Atlantic","Demersal trawlers and/or demersal seiners ","18-<24 m",null,"E","Imputed value of unpaid labour","estimation","D - Indirect survey","Every Year",1,"starting collection every year in 2021",25,11,0.44,0.44,44]
["POL","Baltic Sea, North Sea and Eastern Arctic, and North Atlantic","Demersal trawlers and/or demersal seiners ","18-<24 m",null,"E","Energy costs","questionnaires","A - Census","Every Year",1,null,25,11,0.44,0.44,44]
["POL","Baltic Sea, North Sea and Eastern Arctic, and North Atlantic","Demersal trawlers and/or demersal seiners ","18-<24 m",null,"E","Repair and maintenance costs","questionnaires","A - Census","Every Year",1,null,25,11,0.44,0.44,44]
["POL","Baltic Sea, North Sea and Eastern Arctic, and North Atlantic","Demersal trawlers and/or demersal seiners ","18-<24 m",null,"E","Variable costs","questionnaires","A - Census","Every Year",1,null,25,11,0.44,0.44,44]
["POL","Baltic Sea, North Sea and Eastern Arctic, and North Atlantic","Demersal trawlers and/or demersal seiners ","18-<24 m",null,"E","Non-variable costs","questionnaires","A - Census","Every Year",1,null,25,11,0.44,0.44,44]
["POL","Baltic Sea, North Sea and Eastern Arctic, and North Atlantic","Demersal trawlers and/or demersal seiners ","18-<24 m",null,"E","Lease/rental payments for quota or other fishing rights","questionnaires","A - Census","Every Year",1,null,"N/A","N/A",{"$error":"#VALUE!"},"N/A",{"$error":"#VALUE!"}]
["POL","Baltic Sea, North Sea and Eastern Arctic, and North Atlantic","Demersal trawlers and/or demersal seiners ","18-<24 m",null,"E","Operating Subsidies","questionnaires &\nadministrative data base","A - Census","Every Year",1,null,25,11,0.44,0.44,44]
["POL","Baltic Sea, North Sea and Eastern Arctic, and North Atlantic","Demersal trawlers and/or demersal seiners ","18-<24 m",null,"E","Subsidies on investments","questionnaires &\nadministrative data base","A - Census","Every Year",1,null,25,11,0.44,0.44,44]
["POL","Baltic Sea, North Sea and Eastern Arctic, and North Atlantic","Demersal trawlers and/or demersal seiners ","18-<24 m",null,"E","Consumption of fixed capital","questionnaires","A - Census","Every Year",1,null,25,11,0.44,0.44,44]
["POL","Baltic Sea, North Sea and Eastern Arctic, and North Atlantic","Demersal trawlers and/or demersal seiners ","18-<24 m",null,"E","Value of physical capital","questionnaires & scraping premium","D - Indirect survey","Every Year",1,null,25,11,0.44,0.44,44]
["POL","Baltic Sea, North Sea and Eastern Arctic, and North Atlantic","Demersal trawlers and/or demersal seiners ","18-<24 m",null,"E","Value of quota and other fishing rights","not relevant",null,null,null,null,"N/A","N/A","N/A","N/A","N/A"]
["POL","Baltic Sea, North Sea and Eastern Arctic, and North Atlantic","Demersal trawlers and/or demersal seiners ","18-<24 m",null,"E","Investments in tangible assets, net","questionnaires","A - Census","Every Year",1,null,25,11,0.44,0.44,44]
["POL","Baltic Sea, North Sea and Eastern Arctic, and North Atlantic","Demersal trawlers and/or demersal seiners ","18-<24 m",null,"E","Long/short Debt","questionnaires","A - Census","Every Year",1,null,25,11,0.44,0.44,44]
["POL","Baltic Sea, North Sea and Eastern Arctic, and North Atlantic","Demersal trawlers and/or demersal seiners ","18-<24 m",null,"E","Total assets","questionnaires & scraping premium","D - Indirect survey","Every Year",1,null,25,11,0.44,0.44,44]
["POL","Baltic Sea, North Sea and Eastern Arctic, and North Atlantic","Demersal trawlers and/or demersal seiners ","18-<24 m",null,"E","Engaged crew","questionnaires","A - Census","Every Year",1,null,25,11,0.44,0.44,44]
["POL","Baltic Sea, North Sea and Eastern Arctic, and North Atlantic","Demersal trawlers and/or demersal seiners ","18-<24 m",null,"E","Unpaid labour","questionnaires","A - Census","Every Year",1,"starting collection every year in 2021",25,11,0.44,0.44,44]
["POL","Baltic Sea, North Sea and Eastern Arctic, and North Atlantic","Demersal trawlers and/or demersal seiners ","18-<24 m",null,"E","Total hours worked per year","questionnaires & logbooks","D - Indirect survey","Every Year",1,null,25,11,0.44,0.44,44]
["POL","Baltic Sea, North Sea and Eastern Arctic, and North Atlantic","Demersal trawlers and/or demersal seiners ","18-<24 m",null,"E","Number of vessels","questionnaires, Register","A - Census","Every Year",1,null,25,11,0.44,0.44,44]
["POL","Baltic Sea, North Sea and Eastern Arctic, and North Atlantic","Demersal trawlers and/or demersal seiners ","18-<24 m",null,"E","Mean LOA of vessels","questionnaires, Register","A - Census","Every Year",1,null,25,11,0.44,0.44,44]
["POL","Baltic Sea, North Sea and Eastern Arctic, and North Atlantic","Demersal trawlers and/or demersal seiners ","18-<24 m",null,"E","Total vessels tonnage","questionnaires, Register","A - Census","Every Year",1,null,25,11,0.44,0.44,44]
["POL","Baltic Sea, North Sea and Eastern Arctic, and North Atlantic","Demersal trawlers and/or demersal seiners ","18-<24 m",null,"E","Total vessels power","questionnaires, Register","A - Census","Every Year",1,null,25,11,0.44,0.44,44]
["POL","Baltic Sea, North Sea and Eastern Arctic, and North Atlantic","Demersal trawlers and/or demersal seiners ","18-<24 m",null,"E","Mean age of vessels","questionnaires, Register","A - Census","Every Year",1,null,25,11,0.44,0.44,44]
["POL","Baltic Sea, North Sea and Eastern Arctic, and North Atlantic","Demersal trawlers and/or demersal seiners ","18-<24 m",null,"E","Days at sea","questionnaires, logbooks","A - Census","Every Year",1,null,25,11,0.44,0.44,44]
["POL","Baltic Sea, North Sea and Eastern Arctic, and North Atlantic","Demersal trawlers and/or demersal seiners ","18-<24 m",null,"E","Energy consuption","questionnaires","A - Census","Every Year",1,null,25,11,0.44,0.44,44]
["POL","Baltic Sea, North Sea and Eastern Arctic, and North Atlantic","Demersal trawlers and/or demersal seiners ","18-<24 m",null,"E","Number of fishing enterprises/units","Register","A - Census","Every Year",1,null,25,11,0.44,0.44,44]
["POL","Baltic Sea, North Sea and Eastern Arctic, and North Atlantic","Demersal trawlers and/or demersal seiners ","18-<24 m",null,"E","Value of landings per species","First sale document","A - Census","Every Year",1,null,25,11,0.44,0.44,44]
["POL","Baltic Sea, North Sea and Eastern Arctic, and North Atlantic","Demersal trawlers and/or demersal seiners ","18-<24 m",null,"E","Average price per spices","First sale document","A - Census","Every Year",1,null,25,11,0.44,0.44,44]
["POL","Baltic Sea, North Sea and Eastern Arctic, and North Atlantic","Demersal trawlers and/or demersal seiners ","18-<24 m",null,"S","Employment by gender","questionnaires","A - Census","Every Year",1,null,25,11,0.44,0.44,44]
["POL","Baltic Sea, North Sea and Eastern Arctic, and North Atlantic","Demersal trawlers and/or demersal seiners ","18-<24 m",null,"S","FTE by gender","questionnaires","A - Census","Every Year",1,null,25,11,0.44,0.44,44]
["POL","Baltic Sea, North Sea and Eastern Arctic, and North Atlantic","Demersal trawlers and/or demersal seiners ","18-<24 m",null,"S","Unpaid labour by gender","questionnaires","A - Census","Every Year",1,"starting collection every year in 2021",25,11,0.44,0.44,44]
["POL","Baltic Sea, North Sea and Eastern Arctic, and North Atlantic","Demersal trawlers and/or demersal seiners ","18-<24 m",null,"S","Employment by age","questionnaires","A - Census","Every Year",1,null,25,11,0.44,0.44,44]
["POL","Baltic Sea, North Sea and Eastern Arctic, and North Atlantic","Demersal trawlers and/or demersal seiners ","18-<24 m",null,"S","Employment by education level","questionnaires","A - Census","Every Year",1,null,25,11,0.44,0.44,44]
["POL","Baltic Sea, North Sea and Eastern Arctic, and North Atlantic","Demersal trawlers and/or demersal seiners ","18-<24 m",null,"S","Employment by nationality","questionnaires","A - Census","Every Year",1,"starting collection every year in 2021",25,11,0.44,0.44,44]
["POL","Baltic Sea, North Sea and Eastern Arctic, and North Atlantic","Demersal trawlers and/or demersal seiners ","18-<24 m",null,"S","Employment by employment status","questionnaires","A - Census","Every Year",1,null,25,11,0.44,0.44,44]
["POL","Baltic Sea, North Sea and Eastern Arctic, and North Atlantic","Demersal trawlers and/or demersal seiners ","18-<24 m",null,"S","FTE National","questionnaires","A - Census","Every Year",1,null,25,11,{"$f":"N199/M199","v":0.44},0.44,{"$f":"N199/(M199*K199/100)","v":44}]
["POL","Baltic Sea, North Sea and Eastern Arctic, and North Atlantic","Pelagic trawlers","18-<24 m",null,"E","Gross value of landings","questionnaires","A - Census","Every Year",1,null,30,30,1,1,100]
["POL","Baltic Sea, North Sea and Eastern Arctic, and North Atlantic","Pelagic trawlers","18-<24 m",null,"E","Income from leasing out quota or other fishing rights","not relevant",null,null,null,null,"N/A","N/A","N/A","N/A","N/A"]
["POL","Baltic Sea, North Sea and Eastern Arctic, and North Atlantic","Pelagic trawlers","18-<24 m",null,"E","Other income","questionnaires","A - Census","Every Year",1,null,30,11,0.36666666666666664,0.36666666666666664,36.666666666666671]
["POL","Baltic Sea, North Sea and Eastern Arctic, and North Atlantic","Pelagic trawlers","18-<24 m",null,"E","Wages and salaries of crew","questionnaires","A - Census","Every Year",1,null,30,11,0.36666666666666664,0.36666666666666664,36.666666666666671]
["POL","Baltic Sea, North Sea and Eastern Arctic, and North Atlantic","Pelagic trawlers","18-<24 m",null,"E","Imputed value of unpaid labour","estimation","D - Indirect survey","Every Year",1,"starting collection every year in 2021",30,11,0.36666666666666664,0.36666666666666664,36.666666666666671]
["POL","Baltic Sea, North Sea and Eastern Arctic, and North Atlantic","Pelagic trawlers","18-<24 m",null,"E","Energy costs","questionnaires","A - Census","Every Year",1,null,30,11,0.36666666666666664,0.36666666666666664,36.666666666666671]
["POL","Baltic Sea, North Sea and Eastern Arctic, and North Atlantic","Pelagic trawlers","18-<24 m",null,"E","Repair and maintenance costs","questionnaires","A - Census","Every Year",1,null,30,11,0.36666666666666664,0.36666666666666664,36.666666666666671]
["POL","Baltic Sea, North Sea and Eastern Arctic, and North Atlantic","Pelagic trawlers","18-<24 m",null,"E","Variable costs","questionnaires","A - Census","Every Year",1,null,30,11,0.36666666666666664,0.36666666666666664,36.666666666666671]
["POL","Baltic Sea, North Sea and Eastern Arctic, and North Atlantic","Pelagic trawlers","18-<24 m",null,"E","Non-variable costs","questionnaires","A - Census","Every Year",1,null,30,11,0.36666666666666664,0.36666666666666664,36.666666666666671]
["POL","Baltic Sea, North Sea and Eastern Arctic, and North Atlantic","Pelagic trawlers","18-<24 m",null,"E","Lease/rental payments for quota or other fishing rights","questionnaires","A - Census","Every Year",1,null,"N/A","N/A","N/A","N/A","N/A"]
["POL","Baltic Sea, North Sea and Eastern Arctic, and North Atlantic","Pelagic trawlers","18-<24 m",null,"E","Operating Subsidies","questionnaires &\nadministrative data base","A - Census","Every Year",1,null,30,11,0.36666666666666664,0.36666666666666664,36.666666666666671]
["POL","Baltic Sea, North Sea and Eastern Arctic, and North Atlantic","Pelagic trawlers","18-<24 m",null,"E","Subsidies on investments","questionnaires &\nadministrative data base","A - Census","Every Year",1,null,30,11,0.36666666666666664,0.36666666666666664,36.666666666666671]
["POL","Baltic Sea, North Sea and Eastern Arctic, and North Atlantic","Pelagic trawlers","18-<24 m",null,"E","Consumption of fixed capital","questionnaires","A - Census","Every Year",1,null,30,11,0.36666666666666664,0.36666666666666664,36.666666666666671]
["POL","Baltic Sea, North Sea and Eastern Arctic, and North Atlantic","Pelagic trawlers","18-<24 m",null,"E","Value of physical capital","questionnaires & scraping premium","D - Indirect survey","Every Year",1,null,30,11,0.36666666666666664,0.36666666666666664,36.666666666666671]
["POL","Baltic Sea, North Sea and Eastern Arctic, and North Atlantic","Pelagic trawlers","18-<24 m",null,"E","Value of quota and other fishing rights","not relevant",null,null,null,null,"N/A","N/A","N/A","N/A","N/A"]
["POL","Baltic Sea, North Sea and Eastern Arctic, and North Atlantic","Pelagic trawlers","18-<24 m",null,"E","Investments in tangible assets, net","questionnaires","A - Census","Every Year",1,null,30,11,0.36666666666666664,0.36666666666666664,36.666666666666671]
["POL","Baltic Sea, North Sea and Eastern Arctic, and North Atlantic","Pelagic trawlers","18-<24 m",null,"E","Long/short Debt","questionnaires","A - Census","Every Year",1,null,30,11,0.36666666666666664,0.36666666666666664,36.666666666666671]
["POL","Baltic Sea, North Sea and Eastern Arctic, and North Atlantic","Pelagic trawlers","18-<24 m",null,"E","Total assets","questionnaires & scraping premium","D - Indirect survey","Every Year",1,null,30,11,0.36666666666666664,0.36666666666666664,36.666666666666671]
["POL","Baltic Sea, North Sea and Eastern Arctic, and North Atlantic","Pelagic trawlers","18-<24 m",null,"E","Engaged crew","questionnaires","A - Census","Every Year",1,null,30,11,0.36666666666666664,0.36666666666666664,36.666666666666671]
["POL","Baltic Sea, North Sea and Eastern Arctic, and North Atlantic","Pelagic trawlers","18-<24 m",null,"E","Unpaid labour","questionnaires","A - Census","Every Year",1,"starting collection every year in 2021",30,11,0.36666666666666664,0.36666666666666664,36.666666666666671]
["POL","Baltic Sea, North Sea and Eastern Arctic, and North Atlantic","Pelagic trawlers","18-<24 m",null,"E","Total hours worked per year","questionnaires & logbooks","D - Indirect survey","Every Year",1,null,30,11,0.36666666666666664,0.36666666666666664,36.666666666666671]
["POL","Baltic Sea, North Sea and Eastern Arctic, and North Atlantic","Pelagic trawlers","18-<24 m",null,"E","Number of vessels","questionnaires, Register","A - Census","Every Year",1,null,30,11,0.36666666666666664,0.36666666666666664,36.666666666666671]
["POL","Baltic Sea, North Sea and Eastern Arctic, and North Atlantic","Pelagic trawlers","18-<24 m",null,"E","Mean LOA of vessels","questionnaires, Register","A - Census","Every Year",1,null,30,11,0.36666666666666664,0.36666666666666664,36.666666666666671]
["POL","Baltic Sea, North Sea and Eastern Arctic, and North Atlantic","Pelagic trawlers","18-<24 m",null,"E","Total vessels tonnage","questionnaires, Register","A - Census","Every Year",1,null,30,11,0.36666666666666664,0.36666666666666664,36.666666666666671]
["POL","Baltic Sea, North Sea and Eastern Arctic, and North Atlantic","Pelagic trawlers","18-<24 m",null,"E","Total vessels power","questionnaires, Register","A - Census","Every Year",1,null,30,11,0.36666666666666664,0.36666666666666664,36.666666666666671]
["POL","Baltic Sea, North Sea and Eastern Arctic, and North Atlantic","Pelagic trawlers","18-<24 m",null,"E","Mean age of vessels","questionnaires, Register","A - Census","Every Year",1,null,30,11,0.36666666666666664,0.36666666666666664,36.666666666666671]
["POL","Baltic Sea, North Sea and Eastern Arctic, and North Atlantic","Pelagic trawlers","18-<24 m",null,"E","Days at sea","questionnaires, logbooks","A - Census","Every Year",1,null,30,11,0.36666666666666664,0.36666666666666664,36.666666666666671]
["POL","Baltic Sea, North Sea and Eastern Arctic, and North Atlantic","Pelagic trawlers","18-<24 m",null,"E","Energy consuption","questionnaires","A - Census","Every Year",1,null,30,11,0.36666666666666664,0.36666666666666664,36.666666666666671]
["POL","Baltic Sea, North Sea and Eastern Arctic, and North Atlantic","Pelagic trawlers","18-<24 m",null,"E","Number of fishing enterprises/units","Register","A - Census","Every Year",1,null,30,11,0.36666666666666664,0.36666666666666664,36.666666666666671]
["POL","Baltic Sea, North Sea and Eastern Arctic, and North Atlantic","Pelagic trawlers","18-<24 m",null,"E","Value of landings per species","First sale document","A - Census","Every Year",1,null,30,11,0.36666666666666664,0.36666666666666664,36.666666666666671]
["POL","Baltic Sea, North Sea and Eastern Arctic, and North Atlantic","Pelagic trawlers","18-<24 m",null,"E","Average price per spices","First sale document","A - Census","Every Year",1,null,30,11,0.36666666666666664,0.36666666666666664,36.666666666666671]
["POL","Baltic Sea, North Sea and Eastern Arctic, and North Atlantic","Pelagic trawlers","18-<24 m",null,"S","Employment by gender","questionnaires","A - Census","Every Year",1,null,30,11,0.36666666666666664,0.36666666666666664,36.666666666666671]
["POL","Baltic Sea, North Sea and Eastern Arctic, and North Atlantic","Pelagic trawlers","18-<24 m",null,"S","FTE by gender","questionnaires","A - Census","Every Year",1,null,30,11,0.36666666666666664,0.36666666666666664,36.666666666666671]
["POL","Baltic Sea, North Sea and Eastern Arctic, and North Atlantic","Pelagic trawlers","18-<24 m",null,"S","Unpaid labour by gender","questionnaires","A - Census","Every Year",1,"starting collection every year in 2021",30,11,0.36666666666666664,0.36666666666666664,36.666666666666671]
["POL","Baltic Sea, North Sea and Eastern Arctic, and North Atlantic","Pelagic trawlers","18-<24 m",null,"S","Employment by age","questionnaires","A - Census","Every Year",1,null,30,11,0.36666666666666664,0.36666666666666664,36.666666666666671]
["POL","Baltic Sea, North Sea and Eastern Arctic, and North Atlantic","Pelagic trawlers","18-<24 m",null,"S","Employment by education level","questionnaires","A - Census","Every Year",1,null,30,11,0.36666666666666664,0.36666666666666664,36.666666666666671]
["POL","Baltic Sea, North Sea and Eastern Arctic, and North Atlantic","Pelagic trawlers","18-<24 m",null,"S","Employment by nationality","questionnaires","A - Census","Every Year",1,"starting collection every year in 2021",30,11,0.36666666666666664,0.36666666666666664,36.666666666666671]
["POL","Baltic Sea, North Sea and Eastern Arctic, and North Atlantic","Pelagic trawlers","18-<24 m",null,"S","Employment by employment status","questionnaires","A - Census","Every Year",1,null,30,11,0.36666666666666664,0.36666666666666664,36.666666666666671]
["POL","Baltic Sea, North Sea and Eastern Arctic, and North Atlantic","Pelagic trawlers","18-<24 m",null,"S","FTE National","questionnaires","A - Census","Every Year",1,null,30,11,0.36666666666666664,0.36666666666666664,36.666666666666671]
["POL","Baltic Sea, North Sea and Eastern Arctic, and North Atlantic","Pelagic trawlers","24-<40 m",null,"E","Gross value of landings","questionnaires","A - Census","Every Year",1,null,43,43,1,1,100]
["POL","Baltic Sea, North Sea and Eastern Arctic, and North Atlantic","Pelagic trawlers","24-<40 m",null,"E","Income from leasing out quota or other fishing rights","not relevant",null,null,null,null,"N/A","N/A","N/A","N/A","N/A"]
["POL","Baltic Sea, North Sea and Eastern Arctic, and North Atlantic","Pelagic trawlers","24-<40 m",null,"E","Other income","questionnaires","A - Census","Every Year",1,null,43,29,0.67441860465116277,0.67441860465116277,67.441860465116278]
["POL","Baltic Sea, North Sea and Eastern Arctic, and North Atlantic","Pelagic trawlers","24-<40 m",null,"E","Wages and salaries of crew","questionnaires","A - Census","Every Year",1,null,43,29,0.67441860465116277,0.67441860465116277,67.441860465116278]
["POL","Baltic Sea, North Sea and Eastern Arctic, and North Atlantic","Pelagic trawlers","24-<40 m",null,"E","Imputed value of unpaid labour","estimation","D - Indirect survey","Every Year",1,"starting collection every year in 2021",43,29,0.67441860465116277,0.67441860465116277,67.441860465116278]
["POL","Baltic Sea, North Sea and Eastern Arctic, and North Atlantic","Pelagic trawlers","24-<40 m",null,"E","Energy costs","questionnaires","A - Census","Every Year",1,null,43,29,0.67441860465116277,0.67441860465116277,67.441860465116278]
["POL","Baltic Sea, North Sea and Eastern Arctic, and North Atlantic","Pelagic trawlers","24-<40 m",null,"E","Repair and maintenance costs","questionnaires","A - Census","Every Year",1,null,43,29,0.67441860465116277,0.67441860465116277,67.441860465116278]
["POL","Baltic Sea, North Sea and Eastern Arctic, and North Atlantic","Pelagic trawlers","24-<40 m",null,"E","Variable costs","questionnaires","A - Census","Every Year",1,null,43,29,0.67441860465116277,0.67441860465116277,67.441860465116278]
["POL","Baltic Sea, North Sea and Eastern Arctic, and North Atlantic","Pelagic trawlers","24-<40 m",null,"E","Non-variable costs","questionnaires","A - Census","Every Year",1,null,43,29,0.67441860465116277,0.67441860465116277,67.441860465116278]
["POL","Baltic Sea, North Sea and Eastern Arctic, and North Atlantic","Pelagic trawlers","24-<40 m",null,"E","Lease/rental payments for quota or other fishing rights","questionnaires","A - Census","Every Year",1,null,"N/A","N/A","N/A","N/A","N/A"]
["POL","Baltic Sea, North Sea and Eastern Arctic, and North Atlantic","Pelagic trawlers","24-<40 m",null,"E","Operating Subsidies","questionnaires &\nadministrative data base","A - Census","Every Year",1,null,43,29,0.67441860465116277,0.67441860465116277,67.441860465116278]
["POL","Baltic Sea, North Sea and Eastern Arctic, and North Atlantic","Pelagic trawlers","24-<40 m",null,"E","Subsidies on investments","questionnaires &\nadministrative data base","A - Census","Every Year",1,null,43,29,0.67441860465116277,0.67441860465116277,67.441860465116278]
["POL","Baltic Sea, North Sea and Eastern Arctic, and North Atlantic","Pelagic trawlers","24-<40 m",null,"E","Consumption of fixed capital","questionnaires","A - Census","Every Year",1,null,43,29,0.67441860465116277,0.67441860465116277,67.441860465116278]
["POL","Baltic Sea, North Sea and Eastern Arctic, and North Atlantic","Pelagic trawlers","24-<40 m",null,"E","Value of physical capital","questionnaires & scraping premium","D - Indirect survey","Every Year",1,null,43,29,0.67441860465116277,0.67441860465116277,67.441860465116278]
["POL","Baltic Sea, North Sea and Eastern Arctic, and North Atlantic","Pelagic trawlers","24-<40 m",null,"E","Value of quota and other fishing rights","not relevant",null,null,null,null,"N/A","N/A","N/A","N/A","N/A"]
["POL","Baltic Sea, North Sea and Eastern Arctic, and North Atlantic","Pelagic trawlers","24-<40 m",null,"E","Investments in tangible assets, net","questionnaires","A - Census","Every Year",1,null,43,29,0.67441860465116277,0.67441860465116277,67.441860465116278]
["POL","Baltic Sea, North Sea and Eastern Arctic, and North Atlantic","Pelagic trawlers","24-<40 m",null,"E","Long/short Debt","questionnaires","A - Census","Every Year",1,null,43,29,0.67441860465116277,0.67441860465116277,67.441860465116278]
["POL","Baltic Sea, North Sea and Eastern Arctic, and North Atlantic","Pelagic trawlers","24-<40 m",null,"E","Total assets","questionnaires & scraping premium","D - Indirect survey","Every Year",1,null,43,29,0.67441860465116277,0.67441860465116277,67.441860465116278]
["POL","Baltic Sea, North Sea and Eastern Arctic, and North Atlantic","Pelagic trawlers","24-<40 m",null,"E","Engaged crew","questionnaires","A - Census","Every Year",1,null,43,29,0.67441860465116277,0.67441860465116277,67.441860465116278]
["POL","Baltic Sea, North Sea and Eastern Arctic, and North Atlantic","Pelagic trawlers","24-<40 m",null,"E","Unpaid labour","questionnaires","A - Census","Every Year",1,"starting collection every year in 2021",43,29,0.67441860465116277,0.67441860465116277,67.441860465116278]
["POL","Baltic Sea, North Sea and Eastern Arctic, and North Atlantic","Pelagic trawlers","24-<40 m",null,"E","Total hours worked per year","questionnaires & logbooks","D - Indirect survey","Every Year",1,null,43,29,0.67441860465116277,0.67441860465116277,67.441860465116278]
["POL","Baltic Sea, North Sea and Eastern Arctic, and North Atlantic","Pelagic trawlers","24-<40 m",null,"E","Number of vessels","questionnaires, Register","A - Census","Every Year",1,null,43,29,0.67441860465116277,0.67441860465116277,67.441860465116278]
["POL","Baltic Sea, North Sea and Eastern Arctic, and North Atlantic","Pelagic trawlers","24-<40 m",null,"E","Mean LOA of vessels","questionnaires, Register","A - Census","Every Year",1,null,43,29,0.67441860465116277,0.67441860465116277,67.441860465116278]
["POL","Baltic Sea, North Sea and Eastern Arctic, and North Atlantic","Pelagic trawlers","24-<40 m",null,"E","Total vessels tonnage","questionnaires, Register","A - Census","Every Year",1,null,43,29,0.67441860465116277,0.67441860465116277,67.441860465116278]
["POL","Baltic Sea, North Sea and Eastern Arctic, and North Atlantic","Pelagic trawlers","24-<40 m",null,"E","Total vessels power","questionnaires, Register","A - Census","Every Year",1,null,43,29,{"$f":"N263/M263","v":0.67441860465116277},0.67441860465116277,{"$f":"N263/(M263*K263/100)","v":67.441860465116278}]
["POL","Baltic Sea, North Sea and Eastern Arctic, and North Atlantic","Pelagic trawlers","24-<40 m",null,"E","Mean age of vessels","questionnaires, Register","A - Census","Every Year",1,null,43,29,0.67441860465116277,0.67441860465116277,67.441860465116278]
["POL","Baltic Sea, North Sea and Eastern Arctic, and North Atlantic","Pelagic trawlers","24-<40 m",null,"E","Days at sea","questionnaires, logbooks","A - Census","Every Year",1,null,43,29,0.67441860465116277,0.67441860465116277,67.441860465116278]
["POL","Baltic Sea, North Sea and Eastern Arctic, and North Atlantic","Pelagic trawlers","24-<40 m",null,"E","Energy consuption","questionnaires","A - Census","Every Year",1,null,43,29,0.67441860465116277,0.67441860465116277,67.441860465116278]
["POL","Baltic Sea, North Sea and Eastern Arctic, and North Atlantic","Pelagic trawlers","24-<40 m",null,"E","Number of fishing enterprises/units","Register","A - Census","Every Year",1,null,43,29,0.67441860465116277,0.67441860465116277,67.441860465116278]
["POL","Baltic Sea, North Sea and Eastern Arctic, and North Atlantic","Pelagic trawlers","24-<40 m",null,"E","Value of landings per species","First sale document","A - Census","Every Year",1,null,43,29,0.67441860465116277,0.67441860465116277,67.441860465116278]
["POL","Baltic Sea, North Sea and Eastern Arctic, and North Atlantic","Pelagic trawlers","24-<40 m",null,"E","Average price per spices","First sale document","A - Census","Every Year",1,null,43,29,0.67441860465116277,0.67441860465116277,67.441860465116278]
["POL","Baltic Sea, North Sea and Eastern Arctic, and North Atlantic","Pelagic trawlers","24-<40 m",null,"S","Employment by gender","questionnaires","A - Census","Every Year",1,null,43,29,0.67441860465116277,0.67441860465116277,67.441860465116278]
["POL","Baltic Sea, North Sea and Eastern Arctic, and North Atlantic","Pelagic trawlers","24-<40 m",null,"S","FTE by gender","questionnaires","A - Census","Every Year",1,null,43,29,0.67441860465116277,0.67441860465116277,67.441860465116278]
["POL","Baltic Sea, North Sea and Eastern Arctic, and North Atlantic","Pelagic trawlers","24-<40 m",null,"S","Unpaid labour by gender","questionnaires","A - Census","Every Year",1,"starting collection every year in 2021",43,29,0.67441860465116277,0.67441860465116277,67.441860465116278]
["POL","Baltic Sea, North Sea and Eastern Arctic, and North Atlantic","Pelagic trawlers","24-<40 m",null,"S","Employment by age","questionnaires","A - Census","Every Year",1,null,43,29,0.67441860465116277,0.67441860465116277,67.441860465116278]
["POL","Baltic Sea, North Sea and Eastern Arctic, and North Atlantic","Pelagic trawlers","24-<40 m",null,"S","Employment by education level","questionnaires","A - Census","Every Year",1,null,43,29,0.67441860465116277,0.67441860465116277,67.441860465116278]
["POL","Baltic Sea, North Sea and Eastern Arctic, and North Atlantic","Pelagic trawlers","24-<40 m",null,"S","Employment by nationality","questionnaires","A - Census","Every Year",1,"starting collection every year in 2021",43,29,0.67441860465116277,0.67441860465116277,67.441860465116278]
["POL","Baltic Sea, North Sea and Eastern Arctic, and North Atlantic","Pelagic trawlers","24-<40 m",null,"S","Employment by employment status","questionnaires","A - Census","Every Year",1,null,43,29,0.67441860465116277,0.67441860465116277,67.441860465116278]
["POL","Baltic Sea, North Sea and Eastern Arctic, and North Atlantic","Pelagic trawlers","24-<40 m",null,"S","FTE National","questionnaires","A - Census","Every Year",1,null,43,29,0.67441860465116277,0.67441860465116277,67.441860465116278]
["POL","Baltic Sea, North Sea and Eastern Arctic, and North Atlantic","Pelagic trawlers","40 m or larger",null,"E","Gross value of landings","questionnaires","A - Census","Every Year",1,null,1,1,1,1,100]
["POL","Baltic Sea, North Sea and Eastern Arctic, and North Atlantic","Pelagic trawlers","40 m or larger",null,"E","Income from leasing out quota or other fishing rights","not relevant",null,null,null,null,"N/A","N/A","N/A","N/A","N/A"]
["POL","Baltic Sea, North Sea and Eastern Arctic, and North Atlantic","Pelagic trawlers","40 m or larger",null,"E","Other income","questionnaires","A - Census","Every Year",1,null,1,1,1,1,100]
["POL","Baltic Sea, North Sea and Eastern Arctic, and North Atlantic","Pelagic trawlers","40 m or larger",null,"E","Wages and salaries of crew","questionnaires","A - Census","Every Year",1,null,1,1,1,1,100]
["POL","Baltic Sea, North Sea and Eastern Arctic, and North Atlantic","Pelagic trawlers","40 m or larger",null,"E","Imputed value of unpaid labour","estimation","D - Indirect survey","Every Year",1,"starting collection every year in 2021",1,1,1,1,100]
["POL","Baltic Sea, North Sea and Eastern Arctic, and North Atlantic","Pelagic trawlers","40 m or larger",null,"E","Energy costs","questionnaires","A - Census","Every Year",1,null,1,1,1,1,100]
["POL","Baltic Sea, North Sea and Eastern Arctic, and North Atlantic","Pelagic trawlers","40 m or larger",null,"E","Repair and maintenance costs","questionnaires","A - Census","Every Year",1,null,1,1,1,1,100]
["POL","Baltic Sea, North Sea and Eastern Arctic, and North Atlantic","Pelagic trawlers","40 m or larger",null,"E","Variable costs","questionnaires","A - Census","Every Year",1,null,1,1,1,1,100]
["POL","Baltic Sea, North Sea and Eastern Arctic, and North Atlantic","Pelagic trawlers","40 m or larger",null,"E","Non-variable costs","questionnaires","A - Census","Every Year",1,null,1,1,1,1,100]
["POL","Baltic Sea, North Sea and Eastern Arctic, and North Atlantic","Pelagic trawlers","40 m or larger",null,"E","Lease/rental payments for quota or other fishing rights","questionnaires","A - Census","Every Year",1,null,"N/A","N/A","N/A","N/A","N/A"]
["POL","Baltic Sea, North Sea and Eastern Arctic, and North Atlantic","Pelagic trawlers","40 m or larger",null,"E","Operating Subsidies","questionnaires &\nadministrative data base","A - Census","Every Year",1,null,1,1,1,1,100]
["POL","Baltic Sea, North Sea and Eastern Arctic, and North Atlantic","Pelagic trawlers","40 m or larger",null,"E","Subsidies on investments","questionnaires &\nadministrative data base","A - Census","Every Year",1,null,1,1,1,1,100]
["POL","Baltic Sea, North Sea and Eastern Arctic, and North Atlantic","Pelagic trawlers","40 m or larger",null,"E","Consumption of fixed capital","questionnaires","A - Census","Every Year",1,null,1,1,1,1,100]
["POL","Baltic Sea, North Sea and Eastern Arctic, and North Atlantic","Pelagic trawlers","40 m or larger",null,"E","Value of physical capital","questionnaires & scraping premium","D - Indirect survey","Every Year",1,null,1,1,1,1,100]
["POL","Baltic Sea, North Sea and Eastern Arctic, and North Atlantic","Pelagic trawlers","40 m or larger",null,"E","Value of quota and other fishing rights","not relevant",null,null,null,null,"N/A","N/A","N/A","N/A","N/A"]
["POL","Baltic Sea, North Sea and Eastern Arctic, and North Atlantic","Pelagic trawlers","40 m or larger",null,"E","Investments in tangible assets, net","questionnaires","A - Census","Every Year",1,null,1,1,1,1,100]
["POL","Baltic Sea, North Sea and Eastern Arctic, and North Atlantic","Pelagic trawlers","40 m or larger",null,"E","Long/short Debt","questionnaires","A - Census","Every Year",1,null,1,1,1,1,100]
["POL","Baltic Sea, North Sea and Eastern Arctic, and North Atlantic","Pelagic trawlers","40 m or larger",null,"E","Total assets","questionnaires & scraping premium","D - Indirect survey","Every Year",1,null,1,1,1,1,100]
["POL","Baltic Sea, North Sea and Eastern Arctic, and North Atlantic","Pelagic trawlers","40 m or larger",null,"E","Engaged crew","questionnaires","A - Census","Every Year",1,null,1,1,1,1,100]
["POL","Baltic Sea, North Sea and Eastern Arctic, and North Atlantic","Pelagic trawlers","40 m or larger",null,"E","Unpaid labour","questionnaires","A - Census","Every Year",1,"starting collection every year in 2021",1,1,1,1,100]
["POL","Baltic Sea, North Sea and Eastern Arctic, and North Atlantic","Pelagic trawlers","40 m or larger",null,"E","Total hours worked per year","questionnaires & logbooks","D - Indirect survey","Every Year",1,null,1,1,1,1,100]
["POL","Baltic Sea, North Sea and Eastern Arctic, and North Atlantic","Pelagic trawlers","40 m or larger",null,"E","Number of vessels","questionnaires, Register","A - Census","Every Year",1,null,1,1,1,1,100]
["POL","Baltic Sea, North Sea and Eastern Arctic, and North Atlantic","Pelagic trawlers","40 m or larger",null,"E","Mean LOA of vessels","questionnaires, Register","A - Census","Every Year",1,null,1,1,1,1,100]
["POL","Baltic Sea, North Sea and Eastern Arctic, and North Atlantic","Pelagic trawlers","40 m or larger",null,"E","Total vessels tonnage","questionnaires, Register","A - Census","Every Year",1,null,1,1,1,1,100]
["POL","Baltic Sea, North Sea and Eastern Arctic, and North Atlantic","Pelagic trawlers","40 m or larger",null,"E","Total vessels power","questionnaires, Register","A - Census","Every Year",1,null,1,1,1,1,100]
["POL","Baltic Sea, North Sea and Eastern Arctic, and North Atlantic","Pelagic trawlers","40 m or larger",null,"E","Mean age of vessels","questionnaires, Register","A - Census","Every Year",1,null,1,1,1,1,100]
["POL","Baltic Sea, North Sea and Eastern Arctic, and North Atlantic","Pelagic trawlers","40 m or larger",null,"E","Days at sea","questionnaires, logbooks","A - Census","Every Year",1,null,1,1,1,1,100]
["POL","Baltic Sea, North Sea and Eastern Arctic, and North Atlantic","Pelagic trawlers","40 m or larger",null,"E","Energy consuption","questionnaires","A - Census","Every Year",1,null,1,1,1,1,100]
["POL","Baltic Sea, North Sea and Eastern Arctic, and North Atlantic","Pelagic trawlers","40 m or larger",null,"E","Number of fishing enterprises/units","Register","A - Census","Every Year",1,null,1,1,1,1,100]
["POL","Baltic Sea, North Sea and Eastern Arctic, and North Atlantic","Pelagic trawlers","40 m or larger",null,"E","Value of landings per species","First sale document","A - Census","Every Year",1,null,1,1,1,1,100]
["POL","Baltic Sea, North Sea and Eastern Arctic, and North Atlantic","Pelagic trawlers","40 m or larger",null,"E","Average price per spices","First sale document","A - Census","Every Year",1,null,1,1,1,1,100]
["POL","Baltic Sea, North Sea and Eastern Arctic, and North Atlantic","Pelagic trawlers","40 m or larger",null,"S","Employment by gender","questionnaires","A - Census","Every Year",1,null,1,1,1,1,100]
["POL","Baltic Sea, North Sea and Eastern Arctic, and North Atlantic","Pelagic trawlers","40 m or larger",null,"S","FTE by gender","questionnaires","A - Census","Every Year",1,null,1,1,1,1,100]
["POL","Baltic Sea, North Sea and Eastern Arctic, and North Atlantic","Pelagic trawlers","40 m or larger",null,"S","Unpaid labour by gender","questionnaires","A - Census","Every Year",1,"starting collection every year in 2021",1,1,1,1,100]
["POL","Baltic Sea, North Sea and Eastern Arctic, and North Atlantic","Pelagic trawlers","40 m or larger",null,"S","Employment by age","questionnaires","A - Census","Every Year",1,null,1,1,1,1,100]
["POL","Baltic Sea, North Sea and Eastern Arctic, and North Atlantic","Pelagic trawlers","40 m or larger",null,"S","Employment by education level","questionnaires","A - Census","Every Year",1,null,1,1,1,1,100]
["POL","Baltic Sea, North Sea and Eastern Arctic, and North Atlantic","Pelagic trawlers","40 m or larger",null,"S","Employment by nationality","questionnaires","A - Census","Every Year",1,"starting collection every year in 2021",1,1,1,1,100]
["POL","Baltic Sea, North Sea and Eastern Arctic, and North Atlantic","Pelagic trawlers","40 m or larger",null,"S","Employment by employment status","questionnaires","A - Census","Every Year",1,null,1,1,1,1,100]
["POL","Baltic Sea, North Sea and Eastern Arctic, and North Atlantic","Pelagic trawlers","40 m or larger",null,"S","FTE National","questionnaires","A - Census","Every Year",1,null,1,1,1,1,100]
["POL","Baltic Sea, North Sea and Eastern Arctic, and North Atlantic","Demersal trawlers and/or demersal seiners ","40 m or larger",null,"E","Gross value of landings","questionnaires","A - Census","Every Year",1,null,1,1,1,1,100]
["POL","Baltic Sea, North Sea and Eastern Arctic, and North Atlantic","Demersal trawlers and/or demersal seiners ","40 m or larger",null,"E","Income from leasing out quota or other fishing rights","not relevant",null,null,null,null,"N/A","N/A","N/A","N/A","N/A"]
["POL","Baltic Sea, North Sea and Eastern Arctic, and North Atlantic","Demersal trawlers and/or demersal seiners ","40 m or larger",null,"E","Other income","questionnaires","A - Census","Every Year",1,null,1,1,1,1,100]
["POL","Baltic Sea, North Sea and Eastern Arctic, and North Atlantic","Demersal trawlers and/or demersal seiners ","40 m or larger",null,"E","Wages and salaries of crew","questionnaires","A - Census","Every Year",1,null,1,1,1,1,100]
["POL","Baltic Sea, North Sea and Eastern Arctic, and North Atlantic","Demersal trawlers and/or demersal seiners ","40 m or larger",null,"E","Imputed value of unpaid labour","estimation","D - Indirect survey","Every Year",1,"starting collection every year in 2021",1,1,1,1,100]
["POL","Baltic Sea, North Sea and Eastern Arctic, and North Atlantic","Demersal trawlers and/or demersal seiners ","40 m or larger",null,"E","Energy costs","questionnaires","A - Census","Every Year",1,null,1,1,1,1,100]
["POL","Baltic Sea, North Sea and Eastern Arctic, and North Atlantic","Demersal trawlers and/or demersal seiners ","40 m or larger",null,"E","Repair and maintenance costs","questionnaires","A - Census","Every Year",1,null,1,1,1,1,100]
["POL","Baltic Sea, North Sea and Eastern Arctic, and North Atlantic","Demersal trawlers and/or demersal seiners ","40 m or larger",null,"E","Variable costs","questionnaires","A - Census","Every Year",1,null,1,1,1,1,100]
["POL","Baltic Sea, North Sea and Eastern Arctic, and North Atlantic","Demersal trawlers and/or demersal seiners ","40 m or larger",null,"E","Non-variable costs","questionnaires","A - Census","Every Year",1,null,1,1,1,1,100]
["POL","Baltic Sea, North Sea and Eastern Arctic, and North Atlantic","Demersal trawlers and/or demersal seiners ","40 m or larger",null,"E","Lease/rental payments for quota or other fishing rights","questionnaires","A - Census","Every Year",1,null,"N/A","N/A","N/A","N/A","N/A"]
["POL","Baltic Sea, North Sea and Eastern Arctic, and North Atlantic","Demersal trawlers and/or demersal seiners ","40 m or larger",null,"E","Operating Subsidies","questionnaires &\nadministrative data base","A - Census","Every Year",1,null,1,1,{"$f":"N327/M327","v":1},1,{"$f":"N327/(M327*K327/100)","v":100}]
["POL","Baltic Sea, North Sea and Eastern Arctic, and North Atlantic","Demersal trawlers and/or demersal seiners ","40 m or larger",null,"E","Subsidies on investments","questionnaires &\nadministrative data base","A - Census","Every Year",1,null,1,1,1,1,100]
["POL","Baltic Sea, North Sea and Eastern Arctic, and North Atlantic","Demersal trawlers and/or demersal seiners ","40 m or larger",null,"E","Consumption of fixed capital","questionnaires","A - Census","Every Year",1,null,1,1,1,1,100]
["POL","Baltic Sea, North Sea and Eastern Arctic, and North Atlantic","Demersal trawlers and/or demersal seiners ","40 m or larger",null,"E","Value of physical capital","questionnaires & scraping premium","D - Indirect survey","Every Year",1,null,1,1,1,1,100]
["POL","Baltic Sea, North Sea and Eastern Arctic, and North Atlantic","Demersal trawlers and/or demersal seiners ","40 m or larger",null,"E","Value of quota and other fishing rights","not relevant",null,null,null,null,"N/A","N/A","N/A","N/A","N/A"]
["POL","Baltic Sea, North Sea and Eastern Arctic, and North Atlantic","Demersal trawlers and/or demersal seiners ","40 m or larger",null,"E","Investments in tangible assets, net","questionnaires","A - Census","Every Year",1,null,1,1,1,1,100]
["POL","Baltic Sea, North Sea and Eastern Arctic, and North Atlantic","Demersal trawlers and/or demersal seiners ","40 m or larger",null,"E","Long/short Debt","questionnaires","A - Census","Every Year",1,null,1,1,1,1,100]
["POL","Baltic Sea, North Sea and Eastern Arctic, and North Atlantic","Demersal trawlers and/or demersal seiners ","40 m or larger",null,"E","Total assets","questionnaires & scraping premium","D - Indirect survey","Every Year",1,null,1,1,1,1,100]
["POL","Baltic Sea, North Sea and Eastern Arctic, and North Atlantic","Demersal trawlers and/or demersal seiners ","40 m or larger",null,"E","Engaged crew","questionnaires","A - Census","Every Year",1,null,1,1,1,1,100]
["POL","Baltic Sea, North Sea and Eastern Arctic, and North Atlantic","Demersal trawlers and/or demersal seiners ","40 m or larger",null,"E","Unpaid labour","questionnaires","A - Census","Every Year",1,"starting collection every year in 2021",1,1,1,1,100]
["POL","Baltic Sea, North Sea and Eastern Arctic, and North Atlantic","Demersal trawlers and/or demersal seiners ","40 m or larger",null,"E","Total hours worked per year","questionnaires & logbooks","D - Indirect survey","Every Year",1,null,1,1,1,1,100]
["POL","Baltic Sea, North Sea and Eastern Arctic, and North Atlantic","Demersal trawlers and/or demersal seiners ","40 m or larger",null,"E","Number of vessels","questionnaires, Register","A - Census","Every Year",1,null,1,1,1,1,100]
["POL","Baltic Sea, North Sea and Eastern Arctic, and North Atlantic","Demersal trawlers and/or demersal seiners ","40 m or larger",null,"E","Mean LOA of vessels","questionnaires, Register","A - Census","Every Year",1,null,1,1,1,1,100]
["POL","Baltic Sea, North Sea and Eastern Arctic, and North Atlantic","Demersal trawlers and/or demersal seiners ","40 m or larger",null,"E","Total vessels tonnage","questionnaires, Register","A - Census","Every Year",1,null,1,1,1,1,100]
["POL","Baltic Sea, North Sea and Eastern Arctic, and North Atlantic","Demersal trawlers and/or demersal seiners ","40 m or larger",null,"E","Total vessels power","questionnaires, Register","A - Census","Every Year",1,null,1,1,1,1,100]
["POL","Baltic Sea, North Sea and Eastern Arctic, and North Atlantic","Demersal trawlers and/or demersal seiners ","40 m or larger",null,"E","Mean age of vessels","questionnaires, Register","A - Census","Every Year",1,null,1,1,1,1,100]
["POL","Baltic Sea, North Sea and Eastern Arctic, and North Atlantic","Demersal trawlers and/or demersal seiners ","40 m or larger",null,"E","Days at sea","questionnaires, logbooks","A - Census","Every Year",1,null,1,1,1,1,100]
["POL","Baltic Sea, North Sea and Eastern Arctic, and North Atlantic","Demersal trawlers and/or demersal seiners ","40 m or larger",null,"E","Energy consuption","questionnaires","A - Census","Every Year",1,null,1,1,1,1,100]
["POL","Baltic Sea, North Sea and Eastern Arctic, and North Atlantic","Demersal trawlers and/or demersal seiners ","40 m or larger",null,"E","Number of fishing enterprises/units","Register","A - Census","Every Year",1,null,1,1,1,1,100]
["POL","Baltic Sea, North Sea and Eastern Arctic, and North Atlantic","Demersal trawlers and/or demersal seiners ","40 m or larger",null,"E","Value of landings per species","First sale document","A - Census","Every Year",1,null,1,1,1,1,100]
["POL","Baltic Sea, North Sea and Eastern Arctic, and North Atlantic","Demersal trawlers and/or demersal seiners ","40 m or larger",null,"E","Average price per spices","First sale document","A - Census","Every Year",1,null,1,1,1,1,100]
["POL","Baltic Sea, North Sea and Eastern Arctic, and North Atlantic","Demersal trawlers and/or demersal seiners ","40 m or larger",null,"S","Employment by gender","questionnaires","A - Census","Every Year",1,null,1,1,1,1,100]
["POL","Baltic Sea, North Sea and Eastern Arctic, and North Atlantic","Demersal trawlers and/or demersal seiners ","40 m or larger",null,"S","FTE by gender","questionnaires","A - Census","Every Year",1,null,1,1,1,1,100]
["POL","Baltic Sea, North Sea and Eastern Arctic, and North Atlantic","Demersal trawlers and/or demersal seiners ","40 m or larger",null,"S","Unpaid labour by gender","questionnaires","A - Census","Every Year",1,"starting collection every year in 2021",1,1,1,1,100]
["POL","Baltic Sea, North Sea and Eastern Arctic, and North Atlantic","Demersal trawlers and/or demersal seiners ","40 m or larger",null,"S","Employment by age","questionnaires","A - Census","Every Year",1,null,1,1,1,1,100]
["POL","Baltic Sea, North Sea and Eastern Arctic, and North Atlantic","Demersal trawlers and/or demersal seiners ","40 m or larger",null,"S","Employment by education level","questionnaires","A - Census","Every Year",1,null,1,1,1,1,100]
["POL","Baltic Sea, North Sea and Eastern Arctic, and North Atlantic","Demersal trawlers and/or demersal seiners ","40 m or larger",null,"S","Employment by nationality","questionnaires","A - Census","Every Year",1,"starting collection every year in 2021",1,1,1,1,100]
["POL","Baltic Sea, North Sea and Eastern Arctic, and North Atlantic","Demersal trawlers and/or demersal seiners ","40 m or larger",null,"S","Employment by employment status","questionnaires","A - Census","Every Year",1,null,1,1,1,1,100]
["POL","Baltic Sea, North Sea and Eastern Arctic, and North Atlantic","Demersal trawlers and/or demersal seiners ","40 m or larger",null,"S","FTE National","questionnaires","A - Census","Every Year",1,null,1,1,1,1,100]
["POL","Baltic Sea, North Sea and Eastern Arctic, and North Atlantic","inactive","all length classes",null,"E","Number of vessels","questionnaires, Register","A - Census","Every Year",1,null,41,41,1,1,100]
["POL","Baltic Sea, North Sea and Eastern Arctic, and North Atlantic","inactive","all length classes",null,"E","Mean LOA of vessels","questionnaires, Register","A - Census","Every Year",1,null,41,41,1,1,100]
["POL","Baltic Sea, North Sea and Eastern Arctic, and North Atlantic","inactive","all length classes",null,"E","Total vessels tonnage","questionnaires, Register","A - Census","Every Year",1,null,41,41,1,1,100]
["POL","Baltic Sea, North Sea and Eastern Arctic, and North Atlantic","inactive","all length classes",null,"E","Total vessels power","questionnaires, Register","A - Census","Every Year",1,null,41,41,1,1,100]
["POL","Baltic Sea, North Sea and Eastern Arctic, and North Atlantic","inactive","all length classes",null,"E","Mean age of vessels","questionnaires, Register","A - Census","Every Year",1,null,41,41,1,1,100]
["POL","Baltic Sea, North Sea and Eastern Arctic, and North Atlantic","inactive","all length classes",null,"E","Number of fishing enterprises/units","Register","A - Census","Every Year",1,null,41,41,1,1,100]
["POL","Baltic Sea, North Sea and Eastern Arctic, and North Atlantic","inactive","all length classes",null,"E","Value of physical capital","questionnaires","A - Census","Every Year",1,null,41,41,1,1,100]
["POL","Baltic Sea, North Sea and Eastern Arctic, and North Atlantic","inactive","all length classes",null,"E","Consumption of fixed capital","questionnaires","A - Census","Every Year",1,null,41,41,1,1,100]
["POL","Baltic Sea, North Sea and Eastern Arctic, and North Atlantic","Vessels using Pots and/or traps","24-<40 m",null,"E","Gross value of landings","questionnaires","A - Census","Every Year",1,null,1,1,1,1,100,"new segment, not included in WP"]
["POL","Baltic Sea, North Sea and Eastern Arctic, and North Atlantic","Vessels using Pots and/or traps","24-<40 m",null,"E","Income from leasing out quota or other fishing rights","not relevant",null,null,null,null,"N/A","N/A","N/A","N/A","N/A","new segment, not included in WP"]
["POL","Baltic Sea, North Sea and Eastern Arctic, and North Atlantic","Vessels using Pots and/or traps","24-<40 m",null,"E","Other income","questionnaires","A - Census","Every Year",1,null,1,1,1,1,100,"new segment, not included in WP"]
["POL","Baltic Sea, North Sea and Eastern Arctic, and North Atlantic","Vessels using Pots and/or traps","24-<40 m",null,"E","Wages and salaries of crew","questionnaires","A - Census","Every Year",1,null,1,1,1,1,100,"new segment, not included in WP"]
["POL","Baltic Sea, North Sea and Eastern Arctic, and North Atlantic","Vessels using Pots and/or traps","24-<40 m",null,"E","Imputed value of unpaid labour","estimation","D - Indirect survey","Every Year",1,null,1,1,1,1,100,"new segment, not included in WP"]
["POL","Baltic Sea, North Sea and Eastern Arctic, and North Atlantic","Vessels using Pots and/or traps","24-<40 m",null,"E","Energy costs","questionnaires","A - Census","Every Year",1,null,1,1,1,1,100,"new segment, not included in WP"]
["POL","Baltic Sea, North Sea and Eastern Arctic, and North Atlantic","Vessels using Pots and/or traps","24-<40 m",null,"E","Repair and maintenance costs","questionnaires","A - Census","Every Year",1,null,1,1,1,1,100,"new segment, not included in WP"]
["POL","Baltic Sea, North Sea and Eastern Arctic, and North Atlantic","Vessels using Pots and/or traps","24-<40 m",null,"E","Variable costs","questionnaires","A - Census","Every Year",1,null,1,1,1,1,100,"new segment, not included in WP"]
["POL","Baltic Sea, North Sea and Eastern Arctic, and North Atlantic","Vessels using Pots and/or traps","24-<40 m",null,"E","Non-variable costs","questionnaires","A - Census","Every Year",1,null,1,1,1,1,100,"new segment, not included in WP"]
["POL","Baltic Sea, North Sea and Eastern Arctic, and North Atlantic","Vessels using Pots and/or traps","24-<40 m",null,"E","Lease/rental payments for quota or other fishing rights","not relevant",null,null,null,null,"N/A","N/A","N/A","N/A","N/A","new segment, not included in WP"]
["POL","Baltic Sea, North Sea and Eastern Arctic, and North Atlantic","Vessels using Pots and/or traps","24-<40 m",null,"E","Operating Subsidies","questionnaires &\nadministrative data base","A - Census","Every Year",1,null,1,1,1,1,100,"new segment, not included in WP"]
["POL","Baltic Sea, North Sea and Eastern Arctic, and North Atlantic","Vessels using Pots and/or traps","24-<40 m",null,"E","Subsidies on investments","questionnaires &\nadministrative data base","A - Census","Every Year",1,null,1,1,1,1,100,"new segment, not included in WP"]
["POL","Baltic Sea, North Sea and Eastern Arctic, and North Atlantic","Vessels using Pots and/or traps","24-<40 m",null,"E","Consumption of fixed capital","questionnaires","A - Census","Every Year",1,null,1,1,1,1,100,"new segment, not included in WP"]
["POL","Baltic Sea, North Sea and Eastern Arctic, and North Atlantic","Vessels using Pots and/or traps","24-<40 m",null,"E","Value of physical capital","questionnaires & scraping premium","D - Indirect survey","Every Year",1,null,1,1,1,1,100,"new segment, not included in WP"]
["POL","Baltic Sea, North Sea and Eastern Arctic, and North Atlantic","Vessels using Pots and/or traps","24-<40 m",null,"E","Value of quota and other fishing rights","not relevant",null,null,null,null,"N/A","N/A","N/A","N/A","N/A","new segment, not included in WP"]
["POL","Baltic Sea, North Sea and Eastern Arctic, and North Atlantic","Vessels using Pots and/or traps","24-<40 m",null,"E","Investments in tangible assets, net","questionnaires","A - Census","Every Year",1,null,1,1,1,1,100,"new segment, not included in WP"]
["POL","Baltic Sea, North Sea and Eastern Arctic, and North Atlantic","Vessels using Pots and/or traps","24-<40 m",null,"E","Long/short Debt","questionnaires","A - Census","Every Year",1,null,1,1,1,1,100,"new segment, not included in WP"]
["POL","Baltic Sea, North Sea and Eastern Arctic, and North Atlantic","Vessels using Pots and/or traps","24-<40 m",null,"E","Total assets","questionnaires & scraping premium","D - Indirect survey","Every Year",1,null,1,1,1,1,100,"new segment, not included in WP"]
["POL","Baltic Sea, North Sea and Eastern Arctic, and North Atlantic","Vessels using Pots and/or traps","24-<40 m",null,"E","Engaged crew","questionnaires","A - Census","Every Year",1,null,1,1,1,1,100,"new segment, not included in WP"]
["POL","Baltic Sea, North Sea and Eastern Arctic, and North Atlantic","Vessels using Pots and/or traps","24-<40 m",null,"E","Unpaid labour","questionnaires","A - Census","Every Year",1,null,1,1,1,1,100,"new segment, not included in WP"]
["POL","Baltic Sea, North Sea and Eastern Arctic, and North Atlantic","Vessels using Pots and/or traps","24-<40 m",null,"E","Total hours worked per year","questionnaires & logbooks","D - Indirect survey","Every Year",1,null,1,1,1,1,100,"new segment, not included in WP"]
["POL","Baltic Sea, North Sea and Eastern Arctic, and North Atlantic","Vessels using Pots and/or traps","24-<40 m",null,"E","Number of vessels","questionnaires, Register","A - Census","Every Year",1,null,1,1,1,1,100,"new segment, not included in WP"]
["POL","Baltic Sea, North Sea and Eastern Arctic, and North Atlantic","Vessels using Pots and/or traps","24-<40 m",null,"E","Mean LOA of vessels","questionnaires, Register","A - Census","Every Year",1,null,1,1,1,1,100,"new segment, not included in WP"]
["POL","Baltic Sea, North Sea and Eastern Arctic, and North Atlantic","Vessels using Pots and/or traps","24-<40 m",null,"E","Total vessels tonnage","questionnaires, Register","A - Census","Every Year",1,null,1,1,1,1,100,"new segment, not included in WP"]
["POL","Baltic Sea, North Sea and Eastern Arctic, and North Atlantic","Vessels using Pots and/or traps","24-<40 m",null,"E","Total vessels power","questionnaires, Register","A - Census","Every Year",1,null,1,1,1,1,100,"new segment, not included in WP"]
["POL","Baltic Sea, North Sea and Eastern Arctic, and North Atlantic","Vessels using Pots and/or traps","24-<40 m",null,"E","Mean age of vessels","questionnaires, Register","A - Census","Every Year",1,null,1,1,1,1,100,"new segment, not included in WP"]
["POL","Baltic Sea, North Sea and Eastern Arctic, and North Atlantic","Vessels using Pots and/or traps","24-<40 m",null,"E","Days at sea","questionnaires, logbooks","A - Census","Every Year",1,null,1,1,1,1,100,"new segment, not included in WP"]
["POL","Baltic Sea, North Sea and Eastern Arctic, and North Atlantic","Vessels using Pots and/or traps","24-<40 m",null,"E","Energy consuption","questionnaires","A - Census","Every Year",1,null,1,1,1,1,100,"new segment, not included in WP"]
["POL","Baltic Sea, North Sea and Eastern Arctic, and North Atlantic","Vessels using Pots and/or traps","24-<40 m",null,"E","Number of fishing enterprises/units","Register","A - Census","Every Year",1,null,1,1,1,1,100,"new segment, not included in WP"]
["POL","Baltic Sea, North Sea and Eastern Arctic, and North Atlantic","Vessels using Pots and/or traps","24-<40 m",null,"E","Value of landings per species","First sale document","A - Census","Every Year",1,null,1,1,1,1,100,"new segment, not included in WP"]
["POL","Baltic Sea, North Sea and Eastern Arctic, and North Atlantic","Vessels using Pots and/or traps","24-<40 m",null,"E","Average price per spices","First sale document","A - Census","Every Year",1,null,1,1,1,1,100,"new segment, not included in WP"]
["POL","Baltic Sea, North Sea and Eastern Arctic, and North Atlantic","Vessels using Pots and/or traps","24-<40 m",null,"S","Employment by gender","questionnaires","A - Census","Every Year",1,null,1,1,1,1,100,"new segment, not included in WP"]
["POL","Baltic Sea, North Sea and Eastern Arctic, and North Atlantic","Vessels using Pots and/or traps","24-<40 m",null,"S","FTE by gender","questionnaires","A - Census","Every Year",1,null,1,1,1,1,100,"new segment, not included in WP"]
["POL","Baltic Sea, North Sea and Eastern Arctic, and North Atlantic","Vessels using Pots and/or traps","24-<40 m",null,"S","Unpaid labour by gender","questionnaires","A - Census","Every Year",1,null,1,1,1,1,100,"new segment, not included in WP"]
["POL","Baltic Sea, North Sea and Eastern Arctic, and North Atlantic","Vessels using Pots and/or traps","24-<40 m",null,"S","Employment by age","questionnaires","A - Census","Every Year",1,null,1,1,1,1,100,"new segment, not included in WP"]
["POL","Baltic Sea, North Sea and Eastern Arctic, and North Atlantic","Vessels using Pots and/or traps","24-<40 m",null,"S","Employment by education level","questionnaires","A - Census","Every Year",1,null,1,1,1,1,100,"new segment, not included in WP"]
["POL","Baltic Sea, North Sea and Eastern Arctic, and North Atlantic","Vessels using Pots and/or traps","24-<40 m",null,"S","Employment by nationality","questionnaires","A - Census","Every Year",1,null,1,1,1,1,100,"new segment, not included in WP"]
["POL","Baltic Sea, North Sea and Eastern Arctic, and North Atlantic","Vessels using Pots and/or traps","24-<40 m",null,"S","Employment by employment status","questionnaires","A - Census","Every Year",1,null,1,1,1,1,100,"new segment, not included in WP"]
["POL","Baltic Sea, North Sea and Eastern Arctic, and North Atlantic","Vessels using Pots and/or traps","24-<40 m",null,"S","FTE National","questionnaires","A - Census","Every Year",1,null,1,1,1,1,100,"new segment, not included in WP"]

{"sheet":"Table3B Pop segments aquacultur","index":10,"n_rows":5,"n_cols":18,"rows_kept":5,"cut":false,"hidden":false,"merged":[]}
["Table 3B: Population segments for collection of economic and social data for aquaculture"]
[null,null,null,null,null,null,null,null,null,null,null,null,null,null,null,null,"WP  years","2020-2021"]
[null,null,null,null,null,null,null,null,null,null,null,null,null,null,null,null,"AR year",2020]
["MS","Techniques","Species group","Type of variables (E/S)","Variable","Data source","Type of data collection scheme ","Threshold (Y/N)","Threshold Type","Frequency","Planned sample rate % ","Comments","Frame population","Achieved sample number","Achieved Sample Rate %","Response Rate %","Achieved Sample no/Planned sample no.","AR Comment"]
["POL","NA","NA","NA","NA","NA","NA","NA",null,"NA","NA","According to  classification of aquaculture activities by Eurostat statistics, Poland has no marine aquaculture sector. Hence, no sampling is planned"]

{"sheet":"Table3C Pop segments processin","index":11,"n_rows":30,"n_cols":15,"rows_kept":30,"cut":false,"hidden":false,"merged":[]}
["Table 3C: Population segments for collection of economic and social data for the processing industry"]
[null,null,null,null,null,null,null,null,null,null,null,null,null,"WP  years","2020-2021"]
[null,null,null,null,null,null,null,null,null,null,null,null,null,"AR year",2020]
["MS","Segment","Type of variables (E/S)","Variables ","Data sources","Type of data collection scheme ","Frequency","Planned sample rate % ","Comments","Frame population","Achieved sample number","Achieved Sample Rate %","Response Rate %","Achieved Sample no/Planned sample no.","AR Comments"]
["POL","All segments","E","Turnover","questionnaires","A - Census","every year",100,null,228,163,{"$f":"K5/J5","v":0.71491228070175439},0.76754385964912286,{"$f":"K5/(J5*H5/100)","v":0.71491228070175439}]
["POL","All segments","E","Other income","questionnaires","A - Census","every year",100,null,228,163,{"$f":"K6/J6","v":0.71491228070175439},0.76754385964912286,{"$f":"K6/(J6*H6/100)","v":0.71491228070175439}]
["POL","All segments","E","Personnel costs","questionnaires","A - Census","every year",100,null,228,163,0.71491228070175439,0.76754385964912286,0.71491228070175439]
["POL","All segments","E","Value of unpaid labour","questionnaires","A - Census","every year",100,null,228,163,0.71491228070175439,0.76754385964912286,0.71491228070175439]
["POL","All segments","E","Energy costs","questionnaires","A - Census","every year",100,null,228,163,0.71491228070175439,0.76754385964912286,0.71491228070175439]
["POL","All segments","E","Purchase of fish and other raw material for production","questionnaires","A - Census","every year",100,null,228,163,0.71491228070175439,0.76754385964912286,0.71491228070175439]
["POL","All segments","E","Other operational costs","questionnaires","A - Census","every year",100,null,228,163,0.71491228070175439,0.76754385964912286,0.71491228070175439]
["POL","All segments","E","Operating subsidies","questionnaires","A - Census","every year",100,null,228,163,0.71491228070175439,0.76754385964912286,0.71491228070175439]
["POL","All segments","E","Subsidies on investments","questionnaires","A - Census","every year",100,null,228,163,0.71491228070175439,0.76754385964912286,0.71491228070175439]
["POL","All segments","E","Consumption of fixed capital","questionnaires","A - Census","every year",100,null,228,163,0.71491228070175439,0.76754385964912286,0.71491228070175439]
["POL","All segments","E","Total value of assets","questionnaires","A - Census","every year",100,null,228,163,0.71491228070175439,0.76754385964912286,0.71491228070175439]
["POL","All segments","E","Financial income","questionnaires","A - Census","every year",100,null,228,163,0.71491228070175439,0.76754385964912286,0.71491228070175439]
["POL","All segments","E","Financial expenditures","questionnaires","A - Census","every year",100,null,228,163,0.71491228070175439,0.76754385964912286,0.71491228070175439]
["POL","All segments","E","Net investments","questionnaires","A - Census","every year",100,null,228,163,0.71491228070175439,0.76754385964912286,0.71491228070175439]
["POL","All segments","E","Debt","questionnaires","A - Census","every year",100,null,228,163,0.71491228070175439,0.76754385964912286,0.71491228070175439]
["POL","All segments","E","Number of persons employed","questionnaires","A - Census","every year",100,null,228,163,0.71491228070175439,0.76754385964912286,0.71491228070175439]
["POL","All segments","E","FTE National","questionnaires","A - Census","every year",100,null,228,163,0.71491228070175439,0.76754385964912286,0.71491228070175439]
["POL","All segments","E","Unpaid labour","questionnaires","A - Census","every year",100,null,228,163,0.71491228070175439,0.76754385964912286,0.71491228070175439]
["POL","All segments","E","Number of hours worked by employees and unpaid workers","questionnaires","A - Census","every year",100,null,228,163,0.71491228070175439,0.76754385964912286,0.71491228070175439]
["POL","All segments","E","Number of enterprises","questionnaires","A - Census","every year",100,null,228,163,0.71491228070175439,0.76754385964912286,0.71491228070175439]
["POL","All segments","E","Weight of raw material per species and origin (optional)","questionnaires","A - Census","every year",100,null,228,163,0.71491228070175439,0.76754385964912286,0.71491228070175439]
["POL","All segments","S","Employment by gender","questionnaires","A - Census","every year",100,null,228,163,0.71491228070175439,0.76754385964912286,0.71491228070175439]
["POL","All segments","S","Employment by age","questionnaires","A - Census","every year",100,null,228,163,0.71491228070175439,0.76754385964912286,0.71491228070175439]
["POL","All segments","S","Employment by education level","questionnaires","A - Census","every year",100,"starting collection every year in 2021","NA","NA","NA","NA","NA","NA"]
["POL","All segments","S","Employment by nationality","questionnaires","A - Census","every year",100,null,228,163,0.71491228070175439,0.76754385964912286,0.71491228070175439]
["POL","All segments","S","FTE National","questionnaires","A - Census","every year",100,null,228,163,0.71491228070175439,0.76754385964912286,0.71491228070175439]

{"sheet":"Table4A Sampling plan descripti","index":12,"n_rows":14,"n_cols":25,"rows_kept":14,"cut":false,"hidden":false,"merged":[[3,15,3,17],[3,18,3,24]]}
["Table 4A: Sampling plan description for biological data"]
[null,null,null,null,null,null,null,null,null,null,null,null,null,null,null,null,null,null,null,null,null,null,null,"WP  years","2020-2021"]
[null,null,null,null,null,null,null,null,null,null,null,null,null,null,null,null,null,null,null,null,null,null,null,"AR year",2020]
[null,null,null,null,null,null,null,null,null,null,null,null,null,null,null,"Conformity",null,null,"Informative Data"]
["MS","MS participating in sampling","Region","RFMO/RFO/IO","Sub-area / Fishing ground","Scheme","Stratum ID code","PSU type","Catch fractions covered","Species/ Stocks covered for estimation of volume and length of catch fractions","Seasonality (Temporal strata)","Reference years","Average Number of PSU during the reference years         ","Planned number of PSUs","Comments","Total number of PSU in the sampling year","Achieved number of PSU in the sampling year","% of achievement (100*Q/N)","Number of unique vessels with activity in the stratum","Number of unique vessels sampled ","Number of fishing trips in the stratum","Number of fishing trips sampled ","Number of species with length measurements","Total number of length measurements","AR Comments "]
["POL","POL","Baltic Sea (ICES areas III b-d) ","ICES","22-32","Baltic at sea and on shore","BAL VL0010","vessel trip","Landings + Discards","all species and stocks","Quarterly",2018,41390,80,"coverage 100%",21737,55,68.75,523,22,21737,55,32,11184,"Low performance is the result of four main factors: high refusal rate,  restrictions on people movevement or lack of vessels activity caused by Covid-19, fishing bans. See Text Boxex 1C and 4A for more details."]
["POL","POL","Baltic Sea (ICES areas III b-d) ","ICES","22-32","Baltic at sea and on shore","BAL VL1012","vessel trip","Landings + Discards","all species and stocks","Quarterly",2018,7227,19,"coverage 100%",5228,10,52.631578947368418,129,6,5228,10,23,1741,"Low performance is the result of four main factors: high refusal rate,  restrictions on people movevement or lack of vessels activity caused by Covid-19, fishing bans. See Text Boxex 1C and 4A for more details."]
["POL","POL","Baltic Sea (ICES areas III b-d) ","ICES","22-32","Baltic at sea and on shore","BAL VL1218","vessel trip","Landings + Discards","all species and stocks","Quarterly",2018,2627,17,"coverage 100%",1949,12,70.588235294117652,51,7,1949,12,6,1741,"Low performance is the result of four main factors: high refusal rate,  restrictions on people movevement or lack of vessels activity caused by Covid-19, fishing bans. See Text Boxex 1C and 4A for more details."]
["POL","POL","Baltic Sea (ICES areas III b-d) ","ICES","22-32","Baltic at sea and on shore","BAL VL1824","vessel trip","Landings + Discards","all species and stocks","Quarterly",2018,3666,33,"coverage 100%",2808,17,51.515151515151516,57,11,2808,17,6,4366,"Low performance is the result of four main factors: high refusal rate,  restrictions on people movevement or lack of vessels activity caused by Covid-19, fishing bans. See Text Boxex 1C and 4A for more details."]
["POL","POL","Baltic Sea (ICES areas III b-d) ","ICES","22-32","Baltic at sea and on shore","BAL VL2440","vessel trip","Landings + Discards","all species and stocks","Quarterly",2018,3128,72,"coverage 100%",2711,25,34.722222222222221,44,14,2711,25,8,7307,"Low performance is the result of four main factors: high refusal rate,  restrictions on people movevement or lack of vessels activity caused by Covid-19, fishing bans. See Text Boxex 1C and 4A for more details."]
["POL","POL","North Sea (ICES areas IIIa and IV), Eastern Arctic (ICES areas I and II) ","ICES","I, II","North Sea and Eastern Arctic at sea","NSEA","vessel trip","Landings + Discards","only stocks in Table 1A","Annual ","2016-2018",4,1,"One vessel only - no selection needed",7,0,0,2,0,7,0,0,0,"No sampling performed in 2020 due to COVID-19 (closed borders, restrictions in poeple movement, safaty issues)."]
["POL","DEU - LTU -LVA - NLD - POL","Other regions","CECAF","34.1.3, 34.3.1","Other fishing regions at sea","OFR1","vessel trip","Landings + Discards","selected species/stocks","Annual ","2016-2018",9,"NA","Selection for sampling stemming from international obligations and based on the Multi-lateral agreement for biological data collection of pelagic fisheries in CECAF waters (http://dcf.mir.gdynia.pl/?page_id=365) and on the Sampling Protocol -  “Biological Data Collection of pelagic fisheries in CECAF waters in compliance with the DCF, version 8-03-2018”. ( http://dcf.mir.gdynia.pl/?page_id=367 ). Subject to the availability of place for scientific observers on board the EU fishing vessels operating in the area, two observer trips per quarter are planned.",0,0,"NA",0,0,0,0,0,0,"Joint sampling program based on Multilateral Agreement (see Table 7C).    (http://dcf.mir.gdynia.pl/?page_id=365)   POL is coordinating joint sampling programme from 2018. Sampling plan set in line with \"Biological Data Collection of pelagic fisheries in CECAF waters - Manual for scientific observers on board EU pelagic trawlers in CECAF area\", ver. 8-03-2018. There were no fishing activity by Polish vessels in CECAF area in 2020, netiher there was any biological sampling of the fishery conducted in 2020. Biological sampling of the fishery conducted by the EU vessels  is executed by Poland on behalf of UE MS concerned (parties to the agreements). As an executor of biological sampling, Poland reports this activity in its AR on behalf of MS concerned. MS concerned, parties to the multilateral agreements, in their ARs make only the reference to Polish AR regarding sampling activity in the CECAF area. No sampling performed in 2020 due to COVID-19 (closed borders, restrictions in poeple movement, safaty issues)."]
["POL","DEU - LTU - NLD - POL","Other regions","SPRFMO","SPRFMO Convention Area","Other fishing regions at sea","OFR2","vessel trip","Landings + Discards","only stock in Table 1C","Annual ","2016-2018",2,"NA","Multilateral Agreement for biological data collection of pelagic fisheries in SPRFMO waters (http://dcf.mir.gdynia.pl/?page_id=365).  According to the SPRFMO requirements (\"CMM 01-2019; Conservation and Management Measure for Trachurus Murphyi\"), a minimum of 10% of all fishing trips shall be observed/sampled - https://www.sprfmo.int/assets/Fisheries/Conservation-and-Management-Measures/2019-CMMs/CMM-01-2019-5Mar2019.pdf",0,0,"NA",0,0,0,0,0,0,"Joint sampling program based on Multilateral Agreement (see Table 7C).  (http://dcf.mir.gdynia.pl/?page_id=365). POL is coordinating joint sampling programme from 2017. Sampling programme set in line with the SPRFMO Data Standards (CMM 02-2018) and the requirements of the SPRFMO Conservation and Managemnt Measure for Trachurus murphyi (CMM 01-2019).  Biological sampling of the fishery conducted by the EU vessels  is executed and reported by Poland on behalf of UE MS concerned (parties to the agreements). No EU fishing activity in SPRFMO area, hence no sampling in 2020."]
["POL","POL","Baltic Sea (ICES areas III b-d) ","ICES","22-32","self-sampling of small pelagic's","Pelagics_pilot","vessel_trip","Landings","all species and stocks","Quaterly","02-05.2019",1413,10,"NA",1640,4,40,54,4,1640,4,6,1018,"New row, not corresponding to any sampling frame in the WP. Samples were collected as part of Intersessional Subgroup 'Case study of fisheries for small pelagic's in the Baltic'. The data were collected in three months period (February-April) in 2020"]

{"sheet":"Table4B Sampling frame descrip","index":13,"n_rows":13,"n_cols":6,"rows_kept":13,"cut":false,"hidden":false,"merged":[]}
["Table 4B: Sampling frame description for biological data"]
[null,null,null,null,"WP  years","2020-2021"]
[null,null,null,null,"AR year",2020]
["MS","Stratum ID number","Stratum","Sampling frame description ","Method of PSU selection ","Comments"]
["POL","BAL VL0010","Baltic vessels under 10 meters in length.","List of 508 vessels under 10 meters in length ","random draw  "]
["POL","BAL VL1012","Baltic vessels between 10 and 12 meters in length.","List of 114 vessels between 10 and 12 meters in length ","random draw "]
["POL","BAL VL1218","Baltic vessels between 12 and 18 meters in length.","List of 52 vessels between 12 and 18 meters in length ","random draw "]
["POL","BAL VL1824","Baltic vessels between 18 and 24 meters in length.","List of 55 vessels between 18 and 24 meters in length ","random draw "]
["POL","BAL VL2440","Baltic vessels between 24 and 40 meters in length.","List of 46 vessels between 24 and 40 meters in length ","random draw ","One vessel over 40 meters in length was included in this stratum to avoid the risk of being identified"]
["POL","NSEA","Freezer trawler targetting cod in NS&EA","1 trawler targeting cod","NA","One vessel only - no selection needed"]
["POL","OFR1","Pelagic trawlers fishing in CECAF","Pelagic trawlers fishing in CECAF","NA","Multilateral agreement on joint sampling programme"]
["POL","OFR2","Pelagic trawlers fishing in SPRFMO","Pelagic trawlers fishing in SPRFMO","NA","Multilateral agreement on joint sampling programme"]
["POL","Pelagics_pilot","Baltic vessels fishing for small pelagic's","List of 56 vessels which met the following criteria: were active at least once in the period Ferbuary-April in 2019, were using OTM, had total landings 10t minimum, were targeting sprat or herring (over 95%), have length above 17.5m.","random draw","New row. This is no corresponding to the sampling frame in the WP. Samples were collected as a part of Intersessional Subgroup 'Case study of fisheries for small pelagic's in the Baltic'. The data were collected in the three months period (February-April) in 2020"]

{"sheet":"Table4C Data on the fisheries","index":14,"n_rows":46,"n_cols":22,"rows_kept":46,"cut":false,"hidden":false,"merged":[]}
["Table 4C: Data on the fisheries by member state",null,null,null,null,null,null,null,null,null,null,null,null,{"$f":"Q22/J22","v":0.33372436080772921},{"$f":"Q11/J11","v":0.56269244980908983},{"$f":"37787/58800","v":0.64263605442176874}]
[null,null,null,null,null,null,null,null,null,null,null,null,null,null,null,null,null,null,null,null,"WP  years","2020-2021"]
[null,null,null,null,null,null,null,null,null,null,null,null,null,null,null,null,null,null,null,null,"AR year",2020]
["MS","Region","RFMO/RFO/IO","Sub-area / Fishing ground","Reference years","Fleet segment / Metier","Targeted species / species assemblage","Average number of vessels","Average number of fishing trips ","Average number of fishing days ","Average landings (tons) ","Average landings (tons) in national ports","Average landings (tons) in foreign ports","Comments","Number of vessels","Number of fishing trips","Number of fishing days","Is the fleet segment/ metier covered by any stratum (Y/N)","Landings (tons)","Landings (tons) in national ports","Landings (tons) in foreign ports","AR  Comments"]
["POL","Baltic Sea (ICES areas III b-d)","ICES","22-32","2016-2018","FPO_ANA_>0_0_0","ANA",4.67,10.67,10.67,{"$f":"L5+M5","v":3.83},3.83,0,null,4,10,10,"Y",0.8,0.8,0]
["POL","Baltic Sea (ICES areas III b-d)","ICES","22-32","2016-2018","FPO_DEF_>0_0_0","DEF",23.33,189.33,189.33,3.72,3.72,0,null,21,80,80,"Y",1.05,1.05,0]
["POL","Baltic Sea (ICES areas III b-d)","ICES","22-32","2016-2018","FPO_FWS_>0_0_0","FWS",200,7582.33,7582.33,1545.47,1545.47,0,null,218,3769,3769,"Y",674.18,674.18,0]
["POL","Baltic Sea (ICES areas III b-d)","ICES","22-32","2016-2018","FPO_SPF_>0_0_0","SPF",95.67,971.67,971.67,1823.66,1823.66,0,null,69,482,482,"Y",219.33,219.33,0]
["POL","Baltic Sea (ICES areas III b-d)","ICES","22-32","2016-2018","GNS_ANA_110-156_0_0","ANA",35,155.33000000000001,155.33000000000001,6.91,6.91,0,null,15,44,44,"Y",2.0699999999999998,2.0699999999999998,0]
["POL","Baltic Sea (ICES areas III b-d)","ICES","22-32","2016-2018","GNS_ANA_>=157_0_0","ANA",173.33,2078,2119.67,138.63,138.63,0,null,167,1760,1790,"Y",94.45,94.45,0]
["POL","Baltic Sea (ICES areas III b-d)","ICES","22-32","2016-2018","GNS_DEF_110-156_0_0","DEF",370.67,15399.67,16238,4966.03,4966.03,0,null,372,9052,9137,"Y",2657.57,2657.57,0]
["POL","Baltic Sea (ICES areas III b-d)","ICES","22-32","2016-2018","GNS_DEF_>=157_0_0","DEF",110,946.33,978.67,267.19,267.19,0,null,103,1300,1327,"Y",235.51,235.51,0]
["POL","Baltic Sea (ICES areas III b-d)","ICES","22-32","2016-2018","GNS_FWS_>0_0_0","FWS",280.33,10763.33,10764.33,1249.21,1249.21,0,null,314,8267,8267,"Y",880.16,880.16,0]
["POL","Baltic Sea (ICES areas III b-d)","ICES","22-32","2016-2018","GNS_SPF_32-109_0_0","SPF",226.33,2705,2707.33,1301.48,1301.48,0,null,222,2227,2227,"Y",924.99,924.99,0]
["POL","Baltic Sea (ICES areas III b-d)","ICES","22-32","2016-2018","LLD_ANA_0_0_0","ANA",58.33,463.67,856.33,121.65,121.65,0,null,54,242,403,"Y",27.89,27.89,0]
["POL","Baltic Sea (ICES areas III b-d)","ICES","22-32","2016-2018","LLD_SPF_0_0_0","SPF",0.67,0.67,0.67,13.33,0,13.33,null,1,4,4,"Y",0.55000000000000004,0.55000000000000004,0]
["POL","Baltic Sea (ICES areas III b-d)","ICES","22-32","2016-2018","LLS_CAT_0_0_0","CAT",45.33,344,344.33,2.67,2.67,0,null,14,111,111,"Y",0.75,0.75,0]
["POL","Baltic Sea (ICES areas III b-d)","ICES","22-32","2016-2018","LLS_DEF_0_0_0","DEF",80,854,895,390.63,390.63,0,null,6,18,18,"Y",1.38,1.38,0]
["POL","Baltic Sea (ICES areas III b-d)","ICES","22-32","2016-2018","LLS_FWS_0_0_0","FWS",5.33,31.33,31.33,0.91,0.91,0,null,1,2,2,"Y",0.02,0.02,0]
["POL","Baltic Sea (ICES areas III b-d)","ICES","22-32","2016-2018","LLS_SPF_0_0_0","SPF",0.67,0.67,0.67,0.1,0.1,0,null,1,1,1,"Y",0.02,0.02,0]
["POL","Baltic Sea (ICES areas III b-d)","ICES","22-32","2016-2018","OTB_DEF_<16_0_0","DEF",4.33,9.67,14.67,31.69,30.6,1.0900000000000001,null,3,4,4,"Y",34.35,34.35,0]
["POL","Baltic Sea (ICES areas III b-d)","ICES","22-32","2016-2018","OTB_DEF_>=105_1_120","DEF",129,3623,6538.33,14978.029999999999,14938.9,39.130000000000003,null,74,1208,2182,"Y",5351.68,5298.95,52.73]
["POL","Baltic Sea (ICES areas III b-d)","ICES","22-32","2016-2018","OTB_FWS_>0_0_0","FWS",19.670000000000002,325,413.67,114.04,114.04,0,null,17,241,321,"Y",58.02,58.02,0]
["POL","Baltic Sea (ICES areas III b-d)","ICES","22-32","2016-2018","OTB_SPF_16-31_0_0","SPF",10.67,30.33,35,272.70999999999998,239.42,33.29,null,11,27,27,"Y",277.75,205.2,72.55]
["POL","Baltic Sea (ICES areas III b-d)","ICES","22-32","2016-2018","OTB_SPF_32-104_0_0","SPF",13.67,84,104.33,170.92000000000002,157.59,13.33,null,17,54,61,"Y",267.83,205.9,61.93]
["POL","Baltic Sea (ICES areas III b-d)","ICES","22-32","2016-2018","OTM_DEF_<16_0_0","DEF",26,216.67,267.67,2722.81,2328.4,394.41,null,46,506,625,"Y",10803.91,10296.41,507.5]
["POL","Baltic Sea (ICES areas III b-d)","ICES","22-32","2016-2018","OTM_SPF_16-104_0_0","SPF",4,68.67,87.67,3816.6000000000004,577.97,3238.63,null,3,126,137,"Y",2487.9299999999998,37,2450.9299999999998]
["POL","Baltic Sea (ICES areas III b-d)","ICES","22-32","2016-2018","OTM_SPF_16-31_0_0","SPF",98.33,3388.33,4188.33,77149.540000000008,57866.73,19282.810000000001,null,111,3708,4549,"Y",84793.67,70439.02,14354.65]
["POL","Baltic Sea (ICES areas III b-d)","ICES","22-32","2016-2018","OTM_SPF_32-104_0_0","SPF",80.67,1843.67,2738,28505.280000000002,25229.38,3275.9,null,91,1340,1888,"Y",18853.71,18005.95,847.76]
["POL","Baltic Sea (ICES areas III b-d)","ICES","22-32","2016-2018","PTB_DEF_>=105_1_120","DEF",0.67,0.67,0.67,1.52,1.52,0,null,2,4,4,"Y",39.5,39.5,0]
["POL","Baltic Sea (ICES areas III b-d)","ICES","22-32","2016-2018","PTB_SPF_16-31_0_0","SPF",2.67,54.67,54.67,232.13,232.13,0,null,0,0,0,"Y",0,0,0]
["POL","Baltic Sea (ICES areas III b-d)","ICES","22-32","2016-2018","PTB_SPF_32-104_0_0","SPF",1.33,4.67,4.67,21.67,21.67,0,null,0,0,0,"Y",0,0,0]
["POL","Baltic Sea (ICES areas III b-d)","ICES","22-32","2016-2018","PTM_SPF_16-31_0_0","SPF",14,460,463,4284.07,4284.07,0,null,10,300,300,"Y",2930.59,2925.79,4.8]
["POL","Baltic Sea (ICES areas III b-d)","ICES","22-32","2016-2018","PTM_SPF_32-104_0_0","SPF",5.33,27.33,38.33,158.49,158.49,0,null,3,5,5,"Y",120,120,0]
["POL","Baltic Sea (ICES areas III b-d)","ICES","22-32","2016-2018","LLS_ANA_0_0_0","ANA",1.33,4,4.67,0.33,0.33,0,null,6,12,12,"Y",0.56999999999999995,0.56999999999999995,0]
["POL","Baltic Sea (ICES areas III b-d)","ICES","22-32","2016-2018","PTB_SPF_>=105_1_120","SPF",0.33,0.33,0.33,2,2,0,null,0,0,0,"Y",0,0,0]
["POL","North Sea (ICES areas IIIa and IV), Eastern Arctic (ICES areas I and II)","ICES","I, II, IV","2016-2018","OTB_DEF_>=120_0_0","DEF",1.33,4.33,176,5073.49,0,5073.49,null,1,2,31,"Y",1064.17,0,1064.17]
["POL","North Sea (ICES areas IIIa and IV), Eastern Arctic (ICES areas I and II)","ICES","I, II, IV","2016-2018","OTM_DEF_100-119_0_0","DEF",0.67,0.67,3,42.98,0,42.98,null,0,0,0,"Y",0,0,0]
["POL","North Sea (ICES areas IIIa and IV), Eastern Arctic (ICES areas I and II)","ICES","I, II, IV","2016-2018","OTM_SPF_32-69_0_0","SPF",0.67,1,7.67,1815.91,0,1815.91,null,1,2,15,"N",2772.57,0,2772.57]
["POL","North Sea (ICES areas IIIa and IV), Eastern Arctic (ICES areas I and II)","ICES","I, II, IV","2016-2018","FPO_CRU_>0_0_0","CRU",0.33,8.67,20,68.89,0,68.89,null,1,20,45,"N",220.28,3.25,217.03]
["POL","North-Western waters (ICES areas Vb (only Union waters), VI and VII)","ICES","V, VI, VII","2016-2018","OTM_SPF_32-69_0_0","SPF",0.67,4.67,24.33,9232.32,0,9232.32,null,1,12,143,"N",52814.22,0,52814.22]
["POL","Other regions","CECAF","34.1.3, 34.3.1","2016-2018","OTM_SPF_>=40_0_0","SPF",1.33,9.33,164.67,14343.31,0,14343.31,null,1,2,62,"Y",3004.96,0,3004.96]
["POL","Other regions","SPRFMO","SPRFMO Convention Area","2016-2018","OTM_SPF_>=40_0_0","SPF",0.33,2,13,916.88,0,916.88,null,0,0,0,"Y",0,0,0,"No EU fishing activity in SPRFMO area."]
["POL","NA","NA","47","2016-2018","OTM_SPF_>=40_0_0","SPF",1.33,14.67,189,{"$f":"L44+M44","v":28423.57},0,28423.57,"one pelagic trawler fishing inside EEZ of Namibia",0,0,0,"N",0,0,0]
["POL","North Sea (ICES areas IIIa and IV), Eastern Arctic (ICES areas I and II)","ICES","I, II, IV","2016-2018","OTB_CRU_32-69_0_0","CRU",0,0,0,0,0,0,null,1,4,183,"Y",1855,0,1855,"New row. Metier not present in the reference period."]
["POL","Baltic Sea (ICES areas III b-d)","ICES","22-32","2016-2018","LHP_FIF_0_0_0","FIF",0,0,0,0,0,0,null,1,32,32,"Y",0.08,0.08,0,"New row. Metier not present in the reference period."]

{"sheet":"Table4D Landing locations","index":15,"n_rows":10,"n_cols":11,"rows_kept":10,"cut":false,"hidden":false,"merged":[]}
["Table 4D: Landing locations"]
[null,null,null,null,null,null,null,null,null,"WP  years","2020-2021"]
[null,null,null,null,null,null,null,null,null,"AR year",2020]
["MS","Region","Sub-area / Fishing ground","Reference years","Landing locations(s)","Average number of locations","Average number of registered landings ","Average landed tonnage ","Average landed tonnage of national fleet","Average landed tonnage of foreign fleet","Comments"]
["POL","Baltic Sea (ICES areas III b-d) ","22-32","2016-2018","Major ports",8,19237,{"$f":"I5+J5","v":113188.21703},109902.11526999999,3286.10176]
["POL","Baltic Sea (ICES areas III b-d) ","22-32","2016-2018","Other ports SD 24",3,536.33333333333303,{"$f":"I6+J6","v":221.38400666666701},221.38400666666701,0]
["POL","Baltic Sea (ICES areas III b-d) ","22-32","2016-2018","Other ports SD 25",11,5016.3333333333303,1931.0774266666699,1931.0774266666699,0]
["POL","Baltic Sea (ICES areas III b-d) ","22-32","2016-2018","Other ports SD 26",28,12163.333333333299,1339.63315333333,1339.63315333333,0]
["POL","Baltic Sea (ICES areas III b-d) ","22-32","2016-2018","Szczecin Lagoon ports",7,6930.6666666666697,1676.63826666667,1676.63826666667,0]
["POL","Baltic Sea (ICES areas III b-d) ","22-32","2016-2018","Vistula Lagoon ports",9,8177.6666666666697,2161.7579833333298,2161.7579833333298,0]

{"sheet":"Table5A Quality assurance frame","index":16,"n_rows":26,"n_cols":30,"rows_kept":26,"cut":false,"hidden":false,"merged":[[3,0,3,6],[3,7,3,8],[3,10,3,11],[3,12,3,13],[3,14,3,17]]}
["Table 5A: Quality assurance framework for biological data"]
[null,null,null,null,null,null,null,null,null,null,null,null,null,null,null,null,null,null,"WP  years","2020-2021"]
[null,null,null,null,null,null,null,null,null,null,null,null,null,null,null,null,null,null,"AR year",2020]
[null,null,null,null,null,null,null,"Sampling design",null,"Sampling implementation","Data capture",null,"Data Storage",null,"Data processing"]
["MS","MS participating in sampling","Sampling year/ period ","Region","RFMO/RFO/IO","Name of sampling scheme","Sampling frame ","Is the sampling design documented?","Where can documentation on sampling design be found? ","Are non-responses and refusals recorded?","Are quality checks to validate detailed data documented?","Where can documentation on quality checks for data capture be found?","In which national database are data stored?","In which international database(s) are data stored?","Are processes to evaluate data accuracy (bias and precision) documented?","Where can documentation on processes to evaluate accuracy be found? ","Are the editing and imputation methods documented?","Where can documentation on editing and imputation be found? ","Comments ","AR Comments"]
["POL","POL","2020-2021","Baltic Sea (ICES areas III b-d) ","ICES","Baltic at sea and on shore","List of 508 vessels under 10 meters in length ","Y","SamplingDesign_2020-2021.doc (http://dcf.mir.gdynia.pl/?page_id=367)","Y","Y","DataQualityCheck_Description.doc (http://dcf.mir.gdynia.pl/?page_id=367)","NPZDRpl","RDB-FishFrame, Intercatch, JRC","Y","Included in the Data Accuracy Check application - accessible only via intranet","N","NA","Software for data accuracy checks is still under development. ","Software for data accuracy checks has been launched, and is still under development with the new features. The model and assumptions of the data accuracy checks software have been specified in 2019 and in 2020 it was adjusted to the new sampling design. The new features are still being  developed and the information about possible accuracy checks is currently being collected from the available literature. Throught the last year, the outcomes of WKBIOPTIM have been analysed and will be implemented in the nearest future.   Moreover data quality check software is still being developed by adding new features to it. Imputation is not performed at national level but at Stock Data Coordination level. Data are provided to end user \"as-is\" (as collected, validated and recorded in national database)."]
["POL","POL","2020-2021","Baltic Sea (ICES areas III b-d) ","ICES","Baltic at sea and on shore","List of 114 vessels between 10 and 12 meters in length ","Y","SamplingDesign_2020-2021.doc (http://dcf.mir.gdynia.pl/?page_id=367)","Y","Y","DataQualityCheck_Description.doc (http://dcf.mir.gdynia.pl/?page_id=367)","NPZDRpl","RDB-FishFrame, Intercatch, JRC","Y","Included in the Data Accuracy Check application - accessible only via intranet","N","NA","Software for data accuracy checks is still under development. ","Software for data accuracy checks has been launched, and is still under development with the new features. The model and assumptions of the data accuracy checks software have been specified in 2019 and in 2020 it was adjusted to the new sampling design. The new features are still being  developed and the information about possible accuracy checks is currently being collected from the available literature. Throught the last year, the outcomes of WKBIOPTIM have been analysed and will be implemented in the nearest future.   Moreover data quality check software is still being developed by adding new features to it. Imputation is not performed at national level but at Stock Data Coordination level. Data are provided to end user \"as-is\" (as collected, validated and recorded in national database)."]
["POL","POL","2020-2021","Baltic Sea (ICES areas III b-d) ","ICES","Baltic at sea and on shore","List of 52 vessels between 12 and 18 meters in length ","Y","SamplingDesign_2020-2021.doc (http://dcf.mir.gdynia.pl/?page_id=367)","Y","Y","DataQualityCheck_Description.doc (http://dcf.mir.gdynia.pl/?page_id=367)","NPZDRpl","RDB-FishFrame, Intercatch, JRC","Y","Included in the Data Accuracy Check application - accessible only via intranet","N","NA","Software for data accuracy checks is still under development. ","The model and assumptions of the data accuracy checks software have been specified in 2019 and in 2020 it was adjusted to the new sampling design. The new features are still being  developed and the information about possible accuracy checks is currently being collected from the available literature. Throught the last year, the outcomes of WKBIOPTIM have been analysed and will be implemented in the nearest future.   Moreover data quality check software is still being developed by adding new features to it. Imputation is not performed at national level but at Stock Data Coordination level. Data are provided to end user \"as-is\" (as collected, validated and recorded in national database)."]
["POL","POL","2020-2021","Baltic Sea (ICES areas III b-d) ","ICES","Baltic at sea and on shore","List of 55 vessels between 18 and 24 meters in length ","Y","SamplingDesign_2020-2021.doc (http://dcf.mir.gdynia.pl/?page_id=367)","Y","Y","DataQualityCheck_Description.doc (http://dcf.mir.gdynia.pl/?page_id=367)","NPZDRpl","RDB-FishFrame, Intercatch, JRC","Y","Included in the Data Accuracy Check application - accessible only via intranet","N","NA","Software for data accuracy checks is still under development. ","Software for data accuracy checks has been launched, and is still under development with the new features. The model and assumptions of the data accuracy checks software have been specified in 2019 and in 2020 it was adjusted to the new sampling design. The new features are still being  developed and the information about possible accuracy checks is currently being collected from the available literature. Throught the last year, the outcomes of WKBIOPTIM have been analysed and will be implemented in the nearest future.   Moreover data quality check software is still being developed by adding new features to it. Imputation is not performed at national level but at Stock Data Coordination level. Data are provided to end user \"as-is\" (as collected, validated and recorded in national database)."]
["POL","POL","2020-2021","Baltic Sea (ICES areas III b-d) ","ICES","Baltic at sea and on shore","List of 46 vessels between 24 and 40 meters in length ","Y","SamplingDesign_2020-2021.doc (http://dcf.mir.gdynia.pl/?page_id=367)","Y","Y","DataQualityCheck_Description.doc (http://dcf.mir.gdynia.pl/?page_id=367)","NPZDRpl","RDB-FishFrame, Intercatch, JRC","Y","Included in the Data Accuracy Check application - accessible only via intranet","N","NA","Software for data accuracy checks is still under development. ","Software for data accuracy checks has been launched, and is still under development with the new features. The model and assumptions of the data accuracy checks software have been specified in 2019 and in 2020 it was adjusted to the new sampling design. The new features are still being  developed and the information about possible accuracy checks is currently being collected from the available literature. Throught the last year, the outcomes of WKBIOPTIM have been analysed and will be implemented in the nearest future.   Moreover data quality check software is still being developed by adding new features to it. Imputation is not performed at national level but at Stock Data Coordination level. Data are provided to end user \"as-is\" (as collected, validated and recorded in national database)."]
["POL","POL","2020-2021","North Sea (ICES areas IIIa and IV), Eastern Arctic (ICES areas I and II) ","ICES","North Sea and Eastern Arctic at sea","1 trawler targeting cod","Y","\"DCF – Sampling Design and Plan description – Demersal – NS&EA.pdf\" (https://dcf.mir.gdynia.pl/?page_id=367)","N","Y","DataQualityCheck_Description.doc (http://dcf.mir.gdynia.pl/?page_id=367)","NPZDRpl","RDB-FishFrame, Intercatch, JRC","Y","Included in the Data Accuracy Check application - accessible only via intranet","N","NA","Software for data accuracy checks is still under development. ","Software for data accuracy checks has been launched, and is still under development with the new features. The model and assumptions of the data accuracy checks software have been specified in 2019 and in 2020 it was adjusted to the new sampling design. The new features are still being  developed and the information about possible accuracy checks is currently being collected from the available literature. Throught the last year, the outcomes of WKBIOPTIM have been analysed and will be implemented in the nearest future.   Moreover data quality check software is still being developed by adding new features to it. Imputation is not performed at national level but at Stock Data Coordination level. Data are provided to end user \"as-is\" (as collected, validated and recorded in national database)."]
["POL","POL","2020-2021","Other regions","CECAF","Other fishing regions at sea","Pelagic trawlers fishing in CECAF","Y","\"Biological Data Collection of pelagic fisheries in CECAF waters \" at:  http://dcf.mir.gdynia.pl/?page_id=367","NA","Y","DataQualityCheck_Description.doc (http://dcf.mir.gdynia.pl/?page_id=367)","NA","NA","NA","NA","NA","NA","Software for data accuracy checks is still under development. ","Error in kolumn \"B\" of WP - correct entry shall be: DEU - LTU  - LVA - NLD - POL.      Software for data accuracy checks has been launched, and is still under development with the new features.  The model and assumptions of the data accuracy checks software have been specified in 2020. The environment has been set up and the first type of a check has been implemented. The new features are still being  developed. Data collection coordinated and executed by POL and data provision executed by NLD under joint sampling programme based on multilateral agreement (see Table 7C).  Data collected in CECAF area transferred to NLD for processing, further quality checks and transmission to CECAF WG. Data are also being converted into the national database format."]
["POL","POL","2020-2021","Other regions","SPRFMO","Other fishing regions at sea","Pelagic trawlers fishing in SPRFMO","Y","SPRFMO Observer Programme (COM 16-2018), SPRFMO Data Standards (COM 02-2018) at:  https://www.sprfmo.int/measures/superseded-cmms/","NA","Y","SPRFMO_data_quality_assurance.pdf (http://dcf.mir.gdynia.pl/?page_id=367)","Temporary database in Excel","Internal SPRFMO database","Y","Included in the Data Accuracy Check application - accessible only via intranet","N","NA","Software for data accuracy checks is still under development. ","Error in kolumn \"B\" of WP - correct entry shall be: DEU - LTU  - NLD - POL.               Software for data accuracy checks has been launched, and is still under development with the new features.   The model and assumptions of the data accuracy checks software have been specified in 2020. The environment has been set up and the first type of a check has been implemented. The new features are still being  developed and the information about possible accuracy checks is currently being collected from the available literature. Non-responses and refusal are not applicable for the SPRMFO area. Data quality checks documented and available at the Polish DCF website. Imputation is not performed at national level. Data delivered to the SPRFMO Secretariat and Scientific Committee. National database during modification to enable storage of data from SPRFMO. Data collection and provision coordinated by POL under joint sampling programme based on multilateral agreement (see Table 7C)."]
["POL","POL","2020-2021","Baltic Sea (ICES Subdivisions 22-32)","ICES","National estimates of numbers of trips &number of anglers & onsite surveys of catch per unit effort & of catch composition","NA","Y","Sampling Plan – cod recreational – POL DCF.PDF (http://dcf.mir.gdynia.pl/?page_id=367)","Y","Y","DataQualityCheck_Description.doc (http://dcf.mir.gdynia.pl/?page_id=367)","NPZDRpl, Temporary database in Excel","WGRFS","N","NA","N","NA","Software for data accuracy checks is still under development. ","Biological data of this sampling scheme have been subjected to quality control, defined in DataQualityCheck_Description.doc.   Data quality checks have been specified in 2020. Data quality check software is still being developed by adding new features to it.   Types of accuracy checks for recreational fishery have not been identified.  Imputation is not performed at national level. Data delivered to the ICES WGRFS.  See Text Box 1D for comments.",null,null,null,null,null,null,null,null,null,"Software for data accuracy checks is still under development. "]
["POL","POL","2020-2021","Inland waters","ICES","Anglers registers verified and modified by in situ questionnaires.","NA","Y","SamplingDesign_diad_Inland.pdf (http://dcf.mir.gdynia.pl/?page_id=367)","Y","N","NA","Temporary database in Excel","WGBAST database","N","NA","N","NA","Software for data quality and accuracy checks is still under development. ","Revised sampling design documented. Imputation is not performed at national level. Data delivered to the ICES WGBAST.  See Text Box 1D for comments."]
["POL","POL","2020-2021","Baltic Sea (ICES Subdivisions 22-32)","ICES","National estimates of numbers of trips; remote CCTV cameras in ports, on-site surveys; annual off-site surveys; catch per unit effort; catch composition.","NA","Y","Sampling Plan – Marine recreational fisheries for Diadromous species.PDF (http://dcf.mir.gdynia.pl/?page_id=367)","Y","N","NA","Temporary database in Excel","WGBAST database","N","NA","N","NA","Software for data quality and accuracy checks is still under development. ","Revised sampling design documented. Imputation is not performed at national level. Data delivered to the ICES WGBAST"]
["POL","POL","2020-2021","Baltic Sea (ICES Subdivisions 22-32)","ICES","On-site surveys; off-site surveys; estimates of catch size; catch composition.","NA","Y","Sampling Plan – Marine recreational fisheries for Diadromous species.PDF (http://dcf.mir.gdynia.pl/?page_id=367)","Y","N","NA","Temporary database in Excel","WGBAST database","N","NA","N","NA","Software for data quality and accuracy checks is still under development. ","Revised sampling design documented. Imputation is not performed at national level. Data delivered to the ICES WGBAST"]
["POL","POL","2020-2021","Baltic Sea (ICES Subdivisions 22-32)","ICES","Off-site surveys; estimates of catch size; catch composition.","NA","Y","Sampling Plan – Marine recreational fisheries for Diadromous species.PDF (http://dcf.mir.gdynia.pl/?page_id=367)","Y","N","NA","Temporary database in Excel","WGEEL database","N","NA","N","NA","Software for data quality and accuracy checks is still under development. ","Revised sampling design documented. Imputation is not performed at national level. Data delivered to the ICES WGEEL"]
["POL","POL","2020-2021","ODER EMU","ICES","Anguilla anguilla*sampling","NA","Y","SamplingDesign_diad_Inland.pdf (http://dcf.mir.gdynia.pl/?page_id=367)","NA","N","NA","Temporary database in Excel","WGEEL database","N","NA","N","NA","Software for data quality and accuracy checks is still under development. ","Revised sampling design documented. Imputation is not performed at national level. Data delivered to the ICES WGEEL"]
["POL","POL","2020-2021","VISTULA EMU","ICES","Anguilla anguilla*sampling","NA","Y","SamplingDesign_diad_Inland.pdf (http://dcf.mir.gdynia.pl/?page_id=367)","NA","N","NA","Temporary database in Excel","WGEEL database","N","NA","N","NA","Software for data quality and accuracy checks is still under development. ","Revised sampling design documented. Imputation is not performed at national level. Data delivered to the ICES WGEEL"]
["POL","POL","2020-2021","ODER EMU","ICES","Anguilla anguilla*trap","NA","Y","SamplingDesign_diad_Inland.pdf (http://dcf.mir.gdynia.pl/?page_id=367)","NA","N","NA","Temporary database in Excel","WGEEL database","N","NA","N","NA","Software for data quality and accuracy checks is still under development. ","Revised sampling design documented. Imputation is not performed at national level. Data delivered to the ICES WGEEL"]
["POL","POL","2020-2021","VISTULA EMU","ICES","Anguilla anguilla*trap","NA","Y","SamplingDesign_diad_Inland.pdf (http://dcf.mir.gdynia.pl/?page_id=367)","NA","N","NA","Temporary database in Excel","WGEEL database","N","NA","N","NA","Software for data quality and accuracy checks is still under development. ","Revised sampling design documented. Imputation is not performed at national level. Data delivered to the ICES WGEEL"]
["POL","POL","2020-2021","ODER EMU","ICES","Anguilla anguilla*trap,eel ladder","NA","Y","SamplingDesign_diad_Inland.pdf (http://dcf.mir.gdynia.pl/?page_id=367)","NA","N","NA","Temporary database in Excel","WGEEL database","N","NA","N","NA","Software for data quality and accuracy checks is still under development. ","Revised sampling design documented. Imputation is not performed at national level. Data delivered to the ICES WGEEL"]
["POL","POL","2020-2021","Inland waters","ICES","Salmo trutta*sampling","NA","Y","SamplingDesign_diad_Inland.pdf (http://dcf.mir.gdynia.pl/?page_id=367)","NA","N","NA","Temporary database in Excel","WGBAST database","N","NA","N","NA","Software for data quality and accuracy checks is still under development. ","Revised sampling design documented. Imputation is not performed at national level. Data delivered to the ICES WGBAST"]
["POL","POL","2020-2021","Inland waters","ICES","Salmo trutta*electrofishing","NA","Y","SamplingDesign_diad_Inland.pdf (http://dcf.mir.gdynia.pl/?page_id=367)","NA","N","NA","Temporary database in Excel","WGBAST database","N","NA","N","NA","Software for data quality and accuracy checks is still under development. ","Revised sampling design documented. The quality of electrofishing is currently being assessed by RCG Diadromous"]
["POL","POL","2020-2021","Inland waters","ICES","Salmo trutta*counters","NA","Y","SamplingDesign_diad_Inland.pdf (http://dcf.mir.gdynia.pl/?page_id=367)","NA","N","NA","Temporary database in Excel","WGBAST database","N","NA","N","NA","Software for data quality and accuracy checks is still under development. ","Revised sampling design documented. Imputation is not performed at national level. Data delivered to the ICES WGBAST"]

{"sheet":"Table5B Quality assurance frame","index":17,"n_rows":7,"n_cols":33,"rows_kept":7,"cut":false,"hidden":false,"merged":[[4,28,4,30],[4,31,5,31],[4,32,5,32],[3,0,4,6],[3,7,3,11],[3,12,3,21],[3,22,3,30],[4,7,4,8],[4,9,4,11],[4,12,4,14],[4,15,4,19],[4,23,4,24],[4,26,4,27]]}
["Table 5B: Quality assurance framework for socio-economic data"]
[null,null,null,null,null,null,null,null,null,null,null,null,null,null,null,null,null,null,null,null,null,null,null,null,null,null,null,null,null,null,null,"WP  years","2020-2021"]
[null,null,null,null,null,null,null,null,null,null,null,null,null,null,null,null,null,null,null,null,null,null,null,null,null,null,null,null,null,null,null,"AR year",2020]
[null,null,null,null,null,null,null,"Institutional environment",null,null,null,null,"Statistical processes",null,null,null,null,null,null,null,null,null,"Statistical Outputs"]
[null,null,null,null,null,null,null,"P3 Impartiality and objectiveness",null,"P4 Confidentiality",null,null,"P5 Sound methodology",null,null,"P6 Appropriate statistical procedures",null,null,null,null,"P7 Non-excessive burden on respondents","P8 Cost effectiveness","P9 Relevance","P10 Accuracy and reliability",null,"P11 Timeliness and punctuality","P12 coherence and comparability",null,"P13 Accessibility and Clarity",null,null,"Comments","AR Comments"]
["MS","Sector Name","Sampling year/ period","Region","RFMO/RFO/IO/NSB","Type of data collection scheme","Data Sources","Statistically sound sources and methods","Error checking","Are procedures for confidential data handling in place and documented?","Are protocols to enforce confidentiality between DCF partners in place and documented?","Are protocols to enforce confidentiality with external users in place and documented?","Is sound methodology documented ?","Does it follow international standards, guidelines and best practices?","Are methodologies consistent at MS, regional and EU level?","Is there consistency between administrative and other statistical data?","Are there agreements for access and quality of administrative data between partners?","Are data collection, entry and coding checked?","Are editing and imputation methods used and checked?","Are revisions documented and available?","Is duplication of data collection avoided?","Do automatic techniques for data capture, data coding and validation exist?","Are end-users listed and updated?","Are sources, intermediate results and outputs regularly assessed and validated?","Are errors measured and documented? ","Are procedures in place to ensure timely execution?","Are procedures in place to monitor internal coherence?","Are statistics comparable over time?","Are methodological documents publicly available?","Are data stored in databases?","Where can documentation be found? "]
["POL","Fishing, Processing","2020-2021","All regions","ICES","Census, estimation","questionairres, logbooks, first sale documents, Fleet register","Y","Y","Y","NA","NA","Y","Y","Y","Y","Y","Y","Y","N","N","Y","N","Y","N","Y","Y","Y","Y","Y","https://dcf.mir.gdynia.pl/?page_id=367"]

{"sheet":"Table6A_Data_availability","index":18,"n_rows":15,"n_cols":10,"rows_kept":15,"cut":false,"hidden":false,"merged":[]}
["Table 6A: Data availability"]
[null,null,null,null,null,null,null,null,"WP  years","2020-2021"]
[null,null,null,null,null,null,null,null,"AR year",2020]
["MS","Data set","Section","Variable group","Year(s) of WP implementation","Reference year ","Final data available after","Comments","Date when data was available","AR Comments"]
["POL","Biological variables","1B","all","2020-2021","N","N+1, March 31",null,"March 31, 2021","N = 2020"]
["POL","Recreational Fisheries","1D","all","2020-2021","N-1","N, May 31",null,"March 31, 2021","N = 2020"]
["POL","Anadromous and catadromous species","1E","all","2020-2021","N","N+1, March 15",null,"March 15, 2021","N = 2020"]
["POL","Incidental by-catch","1F","all","2020-2021","N","N+1, March 31",null,"March 31, 2021","N = 2020"]
["POL","Research surveys at sea","1H","all","2020-2021","N","N+1, March 31",null,"March 31, 2021","N = 2020"]
["POL","Fishing Activity Variable","2A","Effort","2020-2021","N","N+1, March 31",null,"March 31, 2021","N = 2020"]
["POL","Fishing Activity Variable","2A","Capacity","2020-2021","N","N+1, January 31",null,"February 15, 2021","N = 2020"]
["POL","Fishing Activity Variable","2A","Landings","2020-2021","N","N+1, March 31",null,"March 31, 2021","N = 2020"]
["POL","Fleet economic","3A","Revenue/costs","2020-2021","N-1","N+1, November 30",null,"February 15, 2021","N = 2020"]
["POL","Aquaculture economic","3B","NA","NA","NA","NA","Based on the data until 2017, according to  classification of aquaculture activities by Eurostat statistics, Poland has no marine aquaculture sector. Hence, no sampling is planned","NA"]
["POL","Fish processing economic","3C","all","2020-2021","N-1","N+1, November 30",null,"February 15, 2021","N = 2020"]

{"sheet":"Table7A_Planned Regional_coord","index":19,"n_rows":55,"n_cols":8,"rows_kept":55,"cut":false,"hidden":false,"merged":[]}
["Table 7A: Planned regional and international coordination"]
[null,null,null,null,null,null,"WP  years","2020-2021"]
[null,null,null,null,null,null,"AR year",2020]
["MS","Acronym","Name of meeting","RFMO/RFO/IO","Planned MS participation","Comments","Number of participants","AR Comments"]
["POL","RCM Baltic","Regional Coordination Meeting for the Baltic Sea",null,"X",null,6,"RCG Baltic meeting combined with RCG NANSEA meeting"]
["POL","RCM NS&EA","Regional Coordination Meeting for the North Sea and Eastern Arctic",null,"X",null,6,"RCG NANSEA meeting combined with RCG Baltic meeting"]
["POL","RCM LDF","Regional Coordination Meeting for the Long Distance Fisheries",null,"X",null,2,"Chair"]
["POL","EGFDC","Expert Group on Fisheries Data Collection",null,"X",null,1,"five meetings (incl. LM)"]
["POL","PGECON","Planning Group on Economic Issues ",null,"X",null,2,"Transformed to RCG ECON"]
["POL","PGDATA","Planning Group on Data Needs for Assessment and Advice","ICES","X",null,0,"participation not possible due to other commitments"]
["POL","WGBIOP","Working Group on Biological Parameters ","ICES","X",null,2]
["POL","WGEEL","Working Group on Eel","ICES","X",null,1]
["POL","WGBAST","Working Group on Baltic Salmon and Trout","ICES","X",null,2]
["POL","WGRFS","Working Group on Recreational Fisheries Surveys","ICES","X",null,2]
["POL","WGCATCH","Working Group on Commercial Catches","ICES","X",null,1]
["POL","WGBIFS","Working Group on Baltic International Fish Survey ","ICES","X",null,2,"two meetings"]
["POL","WGBFAS","Baltic Fisheries Assessment Working Group","ICES","X",null,3,"two meetings"]
["POL","WGCHAIRS","Annual Meeting of Advisory Working Groups Chairs","ICES","X",null,0,"participation not possible due to other commitments"]
["POL","WGBYC","Working Group on Bycatch of Protected Species","ICES","X",null,1]
["POL","WGBIOP","Working Group on Biological Parameters ","ICES","X",null,1,"four meetings"]
["POL","WGSFD","Working Group on Spatial Fisheries Data ","ICES","X",null,0,"participation not possible due to other commitments"]
["POL","DIG","Data and Information Group","ICES","X",null,1]
["POL","WKRDB","Workshop on Regional Data Base","ICES","X",null,3,"Name changed (see rows 41-42below)"]
["POL","WKBaltSalmon","Baltic salmon Benchmark WKBaltSalmon","ICES","X",null,2]
["POL","WGZE","ICES Working Group on Zooplankton Ecology","ICES","X",null,1]
["POL","WGOH","ICES Working Group on Oceanic Hydrography","ICES","X",null,1]
["POL","WGTRUTTA","ICES Working Group with the Aim to Develop Assessment Models and Establish Biological Reference Points for Sea Trout (Anadromous Salmo trutta) Populations","ICES","X",null,1]
["POL","WKIBEBCA ","Workshop on Biological Input to Eastern Baltic Cod Assessment","ICES","X",null,0,"No meeting in 2020"]
["POL","BEWG","Benthic Ecology Working Group","ICES","X",null,1]
["POL","SCRDB","Steering Committee for the Regional Database & Estimation System","ICES","X",null,2,"Name changed for WGRDBESGOV (see row 40 below)"]
["POL","WKEMBYC","ICES Workshop on fisheries Emergency Measures to minimize BYCatch of short-beaked common dolphins in the Bay of Biscay and harbour porpoise in the Baltic Sea","ICES",null,null,1,"in addition to Work Plan"]
["POL","WGAcousticGov","ICES Working Group on the Acoustic Trawl Data Portal Governonce","ICES",null,null,1,"in addition to Work Plan; two meetings"]
["POL","WKTAF-BN","ICES Workshop on Training for the Transparent Assessment Framework: Baltic Sea and Norway","ICES",null,null,2,"in addition to Work Plan; two meetings"]
["POL","IBPBASH","An Inter-Benchmark Process (IBP) on BAltic Sprat (Sprattus sprattus) and Herring (Clupea harengus)","ICES",null,null,2,"in addition to Work Plan"]
["POL","WKRP-Change","ICES Workshop of Fisheries Management Reference Points in a Changing Environment","ICES",null,null,1,"in addition to Work Plan"]
["POL","WKLIFE X","ICES Workshop on the Development of Quantitative Assessment Methodologies based on Life-history traits, exploitation characteristics, and other relevant parameters for data-limited stocks","ICES",null,null,1,"in addition to Work Plan"]
["POL","WKBioArc","ICES Workshop on Scale, Otolith Biochronology Archives ","ICES",null,null,1,"in addition to Work Plan"]
["POL","WKBALTIC","ICES Workshop on the Ecosystem Based Management of the Baltic Sea ","ICES",null,null,1,"in addition to Work Plan"]
[null,"WGRDBESGOV","ICES Working Group on Governance of the Regional Database & Estimation System","ICES",null,null,2,"in addition to Work Plan"]
["POL","WKRDB-POP2","ICES Workshop on populating the RDBES data model ","ICES",null,null,5,"in addition to Work Plan; two meetings"]
["POL","WKRDB-EST2","ICES Workshop on RDBES data estimation  ","ICES",null,null,2,"in addition to Work Plan; three meetings"]
["POL",null,"ICES Workshop on registrations of cod liver worm","ICES",null,null,1,"in addition to Work Plan"]
["POL","WKMixHer","ICES Workshop on Mixing of Western and Central Baltic Herring Stocks","ICES",null,null,1,"in addition to Work Plan; two meetings"]
["POL","RDBES","RDBES Core Group","ICES",null,null,1,"in addition to Work Plan; 29 meetings"]
["POL","NCs","National Correspondents meetings",null,null,null,1,"in addition to Work Plan; two meetings"]
["POL",null,"Workshop for standarization of observers methodologies","CECAF",null,null,1,"in addition to Work Plan"]
["POL","ISSG SPB","RCG ISSG SPB - RCG Inter Sessional Sub-Group on Case study of fisheries for small pelagics in the Baltic",null,null,null,3,"in addition to Work Plan; 10 meetings"]
["POL","ISSG Diadromous","RCG ISSG Diadromous Fishes",null,null,null,2,"in addition to Work Plan"]
["POL","ISSG PETS","RCG ISSG PETS meeting",null,null,null,2,"in addition to Work Plan"]
["POL","ISSG Stomach","RCG ISSG on regionally coordinated stomach sampling",null,null,null,1,"in addition to Work Plan"]
["POL","ISSG Catch Effort","RCG ISSG on Catch Effort and Sampling Overviews",null,null,null,2,"Chair; in addition to Work Plan; 15 meetings"]
["POL","ISSG SSF","RCG ISSG on Small Scale Fisheries",null,null,null,1,"in addition to Work Plan"]
["POL","ISSG Data quality","RCG ISSG on Data quality",null,null,null,2,"in addition to Work Plan; four meetings"]
["POL","ISSG Metier","RCG ISSG Metier issues",null,null,null,1,"in addition to Work Plan; nine meetings"]
["POL","ISSG RWP","RCG ISSG on the Development of Draft Regional work plan",null,null,null,1,"in addition to Work Plan; eight meetings"]

{"sheet":"Table7B_Follow up of Recommenda","index":20,"n_rows":31,"n_cols":11,"rows_kept":31,"cut":false,"hidden":false,"merged":[]}
["Table 7B: Follow-up of recommendations and agreements"]
[null,null,null,null,null,null,null,null,null,"WP  years","2020-2021"]
[null,null,null,null,null,null,null,null,null,"AR year",2020]
["MS","Region","RFMO/RFO/IO","Source","Section ","Topic","Recommendation number","Recommendation/ Agreement","Follow-up action","Comments","MS action taken "]
["POL","Other regions","CECAF, SPRFMO","LM 2016 ","7C","Sampling programme","RCM LDF 2016 - 4","The current multi-annual and multi-lateral agreements for biological sampling in CECAF (partners: GER, LAT, LIT, NED, POL) and SPFRMO area (partners: GER, LIT, NED, POL) terminate as of 31st December 2016. Given that the current arrangements with a subcontractor can’t continue, a new set-up for the multi-lateral agreements is required. Poland and The Netherlands agreed to investigate possibilities to arrange a joint sampling plan. RCM LDF recommends Poland and The Netherlands to liaise and draft an agreement for the respective areas and to propose this draft to the other MS involved","FULFILLED","Sampling agreements for both regions (CECAF and SPRFMO) has been extended untill end of 2020."]
["POL","All regions","ICES, GFCM","LM 2019","1G, 1H","Surveys data","NA NS&EA BAL R1 ","All data from mandatory research vessel surveys (Table 10 EU 2016/1251) should be made publicly available through an international database","Ongoing","Mandatory surveys funded under EUMAP and used for stock assessment, should be made publicly available. MS to start the process on providing survey data","No specific action is needed - POL is ready to make survey data publicaly available once appropriate platform is set"]
["POL","North Atlantic, North Sea & Eastern Arctic","ICES","LM 2019","1G, 1H","Cost sharing - surveys","RCG NANS&EA 2019 – D1 ","Cost-sharing agreement for participation to the International Ecosystem Survey in the Nordic Seas 2020-2021","NA","Not applicable to POL","NA"]
["POL","North Atlantic, North Sea & Eastern Arctic","ICES ","LM 2019","1G, 1H","Cost sharing - surveys","RCG NANS&EA 2019 – D3 ","Cost-sharing agreement for participation to the International Blue Whiting survey 2020-2021","NA","Not applicable to POL","NA"]
["POL","Other regions","CECAF, SPRFMO","LM 2019","NA","RDB","RCG-LDF Recommendation 2019-1","RCG LDF recommends that MS continue to update historical data as well as most recent data prior to the 2020 RCG LDF data call.","Fulfilled","MS to update their data and promote set up of routine procedures to provide data to the RDB, prior to the RCG LDF 2020 data call","POL data up to date"]
["POL","North Atlantic, North Sea & Eastern Arctic","ICES ","LM 2019","NA","RDBES funding","NA NS&EA BAL 2019 – D5 ","Central resources to support work in the RCGs - a need for robust long term funding of the RDBES development","On stand-by","No action needed yet as other financial solution was implemented by ICES","No action needed yet. POL ready to follow recommendation if needed"]
["POL","All regions","NA","LM 2019","NA","Governance of RCGs","RCG Baltic 2019 – D6 ; RCG NANS&EA and RCG Baltic 2019 – D6 ","Central resources to support work in the RCGs - a need for robust long term funding","On stand-by","Need to follow the recommendation pending the outcomes of the EU project dedicated to this issue - the SECWEB project (under EU Grant MARE/2020/08) dedicated to develop mechanisms to support the planning and execution of RCGs' administrative tasks and to  establish a long term supportive structure ","POL is involved in consultation in the SECWEB project "]
["POL","Baltic Sea, North Atlantic, North Sea & Eastern Arctic","ICES ","LM 2019","NA","RDB Data Policy","NA NS&EA BS D1 and RCG Baltic D2 ","Annual fisheries overview – approve content","Approved","NCs to approve the idea, concept and content of the annual fisheries overview document and whether this is a document that will be beneficial to the work of RCG and the assessment working groups","The idea, concept and content of the annual fisheries overview document approved by POL"]
["POL","Baltic Sea, North Atlantic, North Sea & Eastern Arctic","ICES ","LM 2019","NA","RDB Data Policy","NA NS&EA BS D2","Annual fisheries overview – to be public available","On stand-by","Data provided to RCGs in a given year not necessarily contain the finally approved data. An appropriate reservation is necessary when making this data public","Decision pending - subject to outcomes of futher consultations"]
["POL","Baltic Sea","ICES ","LM 2019","1B, 1C, 4A","Sampling design","RCG Baltic 2019 – D5 ","Moving towards Regional Sampling Plan on fisheries for small pelagic in the Baltic ","Approved","To make progress and move towards a regional sampling programme in the Baltic it is of major importance that the MS are involved and participate in the development and the planned Workshop","POL actively participates in the work of the ISSG  Case study of fisheries for small pelagics in the Baltic"]
["POL","North Atlantic, North Sea & Eastern Arctic","ICES ","LM 2019","NA","RCG governance","RCG NA NS&EA 2019 – D4 ","Establish the current RCG NS&EA RoP as the RoP for the merged RCG NA and RCG NS&EA group","Fulfilled",null,"POL adopted the RCG NS&EA RoPs as the RoP for the merged RCG NA and RCG NS&EA group"]
["POL","North Atlantic, North Sea & Eastern Arctic","ICES ","LM 2019","NA","RCGs ISSg work","RCG Baltic and RCG NA NSEA 2019: D9","Decision to be taken on ISSG 2019-2020. NC to agree on the list of ISSG that are suggested for 2019-2020. ","Approved",null,"Approved"]
["POL","Baltic Sea, North Atlantic, North Sea & Eastern Arctic","ICES ","LM 2019","NA","RCG governance","NA NS&EA BAL D4","Back to back meeting’ RCG Baltic and RCG NA NS&EA","Approved",null,"Approved"]
["POL","Baltic Sea, North Atlantic, North Sea & Eastern Arctic","ICES","LM 2020","4C","RDB Data Policy","NANSEA BALTIC_2020_D01\n","NC’s to approve whether the overviews can be made available to WGs that have been pre-approved for access to aggregated RDB data and agree on the process","Approved","Details in the RCG NA NS&EA  RCG Baltic 2020 report PART I Section 5.2.1, Annex 3 (SCRDB group list) and Annex 4 (review data policy)","Approved at NCs Decision Meeting in 2020"]
["POL","Baltic Sea, North Atlantic, North Sea & Eastern Arctic","ICES","LM 2020","7C","Metiers (Code list)","NANSEA BALTIC_2020_D02\n","NC’s to approve whether the new codes for metiers and reference lists will be used and implemented by MS","Approved","Codes for metiers and reference lists that shall be used by Member States as detailed in RCG NA NS&EA RCG Baltic 2020 report PART I Section 5.2.2. Feedback from the ISSG on \"Metier issues\"","Approved at NCs Decision Meeting in 2020"]
["POL","All regions","ICES","LM 2020","5A","Data quality","NANSEA BALTIC_2020_R04\n","MS should take notice of the advice made for completing Table 5A: \n- Provide direct links to relevant documentations where possible,\n- Ensure any links provided are correct and work,\n- Ensure the documents referenced are reasonably recent (>2014),\n- Provide the date when the documentation was written or updated,\n- Provide explanations of why this is good/best practice e.g. give  explicit references to any expert group reports that define the practices that are being followed,\n- Double-check whether “NA” is a legitimate answer to a particular question.\n","Fulfilled","Details in the RCG NA NS&EA RCG Baltic 2020 report PART III Section 4 ISSG Data Quality report","Links to documents provided in Table 5A checked and working, documentation revised."]
["POL","Baltic Sea, North Atlantic, North Sea & Eastern Arctic","ICES","LM 2020","NA","RDB Data Policy","NANSEA BALTIC_2020_D03\n","Approve the proposed changes to the RDB/RDBES Data Policy.  These changes are: i) minor changes to the text, ii) allow NCs to pre-approve access to detailed data for selected ICES expert groups, iii) minor change to the aggregation guidelines","Approved","Revised RDB Data Policy (with tracked changes) on the RCG SharePoint.\n-> 02. Background documents -> 20_Data_Policy_RDB_RDBES-DEC2019_revised.docx\n","Approved at NCs Decision Meeting in 2020"]
["POL","Baltic Sea, North Atlantic, North Sea & Eastern Arctic","ICES","LM 2020","NA","RDB Data Policy","NANSEA BALTIC_2020_D04","Approve the \"Conditions for detailed RDBES data use\" document ","Approved","A recommendation was made by the RCGs to the SCRDB to produce a document that people within ICES expert groups who have been given access to detailed RDB/RDBES data could sign to say they have read and agree to abide by the conditions of using the data. The \"Conditions for detailed RDBES data use\" document can be found on the RCG SharePoint. -> 02. Background documents -> 20_RDBES_DataAccess.docx\n","Approved at NCs Decision Meeting in 2021"]
["POL","Baltic Sea, North Atlantic, North Sea & Eastern Arctic","ICES","LM 2020","NA","RWP","NANSEA BALTIC_2020_D06","NC’s to approve that a draft RWP is submitted to STECF in October 2020 for a non binding test run and to endorse the elements that were selected for the test run being table 1a on landing's overviews, 1g&1h on surveys, 7a on coordination, 7b on recommendations and 7c on existing bilateral agreements. ","Approved","RCG NA NS&EA RCG Baltic 2020 Report PART I Section 5.4.2 ToR 4 Development and implementation of Regional Workplans; links to proposed tables of the RWP are embedded in the text. \nRCG NA NS&EA RCG Baltic 2020 Report PART III Section 11 on the ISSG on development of draft Regional Work Plan 2020-Answers to the questionnaire on the priorities for all NA NS&EA and Baltic ISSG\n","Approved at NCs Decision Meeting in 2022"]
["POL","Baltic Sea","ICES","LM 2020","1B, 1C, 4A","Sampling design","NANSEA BALTIC_2020_D07\n","All RCG Baltic MS should take part of the ISSG work as all MS are exploiting the small pelagic fishery in the area.","Fulfilled","Decision refers to ISSG on Small Pelagics in Baltic as detailed in RCG NA NS&EA RCG Baltic 2020 Report PART III Section 7 ISSG Case study of fisheries for small pelagics in the Baltic","POL actively participates in the work of this ISSG"]
["POL","Baltic Sea, North Atlantic, North Sea & Eastern Arctic","ICES","LM 2020","NA","RDB Data Policy","NANSEA BALTIC_2020_D08","The list of RCG ISSGs suggested by RCG NA NS&EA and RCG Baltic to be confirmed to take place during season 2020-2021.","Approved","Work in ISSG needs experts and manpower (approximately 1 week of work / ISSG and person). The ISSG work force the MS to switch from working with a national focus to work with a more regional focus which is in line with idea of EU-MAP. Details in the RCG NA NS&EA RCG Baltic 2020 Report PART I Section 5.5.1.","Approved at NCs Decision Meeting in 2020"]
["POL","Other regions","CECAF, SPRFMO","LM 2020","NA","RDB","RCG-LDF Recommendation 2020-1","RCG LDF recommends that MS continue to update historical data as well as most recent data prior to the 2021 RCG LDF data call.","Fulfilled","MS to update their data and promote set up of routine procedures to provide data to the RDB, prior to the RCG LDF 2021 data call","POL data up to date"]
["POL","Other regions","SPRFMO","LM 2020","NA","Sampling programme","RCG-LDF Recommendation 2020-2","RCG LDF to set-up intersessional subgroup to prepare for data collection in the SPRFMO area beyond 2024. This subgroup shall work on a solid solution to cater for data collection under the given SPRFMO observer requirements as well as taking DCF requirements into account. The subgroup shall explore different scenarios such as accreditation for EU observers, self-sampling, remote monitoring etc. First results to be presented at the 2021 RCG LDF. ","Fulfilled","Seting up the subgroup, prior to the RCG LDF 2021 meeting.  ","POL actively participates in the work of this ISSG"]
["POL","All regions","NA","LM 2020","NA","Rules of Procedure","PGECON 2020\nRecommendation 1\n","PGECON 2020 recommends the follow-up of the draft text of Rules of Procedure as attached to this report which was discussed during the plenary. It was also agreed that all MS may need more time to commit with the text produced, acknowledging at the same time that further delays on this issue could jeopardize the functioning and the work carried out in the RCG ECON.","Fulfilled","NCs to review the draft, send comments if necessary, and finally adopt RoPs by the end of 2020.","POL NC provided comments. RoP for RCG ECON adopted"]
["POL","All regions","NA","LM 2020","NA","EU MAP - fish processing data","PGECON 2020\nRecommendation 4\n","PGECON recommends to revise the text of Draft Commission Delegated Decision (new EU MAP), Chapter II paragraph 7 and to include under that paragraph the reference to a revised current binding Table 11 COM 2016/1251) in order to allow MSs to collect the data for the fish processing sector on an optional basis, as fish processing data collection is established by the currently binding Regulation (EC) 2017/1004.","Ongoing","MSs to provide appropriate justification in their Work Plan for extensive or complementary to Eurostat data collection.","POL plans to include fish processing data collection in future WP"]
["POL","All regions","NA","LM 2020","3A","Value of the fishing rights","PGECON 2020\nRecommendation 6\n","PGECON recommends accepting the conclusions from the WS on capital value regarding the implementation of the guidelines for the valuation of the fishing rights. \nPGECON recommends a transition period in which MS explore the possibilities to apply the guidelines in their situation. During this transition period the obligation to gather information on the value of intangible assets should only include the transferable fishing rights. \n","Ongoing","MS should use the guidelines in the coming period, adapt them to the specific fisheries (in terms of the basic assumptions to be used) and provide estimation of fishing rights.","In Poland, fishing rights are not traded and therefore formally zero value"]
["POL","All regions","NA","LM 2020","NA","RWP","PGECON 2020\nRecommendation 7\n","PGECON 2020 recommends establishment of coordination process between all RCGs in regards to the drafting of Regional Work Plan (RWP).","On stand-by","Need to follow the recommendation pending the outcomes of the EU project dedicated to this issue -  the Fishn'Co project (under EU Grant MARE/2020/08) dedicated to establishing RWP","POL participate in the Fishn'Co project "]

{"sheet":"Table7C_Bi- and multilateral ","index":21,"n_rows":9,"n_cols":10,"rows_kept":9,"cut":false,"hidden":false,"merged":[]}
["Table7C: Bi- and multilateral agreements"]
[]
[null,null,null,null,null,null,null,null,"WP  years","2020-2021"]
[null,null,null,null,null,null,null,null,"AR year",2020]
["MSs","Contact persons","Content","Coordination","Description of sampling / sampling protocol / sampling intensity","Data transmission  ","Access to vessels ","Validity ","Comments","AR Comments"]
["POL - DEU","POL - Tomasz Nermer (nermer@mir.gdynia.pl); \n DEU - Jan-Dag Pohlmann (jan.pohlmann@thuenen.de)","Biological sampling of yellow and silver eels from commercial fisheries in the Oder River Basin District will be covered by POL.","NA","Target sample size: 100 yellow and 100 silver eel from commercial fisheries in the Oder River Basin District (sample size might be adjusted to a lower level depending on the availability of eel from POL commercial fisheries).","POL is responsible for submitting data to relevant ICES Expert Groups and to the EC. POL will provide data to DEU when requested.","NA","from 2013 onwards","http://dcf.mir.gdynia.pl/?page_id=365"]
["POL - DNK","POL - Irek Wojcik (iwojcik@mir.gdynia.pl)\nDNK - Marie Storr-Paulsen (msp@aqua.dtu.dk)","Vessels fishing under the Polish register, which land for first sale into Denmark, will be sampled as part of the Polish National Programme under the requirements of the EC Data Collection Framework (199/2008). ","NA","Length and age of discards and landings","DNK responsible for submitting data from DNK vessels, and POL from POL vessels, to the respective end-users.","NA","from 2013 onwards","http://dcf.mir.gdynia.pl/?page_id=365","Obsolete"]
["DEU - LTU  - NLD - POL","LTU - Vilda Griuniene (Vilda.Griuniene@zum.lt)\nDEU - Christoph Stransky (christoph.stransky@thuenen.de)\nNLD - Sieto Verver (sieto.verver@wur.nl)\nPOL - Irek Wojcik (iwojcik@mir.gdynia.pl)","DEU, LTU, NLD and POL to cooperate in the biological data collection on pelagic fisheries in SPRMFO waters.\n","POL is responsible for placement observers onboard, in coordination with NLD in respect of the expected vessels' movements.","Biological sampling will be carried out on board EU fishing vessels in SPRFMO area by observers arranged by POL in coordination with NLD in respect of the expected vessels' movements. These observers will follow the sampling protocol as described in “Observer Manual for biological data collection in SPRFMO waters”, based on data collection requirements set out in “SPRFMO; Conservation and Management Measure on Standards for the Collection, Reporting, Verification and Exchange of Data (SPRFMO Data Standards)”.","POL is responsible for data collection, quality control and delivery to the SPRFMO scientific working group of all data collected under this agreement. POL will distribute the data to Partners upon request. ","Each Partner ensures access to its fleet for observers under this agreement. Denied access to vessels does not exempt a Partner from legal or financial obligations.",2020,"  (http://dcf.mir.gdynia.pl/?page_id=365)","Agreement extended for period 2021-2023"]
["DEU - LTU  - LVA - NLD - POL","DEU - Christoph Stransky (christoph.stransky@thuenen.de)\nLVA - Aivars Berzins (Aivars.Berzins@bior.lv)\nLTU - Indre Sidlauskiene\nNLD - Sieto Verver (sieto.verver@wur.nl)\nPOL - Irek Wojcik (iwojcik@mir.gdynia.pl)","DEU, LVA, LTU, NLD, POL to cooperate in the biological data collection on pelagic fisheries in CECAF waters in  2018-2020.\n","POL to coordinate the execution of data collection under this multi-lateral agreement. ","Biological sampling carried on board EU fishing vessels in CECAF area by observers arranged by POL. Observers follow the sampling protocol as described in \"Biological Data Collection of pelagic fisheries in CECAF waters - Manual for scientific observers on board EU pelagic trawlers in CECAF area\", version 8-03-2018.","Poland is responsible for data collection, data entry and storage of the sampling data. The Netherlands is responsible for data validation, data processing and data delivery to relevant enduser. Poland and the Netherlands will collaborate to achieve timely delivery while ensuring to meet the required quality standards.","Each Partner ensures access to its fleet for observers under this agreement. Denied access to vessels does not exempt a Partner from legal or financial obligations.",2020," (http://dcf.mir.gdynia.pl/?page_id=365)","Agreement extended for period 2021-2023"]

{"sheet":"Sheet1","index":22,"n_rows":0,"n_cols":0,"rows_kept":0,"cut":false,"hidden":false,"merged":[]}